Workbook

Sheet Master Database - amended (hidden)
D1: Hearing Groups | E1: Device | H1: Further Details | L1: Acoustic characteristics | Y1: Species Group(s) - evidence score | AH1: Mitigation range
L2: Source level | Y2: Evidence score showing known (and proven) efficacy on each receptor group
A3: Helper Column 1 | B3: Helper Column 2 | C3: Helper Column 3 | D3: LF, MF, HF, PW, All Species, All Devices | E3: ID | F3: Make | G3: Model | H3: Control (manual / automatic) | I3: Link to manufacturer website | K3: Current known use | L3: rms, dB re 1 μPa re 1 m | M3: pk, dB re 1 μPa re 1 m | N3: SEL, dB re 1 μPa2s re 1 m (per pulse) | O3: Lowest Frequency (kHz) | P3: Highest Frequency (kHz) | Q3: Source frequency(s), Hz | R3: Shortest Pulse Interval, ms | S3: Longest Pulse Interval, ms | T3: Intermittency | U3: Continuous / pulsed | V3: Shortest Pulse Width, ms | W3: Longest Pulse Width, ms | X3: Pulse width, ms | Y3: LF Confidence Score | Z3: Effective on Species (Y/N) | AA3: HF Confidence Score | AB3: Effective on Species (Y/N) | AC3: VHF Confidence Score | AD3: Effective on Species (Y/N) | AE3: PW Confidence Score | AF3: Effective on Species (Y/N) | AG3: List of species for which evidence is available | AH3: LF mitigation range | AI3: HF mitigation range | AJ3: VHF mitigation range | AK3: PW mitigation range | AL3: Links to evidence | AM3: Links to evidence | AN3: Reviewers comments | AO3: Comment
A4: 1 | B4: =IF(D4='Device Selector'!$B$6,'Master Database - amended'!A4,"") ->  | C4: =IFERROR(SMALL($B$4:$B$200,A4),"") -> 8 | D4: Low Frequency Cetaceans | E4: 1 | F4: Ace Aquatec | G4: Ace Aquatec Marine Mammal Mitigation Device (A-MMD) Low (Pinnipeds) | H4: Automatic | I4: http://aceaquatec.com/ | J4: =I4 -> http://aceaquatec.com/ | K4: Offshore piling mitigation | L4: 182 | M4: =L4+3 -> 185 | N4: =ROUNDUP(L4+10*LOG10(W4/1000),0) -> 164 | O4: 0.8 | P4: 5 | Q4: 0.8-5 kHz available across ‘Lower,’ ‘Middle,’ ‘Upper,’ and ‘Full’ bands’ Flex (Setting 1): 0.9 – 1.4 kHz Ring (Setting 2): 1.0 – 2.0 kHz Can be restricted to 1 - 2 kHz) | R4: 25000 | S4: 300000 | T4: Intermittent - duration between pulses is on a random cycle, 12 - 144 per hour selectable. | U4: Intermittent | V4: 3.3 | W4: 14 | X4: Pulse uniformly shorten from 14 ms to 3.3 ms followed by an upshift in the frequency of the tonal components and their equivalent distribution (Lepper et al. 2004) | Y4: 2: Medium confidence | Z4: Y | AA4: No Data Available | AB4: No Data Available | AC4: No Data Available | AD4: No Data Available | AE4: 2: Medium confidence | AF4: Y | AG4: Pinnipeds and low frequency odontocetes | AH4: 500 - 1000m | AI4: No Data Available | AJ4: No Data Available | AK4: 500 - 1000m | AL4: https://infrastructure.planninginspectorate.gov.uk/wp-content/ipc/uploads/projects/EN010049/EN010049-001947-Tidal%20lagoon%20(Swansea%20Bay)%20Plc%201.pdf | AM4: https://infrastructure.planninginspectorate.gov.uk/wp-content/ipc/uploads/projects/EN010049/EN010049-001947-Tidal%20lagoon%20(Swansea%20Bay)%20Plc%201.pdf | AN4: ABPmer conclude that the AceAquatec MMD is recommended as an option should increased mitigation be needed at the tidal lagoon (see conclusions for use of Aquamark 100). Given the potential for wide-scale exclusion impacts on harbour porpoise, this should only be used for short periods of time when a marine mammal is recorded in a defined area in the vicinity of turbines. The use of an automated sonar system to trigger the device is a potentially useful (albeit more costly) tool. Manufacturer update: average source level within a transmission 182dB re 1uPa rms@1m; Frequency > Flex (setting 1) = 0.9-1.4kHz, Ring (setting 2) = 1-2kHz. | AO4: Manufacturer update: average source level within a transmission 182dB re 1uPa rms@1m; Frequency > Flex (setting 1) = 0.9-1.4kHz, Ring (setting 2) = 1-2kHz.
A5: 2 | B5: =IF(D5='Device Selector'!$B$6,'Master Database - amended'!A5,"") ->  | C5: =IFERROR(SMALL($B$4:$B$200,A5),"") -> 13 | D5: Pinnipeds | E5: 1 | F5: Ace Aquatec | G5: Ace Aquatec Marine Mammal Mitigation Device (A-MMD) Low (Pinnipeds) | H5: Automatic | I5: http://aceaquatec.com/ | J5: =I5 -> http://aceaquatec.com/ | K5: Offshore piling mitigation | L5: 182 | M5: =L5+3 -> 185 | N5: =ROUNDUP(L5+10*LOG10(W5/1000),0) -> 164 | O5: 0.8 | P5: 5 | Q5: 0.8-5 kHz available across ‘Lower,’ ‘Middle,’ ‘Upper,’ and ‘Full’ bands’ Flex (Setting 1): 0.9 – 1.4 kHz Ring (Setting 2): 1.0 – 2.0 kHz Can be restricted to 1 - 2 kHz) | R5: 25000 | S5: 300000 | T5: Intermittent - duration between pulses is on a random cycle, 12 - 144 per hour selectable. | U5: Intermittent | V5: 3.3 | W5: 14 | X5: Pulse uniformly shorten from 14 ms to 3.3 ms followed by an upshift in the frequency of the tonal components and their equivalent distribution (Lepper et al. 2004) | Y5: 2: Medium confidence | Z5: Y | AA5: No Data Available | AB5: No Data Available | AC5: No Data Available | AD5: No Data Available | AE5: 2: Medium confidence | AF5: Y | AG5: Pinnipeds and low frequency odontocetes | AH5: 500 - 1000m | AI5: No Data Available | AJ5: No Data Available | AK5: 500 - 1000m | AL5: https://infrastructure.planninginspectorate.gov.uk/wp-content/ipc/uploads/projects/EN010049/EN010049-001947-Tidal%20lagoon%20(Swansea%20Bay)%20Plc%201.pdf | AM5: https://infrastructure.planninginspectorate.gov.uk/wp-content/ipc/uploads/projects/EN010049/EN010049-001947-Tidal%20lagoon%20(Swansea%20Bay)%20Plc%201.pdf | AN5: ABPmer conclude that the AceAquatec MMD is recommended as an option should increased mitigation be needed at the tidal lagoon (see conclusions for use of Aquamark 100). Given the potential for wide-scale exclusion impacts on harbour porpoise, this should only be used for short periods of time when a marine mammal is recorded in a defined area in the vicinity of turbines. The use of an automated sonar system to trigger the device is a potentially useful (albeit more costly) tool. Manufacturer update: average source level within a transmission 182dB re 1uPa rms@1m; Frequency > Flex (setting 1) = 0.9-1.4kHz, Ring (setting 2) = 1-2kHz. | AO5: Manufacturer update: average source level within a transmission 182dB re 1uPa rms@1m; Frequency > Flex (setting 1) = 0.9-1.4kHz, Ring (setting 2) = 1-2kHz.
A6: 3 | B6: =IF(D6='Device Selector'!$B$6,'Master Database - amended'!A6,"") ->  | C6: 17 | D6: All Devices | E6: 1 | F6: Ace Aquatec | G6: Ace Aquatec Marine Mammal Mitigation Device (A-MMD) Low (Pinnipeds) | H6: Automatic | I6: http://aceaquatec.com/ | J6: http://aceaquatec.com/ | K6: Offshore piling mitigation | L6: 182 | M6: =L6+3 -> 185 | N6: =ROUNDUP(L6+10*LOG10(W6/1000),0) -> 164 | O6: 0.8 | P6: 5 | Q6: 0.8-5 kHz available across ‘Lower,’ ‘Middle,’ ‘Upper,’ and ‘Full’ bands’ Flex (Setting 1): 0.9 – 1.4 kHz Ring (Setting 2): 1.0 – 2.0 kHz Can be restricted to 1 - 2 kHz) | R6: 25000 | S6: 300000 | T6: Intermittent - duration between pulses is on a random cycle, 12 - 144 per hour selectable. | U6: Intermittent | V6: 3.3 | W6: 14 | X6: Pulse uniformly shorten from 14 ms to 3.3 ms followed by an upshift in the frequency of the tonal components and their equivalent distribution (Lepper et al. 2004) | Y6: 2: Medium confidence | Z6: Y | AA6: No Data Available | AB6: No Data Available | AC6: No Data Available | AD6: No Data Available | AE6: 2: Medium confidence | AF6: Y | AG6: Pinnipeds and low frequency odontocetes | AH6: 500 - 1000m | AI6: No Data Available | AJ6: No Data Available | AK6: 500 - 1000m | AL6: https://infrastructure.planninginspectorate.gov.uk/wp-content/ipc/uploads/projects/EN010049/EN010049-001947-Tidal%20lagoon%20(Swansea%20Bay)%20Plc%201.pdf | AM6: https://infrastructure.planninginspectorate.gov.uk/wp-content/ipc/uploads/projects/EN010049/EN010049-001947-Tidal%20lagoon%20(Swansea%20Bay)%20Plc%201.pdf | AN6: ABPmer conclude that the AceAquatec MMD is recommended as an option should increased mitigation be needed at the tidal lagoon (see conclusions for use of Aquamark 100). Given the potential for wide-scale exclusion impacts on harbour porpoise, this should only be used for short periods of time when a marine mammal is recorded in a defined area in the vicinity of turbines. The use of an automated sonar system to trigger the device is a potentially useful (albeit more costly) tool. Manufacturer update: average source level within a transmission 182dB re 1uPa rms@1m; Frequency > Flex (setting 1) = 0.9-1.4kHz, Ring (setting 2) = 1-2kHz. | AO6: Manufacturer update: average source level within a transmission 182dB re 1uPa rms@1m; Frequency > Flex (setting 1) = 0.9-1.4kHz, Ring (setting 2) = 1-2kHz.
A7: 4 | B7: =IF(D7='Device Selector'!$B$6,'Master Database - amended'!A7,"") ->  | C7: 23 | D7: All Devices | E7: 2 | F7: Ace Aquatec | G7: Ace Aquatec marine Mammal Mitigation Device Ultra-low frequency | H7: Automatic | I7: http://aceaquatec.com/ | J7: http://aceaquatec.com/ | K7: Offshore piling mitigation | L7: 182 | M7: 187 | N7: No Data Available | O7: 0.02 | P7: 0.09 | Q7: 20 - 90 Hz | R7: No Data Available | S7: No Data Available | T7: Intermittent. Duration between pulses is on a random cycle. | U7: Intermittent | V7: 3.3 | W7: 14 | X7: Pulse uniformly shorten from 14 ms to 3.3 ms followed by an upshift in the frequency of the tonal components and their equivalent distribution (Lepper et al. 2004) | Y7: No Data Available | Z7: Y | AA7: No Data Available | AB7: No Data Available | AC7: No Data Available | AD7: No Data Available | AE7: No Data Available | AF7: No Data Available | AG7: Fish | AH7: <500m | AI7: No Data Available | AJ7: No Data Available | AK7: No Data Available | AL7: http://www.ascobans.org/sites/default/files/document/Dawson_To-ping-or-not_ESR-2013.pdf https://infrastructure.planninginspectorate.gov.uk/wp-content/ipc/uploads/projects/EN010049/EN010049-001947-Tidal%20lagoon%20(Swansea%20Bay)%20Plc%201.pdf https://www.carbontrust.com/media/675291/orjip-add-study-final-report-stage-1-phase-2.pdf | AN7: Manufacturer update: average source level within a transmission 182dB re 1uPa rms@1m; Frequency > 200-900Hz | AO7: Manufacturer update: average source level within a transmission 182dB re 1uPa rms@1m; Frequency > 200-900Hz 2: Medium confidence in data for fish
A8: 5 | B8: =IF(D8='Device Selector'!$B$6,'Master Database - amended'!A8,"") ->  | C8: 28 | D8: High Frequency Cetaceans | E8: 3 | F8: Ace Aquatec | G8: Ace Aquatec marine Mammal Mitigation Device (A-MMD) (Mid-Frequency) Pinnipeds and Cetaceans | H8: Automatic | I8: http://aceaquatec.com/ | J8: http://aceaquatec.com/ | K8: Offshore piling mitigation | L8: 188 | M8: =L8+3 -> 191 | N8: =ROUNDUP(L8+10*LOG10(W8/1000),0) -> 170 | O8: 8 | P8: 20 | Q8: 8 - 20 kHz | R8: No Data Available | S8: No Data Available | T8: Intermittent - duration between pulses is on a random cycle. | U8: Intermittent | V8: 3.3 | W8: 14 | X8: Pulse uniformly shorten from 14 ms to 3.3 ms followed by an upshift in the frequency of the tonal components and their equivalent distribution (Lepper et al. 2004) | Y8: No Data Available | Z8: No Data Available | AA8: 1: Low confidence | AB8: Y | AC8: No Data Available | AD8: No Data Available | AE8: No Data Available | AF8: No Data Available | AG8: Pinnipeds and high-frequency odontoces | AH8: No Data Available | AI8: 500 - 1000m | AJ8: No Data Available | AK8: No Data Available | AL8: https://stecf.jrc.ec.europa.eu/documents/43805/44956/Trials+pinger+spacing+DK+2007.pdf https://www.sciencedirect.com/science/article/pii/S0165783607003669 http://bycatch.org/articles/can-acoustic-deterrent-devices-reduce-catch-cornish-inshore-gillnet-fishery https://www.researchgate.net/publication/286890618_An_investigation_of_acoustic_deterrent_devices_to_reduce_cetacean_bycatch_in_an_inshore_set_net_fishery http://www.ascobans.org/sites/default/files/document/Dawson_To-ping-or-not_ESR-2013.pdf https://infrastructure.planninginspectorate.gov.uk/wp-content/ipc/uploads/projects/EN010049/EN010049-001947-Tidal%20lagoon%20(Swansea%20Bay)%20Plc%201.pdf | AM8: https://stecf.jrc.ec.europa.eu/documents/43805/44956/Trials+pinger+spacing+DK+2007.pdf https://www.sciencedirect.com/science/article/pii/S0165783607003669 http://bycatch.org/articles/can-acoustic-deterrent-devices-reduce-catch-cornish-inshore-gillnet-fishery https://www.researchgate.net/publication/286890618_An_investigation_of_acoustic_deterrent_devices_to_reduce_cetacean_bycatch_in_an_inshore_set_net_fishery http://www.ascobans.org/sites/default/files/document/Dawson_To-ping-or-not_ESR-2013.pdf https://infrastructure.planninginspectorate.gov.uk/wp-content/ipc/uploads/projects/EN010049/EN010049-001947-Tidal%20lagoon%20(Swansea%20Bay)%20Plc%201.pdf | AN8: ABPmer conclude that the AceAquatec MMD is recommended as an option should increased mitigation be needed at the tidal lagoon (see conclusions for use of Aquamark 100). Given the potential for wide-scale exclusion impacts on harbour porpoise, this should only be used for short periods of time when a marine mammal is recorded in a defined area in the vicinity of turbines. The use of an automated sonar system to trigger the device is a potentially useful (albeit more costly) tool. Manufacturer update: average source level within a transmission 188dB re 1uPa rms@1m; Frequency = 8-24kHz | AO8: Manufacturer update: average source level within a transmission 188dB re 1uPa rms@1m; Frequency = 8-24kHz
A9: 6 | B9: =IF(D9='Device Selector'!$B$6,'Master Database - amended'!A9,"") ->  | C9: 32 | D9: Pinnipeds | E9: 3 | F9: Ace Aquatec | G9: Ace Aquatec marine Mammal Mitigation Device (A-MMD) (Mid-Frequency) Pinnipeds and Cetaceans | H9: Automatic | I9: http://aceaquatec.com/ | J9: http://aceaquatec.com/ | K9: Offshore piling mitigation | L9: 188 | M9: 191 | N9: 170 | O9: 8 | P9: 20 | Q9: 8 - 20 kHz | R9: No Data Available | S9: No Data Available | T9: Intermittent - duration between pulses is on a random cycle. | U9: Intermittent | V9: 3.3 | W9: 14 | X9: Pulse uniformly shorten from 14 ms to 3.3 ms followed by an upshift in the frequency of the tonal components and their equivalent distribution (Lepper et al. 2004) | Y9: No Data Available | Z9: No Data Available | AA9: 1: Low confidence | AB9: Y | AC9: No Data Available | AD9: No Data Available | AE9: No Data Available | AF9: No Data Available | AG9: Pinnipeds and high-frequency odontoces | AH9: No Data Available | AI9: 500 - 1000m | AJ9: No Data Available | AK9: No Data Available | AL9: https://stecf.jrc.ec.europa.eu/documents/43805/44956/Trials+pinger+spacing+DK+2007.pdf https://www.sciencedirect.com/science/article/pii/S0165783607003669 http://bycatch.org/articles/can-acoustic-deterrent-devices-reduce-catch-cornish-inshore-gillnet-fishery https://www.researchgate.net/publication/286890618_An_investigation_of_acoustic_deterrent_devices_to_reduce_cetacean_bycatch_in_an_inshore_set_net_fishery http://www.ascobans.org/sites/default/files/document/Dawson_To-ping-or-not_ESR-2013.pdf https://infrastructure.planninginspectorate.gov.uk/wp-content/ipc/uploads/projects/EN010049/EN010049-001947-Tidal%20lagoon%20(Swansea%20Bay)%20Plc%201.pdf | AM9: https://stecf.jrc.ec.europa.eu/documents/43805/44956/Trials+pinger+spacing+DK+2007.pdf https://www.sciencedirect.com/science/article/pii/S0165783607003669 http://bycatch.org/articles/can-acoustic-deterrent-devices-reduce-catch-cornish-inshore-gillnet-fishery https://www.researchgate.net/publication/286890618_An_investigation_of_acoustic_deterrent_devices_to_reduce_cetacean_bycatch_in_an_inshore_set_net_fishery http://www.ascobans.org/sites/default/files/document/Dawson_To-ping-or-not_ESR-2013.pdf https://infrastructure.planninginspectorate.gov.uk/wp-content/ipc/uploads/projects/EN010049/EN010049-001947-Tidal%20lagoon%20(Swansea%20Bay)%20Plc%201.pdf | AN9: ABPmer conclude that the AceAquatec MMD is recommended as an option should increased mitigation be needed at the tidal lagoon (see conclusions for use of Aquamark 100). Given the potential for wide-scale exclusion impacts on harbour porpoise, this should only be used for short periods of time when a marine mammal is recorded in a defined area in the vicinity of turbines. The use of an automated sonar system to trigger the device is a potentially useful (albeit more costly) tool. Manufacturer update: average source level within a transmission 188dB re 1uPa rms@1m; Frequency = 8-24kHz | AO9: Manufacturer update: average source level within a transmission 188dB re 1uPa rms@1m; Frequency = 8-24kHz
A10: 7 | B10: =IF(D10='Device Selector'!$B$6,'Master Database - amended'!A10,"") ->  | C10: 40 | D10: All Devices | E10: 3 | F10: Ace Aquatec | G10: Ace Aquatec marine Mammal Mitigation Device (A-MMD) (Mid-Frequency) Pinnipeds and Cetaceans | H10: Automatic | I10: http://aceaquatec.com/ | J10: http://aceaquatec.com/ | K10: Offshore piling mitigation | L10: 188 | M10: 191 | N10: 170 | O10: 8 | P10: 20 | Q10: 8 - 20 kHz | R10: No Data Available | S10: No Data Available | T10: Intermittent - duration between pulses is on a random cycle. | U10: Intermittent | V10: 3.3 | W10: 14 | X10: Pulse uniformly shorten from 14 ms to 3.3 ms followed by an upshift in the frequency of the tonal components and their equivalent distribution (Lepper et al. 2004) | Y10: No Data Available | Z10: No Data Available | AA10: 1: Low confidence | AB10: Y | AC10: No Data Available | AD10: No Data Available | AE10: No Data Available | AF10: No Data Available | AG10: Pinnipeds and mid-frequency odontoces | AH10: No Data Available | AI10: 500 - 1000m | AJ10: No Data Available | AK10: No Data Available | AL10: https://stecf.jrc.ec.europa.eu/documents/43805/44956/Trials+pinger+spacing+DK+2007.pdf https://www.sciencedirect.com/science/article/pii/S0165783607003669 http://bycatch.org/articles/can-acoustic-deterrent-devices-reduce-catch-cornish-inshore-gillnet-fishery https://www.researchgate.net/publication/286890618_An_investigation_of_acoustic_deterrent_devices_to_reduce_cetacean_bycatch_in_an_inshore_set_net_fishery http://www.ascobans.org/sites/default/files/document/Dawson_To-ping-or-not_ESR-2013.pdf https://infrastructure.planninginspectorate.gov.uk/wp-content/ipc/uploads/projects/EN010049/EN010049-001947-Tidal%20lagoon%20(Swansea%20Bay)%20Plc%201.pdf | AM10: https://stecf.jrc.ec.europa.eu/documents/43805/44956/Trials+pinger+spacing+DK+2007.pdf https://www.sciencedirect.com/science/article/pii/S0165783607003669 http://bycatch.org/articles/can-acoustic-deterrent-devices-reduce-catch-cornish-inshore-gillnet-fishery https://www.researchgate.net/publication/286890618_An_investigation_of_acoustic_deterrent_devices_to_reduce_cetacean_bycatch_in_an_inshore_set_net_fishery http://www.ascobans.org/sites/default/files/document/Dawson_To-ping-or-not_ESR-2013.pdf https://infrastructure.planninginspectorate.gov.uk/wp-content/ipc/uploads/projects/EN010049/EN010049-001947-Tidal%20lagoon%20(Swansea%20Bay)%20Plc%201.pdf | AN10: ABPmer conclude that the AceAquatec MMD is recommended as an option should increased mitigation be needed at the tidal lagoon (see conclusions for use of Aquamark 100). Given the potential for wide-scale exclusion impacts on harbour porpoise, this should only be used for short periods of time when a marine mammal is recorded in a defined area in the vicinity of turbines. The use of an automated sonar system to trigger the device is a potentially useful (albeit more costly) tool. Manufacturer update: average source level within a transmission 188dB re 1uPa rms@1m; Frequency = 8-24kHz | AO10: Manufacturer update: average source level within a transmission 188dB re 1uPa rms@1m; Frequency = 8-24kHz
A11: 8 | B11: =IF(D11='Device Selector'!$B$6,'Master Database - amended'!A11,"") -> 8 | C11: 43 | D11: Very High Frequency Cetaceans | E11: 4 | F11: Ace Aquatec | G11: Marine Mammal Mitigation (MMM) Device (HF) | H11: Automatic | I11: http://aceaquatec.com/ | J11: http://aceaquatec.com/ | K11: Offshore piling mitigation | L11: 180 | M11: 183 | N11: 162 | O11: 20 | P11: 70 | Q11: 20 - 70 kHz | R11: No Data Available | S11: No Data Available | T11: Intermittent - duration between pulses is on a random cycle. | U11: Intermittent | V11: 3.3 | W11: 14 | X11: Pulse uniformly shorten from 14 ms to 3.3 ms followed by an upshift in the frequency of the tonal components and their equivalent distribution (Lepper et al. 2004) | Y11: No Data Available | Z11: No Data Available | AA11: No Data Available | AB11: No Data Available | AC11: 2: Medium confidence | AD11: Y | AE11: 2: Medium confidence | AF11: Y | AG11: Pinnipeds and high-frequency odontoces | AH11: No Data Available | AI11: No Data Available | AJ11: >1000m | AK11: >1000m | AL11: https://infrastructure.planninginspectorate.gov.uk/wp-content/ipc/uploads/projects/EN010049/EN010049-001947-Tidal%20lagoon%20(Swansea%20Bay)%20Plc%201.pdf | AM11: http://www.ascobans.org/sites/default/files/document/Dawson_To-ping-or-not_ESR-2013.pdf | AN11: ABPmer conclude that the AceAquatec MMD is recommended as an option should increased mitigation be needed at the tidal lagoon (see conclusions for use of Aquamark 100). Given the potential for wide-scale exclusion impacts on harbour porpoise, this should only be used for short periods of time when a marine mammal is recorded in a defined area in the vicinity of turbines. The use of an automated sonar system to trigger the device is a potentially useful (albeit more costly) tool. Manufacturer update: average source level within a transmission 180dB re 1uPa rms@1m; Frequency = 20-70kHz | AO11: Manufacturer update: average source level within a transmission 180dB re 1uPa rms@1m; Frequency = 20-70kHz
A12: 9 | B12: =IF(D12='Device Selector'!$B$6,'Master Database - amended'!A12,"") ->  | C12: 46 | D12: Pinnipeds | E12: 4 | F12: Ace Aquatec | G12: Marine Mammal Mitigation (MMM) Device (HF) | H12: Automatic | I12: http://aceaquatec.com/ | J12: http://aceaquatec.com/ | K12: Offshore piling mitigation | L12: 180 | M12: 183 | N12: 162 | O12: 20 | P12: 70 | Q12: 20 - 70 kHz | R12: No Data Available | S12: No Data Available | T12: Intermittent - duration between pulses is on a random cycle. | U12: Intermittent | V12: 3.3 | W12: 14 | X12: Pulse uniformly shorten from 14 ms to 3.3 ms followed by an upshift in the frequency of the tonal components and their equivalent distribution (Lepper et al. 2004) | Y12: No Data Available | Z12: No Data Available | AA12: No Data Available | AB12: No Data Available | AC12: 2: Medium confidence | AD12: Y | AE12: 2: Medium confidence | AF12: Y | AG12: Pinnipeds and high-frequency odontoces | AH12: No Data Available | AI12: No Data Available | AJ12: >1000m | AK12: >1000m | AL12: https://infrastructure.planninginspectorate.gov.uk/wp-content/ipc/uploads/projects/EN010049/EN010049-001947-Tidal%20lagoon%20(Swansea%20Bay)%20Plc%201.pdf | AM12: http://www.ascobans.org/sites/default/files/document/Dawson_To-ping-or-not_ESR-2013.pdf | AN12: ABPmer conclude that the AceAquatec MMD is recommended as an option should increased mitigation be needed at the tidal lagoon (see conclusions for use of Aquamark 100). Given the potential for wide-scale exclusion impacts on harbour porpoise, this should only be used for short periods of time when a marine mammal is recorded in a defined area in the vicinity of turbines. The use of an automated sonar system to trigger the device is a potentially useful (albeit more costly) tool. Manufacturer update: average source level within a transmission 180dB re 1uPa rms@1m; Frequency = 20-70kHz | AO12: Manufacturer update: average source level within a transmission 180dB re 1uPa rms@1m; Frequency = 20-70kHz
A13: 10 | B13: =IF(D13='Device Selector'!$B$6,'Master Database - amended'!A13,"") ->  | C13: 49 | D13: All Devices | E13: 4 | F13: Ace Aquatec | G13: Marine Mammal Mitigation (MMM) Device (HF) | H13: Automatic | I13: http://aceaquatec.com/ | J13: http://aceaquatec.com/ | K13: Offshore piling mitigation | L13: 180 | M13: 183 | N13: 162 | O13: 20 | P13: 70 | Q13: 20 - 70 kHz | R13: No Data Available | S13: No Data Available | T13: Intermittent - duration between pulses is on a random cycle. | U13: Intermittent | V13: 3.3 | W13: 14 | X13: Pulse uniformly shorten from 14 ms to 3.3 ms followed by an upshift in the frequency of the tonal components and their equivalent distribution (Lepper et al. 2004) | Y13: No Data Available | Z13: No Data Available | AA13: No Data Available | AB13: No Data Available | AC13: 2: Medium confidence | AD13: Y | AE13: 2: Medium confidence | AF13: Y | AG13: Pinnipeds and high-frequency odontoces | AH13: No Data Available | AI13: No Data Available | AJ13: >1000m | AK13: >1000m | AL13: https://infrastructure.planninginspectorate.gov.uk/wp-content/ipc/uploads/projects/EN010049/EN010049-001947-Tidal%20lagoon%20(Swansea%20Bay)%20Plc%201.pdf | AM13: http://www.ascobans.org/sites/default/files/document/Dawson_To-ping-or-not_ESR-2013.pdf | AN13: ABPmer conclude that the AceAquatec MMD is recommended as an option should increased mitigation be needed at the tidal lagoon (see conclusions for use of Aquamark 100). Given the potential for wide-scale exclusion impacts on harbour porpoise, this should only be used for short periods of time when a marine mammal is recorded in a defined area in the vicinity of turbines. The use of an automated sonar system to trigger the device is a potentially useful (albeit more costly) tool. Manufacturer update: average source level within a transmission 180dB re 1uPa rms@1m; Frequency = 20-70kHz | AO13: Manufacturer update: average source level within a transmission 180dB re 1uPa rms@1m; Frequency = 20-70kHz
A14: 11 | B14: =IF(D14='Device Selector'!$B$6,'Master Database - amended'!A14,"") ->  | C14: 52 | D14: Pinnipeds | E14: 5 | F14: Ace Aquatec | G14: Universal Scrammer (US2) | H14: Automatic | I14: http://aceaquatec.com/products/predator-control/ | J14: =I14 -> http://aceaquatec.com/products/predator-control/ | K14: Aquaculture | L14: 181 | M14: =L14+3 -> 184 | N14: No Data Available | O14: 8 | P14: 30 | Q14: 8 - 30 kHz | R14: 20 | S14: 20 | T14: Intermittent | U14: Intermittent | V14: No Data Available | W14: No Data Available | X14: Transmission duration of 20s (double scram of 40s and a pulse duration of 20ms) | Y14: No Data Available | Z14: No Data Available | AA14: No Data Available | AB14: No Data Available | AC14: No Data Available | AD14: No Data Available | AE14: No Data Available | AF14: No Data Available | AG14: Seals | AH14: No Data Available | AI14: No Data Available | AJ14: No Data Available | AK14: No Data Available | AL14: No Evidence Available | AN14: Manufacturer update: average source level within a transmission 181dB re 1uPa rms@1m | AO14: Manufacturer update: average source level within a transmission 181dB re 1uPa rms@1m
A15: 12 | B15: =IF(D15='Device Selector'!$B$6,'Master Database - amended'!A15,"") ->  | C15: 55 | D15: All Devices | E15: 5 | F15: Ace Aquatec | G15: Universal Scrammer (US2) | H15: Automatic | I15: http://aceaquatec.com/products/predator-control/ | J15: http://aceaquatec.com/products/predator-control/ | K15: Aquaculture | L15: 181 | M15: 184 | N15: No Data Available | O15: 8 | P15: 30 | Q15: 8 - 30 kHz | R15: 20 | S15: 20 | T15: Intermittent | U15: Intermittent | V15: No Data Available | W15: No Data Available | X15: Transmission duration of 20s (double scram of 40s and a pulse duration of 20ms) | Y15: No Data Available | Z15: No Data Available | AA15: No Data Available | AB15: No Data Available | AC15: No Data Available | AD15: No Data Available | AE15: No Data Available | AF15: No Data Available | AG15: Seals | AH15: No Data Available | AI15: No Data Available | AJ15: No Data Available | AK15: No Data Available | AL15: No Evidence Available | AN15: Manufacturer update: average source level within a transmission 181dB re 1uPa rms@1m | AO15: Manufacturer update: average source level within a transmission 181dB re 1uPa rms@1m
A16: 13 | B16: =IF(D16='Device Selector'!$B$6,'Master Database - amended'!A16,"") -> 13 | C16: 57 | D16: Very High Frequency Cetaceans | E16: 6 | F16: Ace Aquatec | G16: Mid-frequency Acoustic Startle Response Device (US3) | H16: Automatic | I16: https://aceaquatec.com/aquaculture-products/protect/asr-us3 | J16: =I16 -> https://aceaquatec.com/aquaculture-products/protect/asr-us3 | K16: Aquaculture | L16: 181 | M16: 184 | N16: No Data Available | O16: 8 | P16: 20 | Q16: 8 - 20 kHz | R16: 3 | S16: 11 | T16: Intermittent | U16: Intermittent | V16: No Data Available | W16: No Data Available | X16: Randomised pulse train, with 3 - 11 ms rise time pulses, of 2.6 sec duration to create a startle response. Goetz & Janik (2011; 2015) | Y16: No Data Available | Z16: No Data Available | AA16: No Data Available | AB16: No Data Available | AC16: 3: High confidence | AD16: Y | AE16: 3: High confidence | AF16: Y | AG16: Seals, Harbour porpoise | AH16: No Data Available | AI16: No Data Available | AJ16: >1000m | AK16: >1000m | AL16: https://infrastructure.planninginspectorate.gov.uk/wp-content/ipc/uploads/projects/EN010049/EN010049-001947-Tidal%20lagoon%20(Swansea%20Bay)%20Plc%201.pdf https://dx.doi.org/10.1111/fme.12680 https://www.sciencedirect.com/science/article/pii/S0165783622001059 | AM16: http://www.iqoe.org/library/9639 https://www.environment.gov.au/system/files/resources/c2bdc649-02a2-49c2-9c0f-74d0c4a65b27/files/technical-review-bycatch-mitigation-devices.pdf https://doi.org/10.1111/1365-2664.13910 https://doi.org/10.1016/j.marpolbul.2021.112171 https://iiav.org/ijav/content/volumes/24_2019_1848881553860721/vol_4/1528_fullpaper_317161577706017.pdf | AN16: Manufacturer update: average source level within a transmission 181dB re 1uPa rms@1m; Frequency 8-11kHz. Note: Propagation papers referenced prior to this update used the maximum output in modelling not the average energy level of the signal. This has been addresses in a SAIC funded project with the University of St Andrews Veneranta et al. (2024) and Lehtonen et al. (2023) applied multiple US3s to establish an acoustic barrier to prevent upstream movement of seals in areas of aquaculture Findlay et al. (2021) and Todd et al. (2021) observed that ADD noise from a single device could be sufficient to induce TTS in harbour porpoise. Todd et al. (2021) predicted this at distances of up to 18 km. Source levels, propagation and transmission loss measurements were highly variable and should be considered as site specific, meaning new estimates should be made for each situation (Todd et al., 2019) | AO16: Manufacturer update: average source level within a transmission 181dB re 1uPa rms@1m; Frequency 8-11kHz. Note: Propagation papers referenced prior to this update used the maximum output in modelling not the average energy level of the signal. This has been addresses in a SAIC funded project with the University of St Andrews
A17: 14 | B17: =IF(D17='Device Selector'!$B$6,'Master Database - amended'!A17,"") ->  | C17: 64 | D17: Pinnipeds | E17: 6 | F17: Ace Aquatec | G17: Mid-frequency Acoustic Startle Response Device (US3) | H17: Automatic | I17: https://aceaquatec.com/aquaculture-products/protect/asr-us3 | J17: https://aceaquatec.com/aquaculture-products/protect/asr-us3 | K17: Aquaculture | L17: 181 | M17: 184 | N17: No Data Available | O17: 8 | P17: 20 | Q17: 8 - 20 kHz | R17: 3 | S17: 11 | T17: Intermittent | U17: Intermittent | V17: No Data Available | W17: No Data Available | X17: Randomised pulse train, with 3 - 11 ms rise time pulses, of 2.6 sec duration to create a startle response. Goetz & Janik (2011; 2015) | Y17: No Data Available | Z17: No Data Available | AA17: No Data Available | AB17: No Data Available | AC17: 3: High confidence | AD17: Y | AE17: 3: High confidence | AF17: Y | AG17: Seals, Harbour porpoise | AH17: No Data Available | AI17: No Data Available | AJ17: >1000m | AK17: >1000m | AL17: https://infrastructure.planninginspectorate.gov.uk/wp-content/ipc/uploads/projects/EN010049/EN010049-001947-Tidal%20lagoon%20(Swansea%20Bay)%20Plc%201.pdf https://dx.doi.org/10.1111/fme.12680 https://www.sciencedirect.com/science/article/pii/S0165783622001059 | AM17: http://www.iqoe.org/library/9639 https://www.environment.gov.au/system/files/resources/c2bdc649-02a2-49c2-9c0f-74d0c4a65b27/files/technical-review-bycatch-mitigation-devices.pdf https://doi.org/10.1111/1365-2664.13910 https://doi.org/10.1016/j.marpolbul.2021.112171 https://iiav.org/ijav/content/volumes/24_2019_1848881553860721/vol_4/1528_fullpaper_317161577706017.pdf | AN17: Manufacturer update: average source level within a transmission 181dB re 1uPa rms@1m; Frequency 8-11kHz. Note: Propagation papers referenced prior to this update used the maximum output in modelling not the average energy level of the signal. This has been addresses in a SAIC funded project with the University of St Andrews Veneranta et al. (2024) and Lehtonen et al. (2023) applied multiple US3s to establish an acoustic barrier to prevent upstream movement of seals in areas of aquaculture Findlay et al. (2021) and Todd et al. (2021) observed that ADD noise from a single device could be sufficient to induce TTS in harbour porpoise. Todd et al. (2021) predicted this at distances of up to 18 km. Source levels, propagation and transmission loss measurements were highly variable and should be considered as site specific, meaning new estimates should be made for each situation (Todd et al., 2019) | AO17: Manufacturer update: average source level within a transmission 181dB re 1uPa rms@1m; Frequency 8-11kHz. Note: Propagation papers referenced prior to this update used the maximum output in modelling not the average energy level of the signal. This has been addresses in a SAIC funded project with the University of St Andrews
A18: 15 | B18: =IF(D18='Device Selector'!$B$6,'Master Database - amended'!A18,"") ->  | C18: 68 | D18: All Devices | E18: 6 | F18: Ace Aquatec | G18: Mid-frequency Acoustic Startle Response Device (US3) | H18: Automatic | I18: https://aceaquatec.com/aquaculture-products/protect/asr-us3 | J18: https://aceaquatec.com/aquaculture-products/protect/asr-us3 | K18: Aquaculture | L18: 181 | M18: 184 | N18: No Data Available | O18: 8 | P18: 20 | Q18: 8 - 20 kHz | R18: 3 | S18: 11 | T18: Intermittent | U18: Intermittent | V18: No Data Available | W18: No Data Available | X18: Randomised pulse train, with 3 - 11 ms rise time pulses, of 2.6 sec duration to create a startle response. Goetz & Janik (2011; 2015) | Y18: No Data Available | Z18: No Data Available | AA18: No Data Available | AB18: No Data Available | AC18: 3: High confidence | AD18: Y | AE18: 3: High confidence | AF18: Y | AG18: Seals, Harbour porpoise | AH18: No Data Available | AI18: No Data Available | AJ18: >1000m | AK18: >1000m | AL18: https://infrastructure.planninginspectorate.gov.uk/wp-content/ipc/uploads/projects/EN010049/EN010049-001947-Tidal%20lagoon%20(Swansea%20Bay)%20Plc%201.pdf https://dx.doi.org/10.1111/fme.12680 https://www.sciencedirect.com/science/article/pii/S0165783622001059 | AM18: http://www.iqoe.org/library/9639 https://www.environment.gov.au/system/files/resources/c2bdc649-02a2-49c2-9c0f-74d0c4a65b27/files/technical-review-bycatch-mitigation-devices.pdf https://doi.org/10.1111/1365-2664.13910 https://doi.org/10.1016/j.marpolbul.2021.112171 https://iiav.org/ijav/content/volumes/24_2019_1848881553860721/vol_4/1528_fullpaper_317161577706017.pdf | AN18: Manufacturer update: average source level within a transmission 181dB re 1uPa rms@1m; Frequency 8-11kHz. Note: Propagation papers referenced prior to this update used the maximum output in modelling not the average energy level of the signal. This has been addresses in a SAIC funded project with the University of St Andrews Veneranta et al. (2024) and Lehtonen et al. (2023) applied multiple US3s to establish an acoustic barrier to prevent upstream movement of seals in areas of aquaculture Findlay et al. (2021) and Todd et al. (2021) observed that ADD noise from a single device could be sufficient to induce TTS in harbour porpoise. Todd et al. (2021) predicted this at distances of up to 18 km. Source levels, propagation and transmission loss measurements were highly variable and should be considered as site specific, meaning new estimates should be made for each situation (Todd et al., 2019) | AO18: Manufacturer update: average source level within a transmission 181dB re 1uPa rms@1m; Frequency 8-11kHz. Note: Propagation papers referenced prior to this update used the maximum output in modelling not the average energy level of the signal. This has been addresses in a SAIC funded project with the University of St Andrews
A19: 16 | B19: =IF(D19='Device Selector'!$B$6,'Master Database - amended'!A19,"") ->  | C19: 71 | D19: All Devices | E19: 7 | F19: Ace Aquatec | G19: Low-Frequency Acoustic Startle Response Device (RT1/FS1) | H19: Automatic | I19: http://aceaquatec.com/products/predator-control/ | J19: http://aceaquatec.com/products/predator-control/ | K19: Aquaculture | L19: =180-3 -> 177 | M19: 180 dB for ring transducer 182 dB for flex transducer | N19: No Data Available | O19: Flex (Setting 1): 0.9 – 1.4 kHz Ring (Setting 2): 1.0 – 2.0 kHz ability to play sounds up to 5kHz if required | P19: 5 (if required) | Q19: 1 - 5 kHz (can be restricted to 1 - 2 kHz in applications near harbour porpoise) | R19: No Data Available | S19: No Data Available | T19: Intermittent. | U19: Intermittent | V19: No Data Available | W19: No Data Available | X19: Randomised pulse train, with 3 - 11 ms rise time pulses, of 2.6 sec duration to create a startle response. Goetz & Janik (2011; 2015). | Y19: 3: High confidence | Z19: No Data Available | AA19: 3: High confidence | AB19: No Data Available | AC19: 3: High confidence | AD19: No Data Available | AE19: 3: High confidence | AF19: No Data Available | AG19: Harbour porpoise, Minke whale, Bottlenose dolphin, Grey seal, Harbour seal (modelling only, in context of Southall et al., 2019 criteria) | AH19: No Data Available | AI19: No Data Available | AJ19: >1000m | AK19: >1000m | AL19: https://www.sciencedirect.com/science/article/pii/S0025326X21002058 | AM19: https://www.carbontrust.com/media/675291/orjip-add-study-final-report-stage-1-phase-2.pdf | AN19: 0.2 - 5% duty cycle Todd et al. (2021) predicted onset of TTS at a range of 25 km in VHF cetaceans, 17.4 km in LF cetaceans, 11.1 km in pinnipeds and 5 km in HF cetaceans | AO19: Manufacturer update: average source level within a transmission 180dB re 1uPa rms@1m (ring transducer) & 182dB re 1uPa rms@1m (flex transducer); Frequency 0.9-1.4kHz
A20: 17 | B20: =IF(D20='Device Selector'!$B$6,'Master Database - amended'!A20,"") -> 17 | C20: 73 | D20: Very High Frequency Cetaceans | E20: 8 | F20: Airmar | G20: dB plus II (became Mohn Aqua MAG seal deterrent, then aquired by Gael Force) (discontinued by Airmar) | H20: Manual | I20: http://www.airmar.com/ | J20: http://www.airmar.com/ | K20: Aquaculture | L20: 198 | M20: 201 | N20: 169 | O20: 1.5 | P20: 50 | Q20: A broadband spectral response at the beginning of each pulse, with detectable energy levels between 1.5 kHz to 50 kHz (Lepper et al. 2014). | R20: 40 | S20: 40 | T20: Sequence of pulsed sinusoidal tonal bursts (Lepper et al. 2014). | U20: Intermittent | V20: 1.4 | W20: 1.4 | X20: Each tonal burst is ~1.4 ms in duration with 40 ms interval. A 2.25 s long sequence is then formed from 57-58 tone bursts. The sequence is then repeated with ~50% duty cycle allowing ~2 s quiet period (Lepper et al. 2014). | Y20: No Data Available | Z20: No Data Available | AA20: No Data Available | AB20: No Data Available | AC20: 3: High confidence | AD20: Y | AE20: 3: High confidence | AF20: Y | AG20: Seals | AH20: No Data Available | AI20: No Data Available | AJ20: >1000m | AK20: <500m | AL20: http://onlinelibrary.wiley.com/doi/10.1111/j.1748-7692.2002.tb01077.x/abstract https://www.sciencedirect.com/science/article/pii/S000632070200099X http://islandora.mlml.calstate.edu/islandora/object/ir%3A1920 https://research-repository.st-andrews.ac.uk/handle/10023/848 https://www.ncbi.nlm.nih.gov/pubmed/20400639 https://www.researchgate.net/publication/273094995_Pingers_cause_temporary_habitat_displacement_of_harbour_porpoises_Phocoena_phocoena_L https://www.carbontrust.com/media/675291/orjip-add-study-final-report-stage-1-phase-2.pdf http://www.snh.org.uk/pdfs/publications/commissioned_reports/517.pdf http://www.gov.scot/Publications/2013/10/7618/4 | AN20: The Olesiuk et al. (2002) study involved substantially greater observation effort over a much-extended period and was thus able to investigate long-term effects. In comparison the Johnston (2002) study was able to measure ranges more accurately and track movements and could scan within a smaller observation range more effectively. Summary taken from ORJIP report show the results indicate that there might be scope to reduce the ADD time below the 30 minutes applied during the construction of these OWFs. | AO20: NA
A21: 18 | B21: =IF(D21='Device Selector'!$B$6,'Master Database - amended'!A21,"") ->  | C21: 75 | D21: Pinnipeds | E21: 8 | F21: Airmar | G21: dB plus II (became Mohn Aqua MAG seal deterrent, then aquired by Gael Force) (discontinued by Airmar) | H21: Manual | I21: http://www.airmar.com/ | J21: http://www.airmar.com/ | K21: Aquaculture | L21: 198 | M21: 201 | N21: 169 | O21: 1.5 | P21: 50 | Q21: A broadband spectral response at the beginning of each pulse, with detectable energy levels between 1.5 kHz to 50 kHz (Lepper et al. 2014). | R21: 40 | S21: 40 | T21: Sequence of pulsed sinusoidal tonal bursts (Lepper et al. 2014). | U21: Intermittent | V21: 1.4 | W21: 1.4 | X21: Each tonal burst is ~1.4 ms in duration with 40 ms interval. A 2.25 s long sequence is then formed from 57-58 tone bursts. The sequence is then repeated with ~50% duty cycle allowing ~2 s quiet period (Lepper et al. 2014). | Y21: No Data Available | Z21: No Data Available | AA21: No Data Available | AB21: No Data Available | AC21: 3: High confidence | AD21: Y | AE21: 3: High confidence | AF21: Y | AG21: Seals | AH21: No Data Available | AI21: No Data Available | AJ21: >1000m | AK21: <500m | AL21: http://onlinelibrary.wiley.com/doi/10.1111/j.1748-7692.2002.tb01077.x/abstract https://www.sciencedirect.com/science/article/pii/S000632070200099X http://islandora.mlml.calstate.edu/islandora/object/ir%3A1920 https://research-repository.st-andrews.ac.uk/handle/10023/848 https://www.ncbi.nlm.nih.gov/pubmed/20400639 https://www.researchgate.net/publication/273094995_Pingers_cause_temporary_habitat_displacement_of_harbour_porpoises_Phocoena_phocoena_L https://www.carbontrust.com/media/675291/orjip-add-study-final-report-stage-1-phase-2.pdf http://www.snh.org.uk/pdfs/publications/commissioned_reports/517.pdf http://www.gov.scot/Publications/2013/10/7618/4 | AN21: The Olesiuk et al. (2002) study involved substantially greater observation effort over a much-extended period and was thus able to investigate long-term effects. In comparison the Johnston (2002) study was able to measure ranges more accurately and track movements and could scan within a smaller observation range more effectively. Summary taken from ORJIP report show the results indicate that there might be scope to reduce the ADD time below the 30 minutes applied during the construction of these OWFs. | AO21: NA
A22: 19 | B22: =IF(D22='Device Selector'!$B$6,'Master Database - amended'!A22,"") ->  | C22: 79 | D22: All Devices | E22: 8 | F22: Airmar | G22: dB plus II (became Mohn Aqua MAG seal deterrent, then aquired by Gael Force) (discontinued by Airmar) | H22: Manual | I22: http://www.airmar.com/ | J22: http://www.airmar.com/ | K22: Aquaculture | L22: 198 | M22: 201 | N22: 169 | O22: 1.5 | P22: 50 | Q22: A broadband spectral response at the beginning of each pulse, with detectable energy levels between 1.5 kHz to 50 kHz (Lepper et al. 2014). | R22: 40 | S22: 40 | T22: Sequence of pulsed sinusoidal tonal bursts (Lepper et al. 2014). | U22: Intermittent | V22: 1.4 | W22: 1.4 | X22: Each tonal burst is ~1.4 ms in duration with 40 ms interval. A 2.25 s long sequence is then formed from 57-58 tone bursts. The sequence is then repeated with ~50% duty cycle allowing ~2 s quiet period (Lepper et al. 2014). | Y22: No Data Available | Z22: No Data Available | AA22: No Data Available | AB22: No Data Available | AC22: 3: High confidence | AD22: Y | AE22: 3: High confidence | AF22: Y | AG22: Seals | AH22: No Data Available | AI22: No Data Available | AJ22: >1000m | AK22: <500m | AL22: http://onlinelibrary.wiley.com/doi/10.1111/j.1748-7692.2002.tb01077.x/abstract https://www.sciencedirect.com/science/article/pii/S000632070200099X http://islandora.mlml.calstate.edu/islandora/object/ir%3A1920 https://research-repository.st-andrews.ac.uk/handle/10023/848 https://www.ncbi.nlm.nih.gov/pubmed/20400639 https://www.researchgate.net/publication/273094995_Pingers_cause_temporary_habitat_displacement_of_harbour_porpoises_Phocoena_phocoena_L https://www.carbontrust.com/media/675291/orjip-add-study-final-report-stage-1-phase-2.pdf http://www.snh.org.uk/pdfs/publications/commissioned_reports/517.pdf http://www.gov.scot/Publications/2013/10/7618/4 | AN22: The Olesiuk et al. (2002) study involved substantially greater observation effort over a much-extended period and was thus able to investigate long-term effects. In comparison the Johnston (2002) study was able to measure ranges more accurately and track movements and could scan within a smaller observation range more effectively. Summary taken from ORJIP report show the results indicate that there might be scope to reduce the ADD time below the 30 minutes applied during the construction of these OWFs. | AO22: NA
A23: 20 | B23: =IF(D23='Device Selector'!$B$6,'Master Database - amended'!A23,"") ->  | C23: 87 | D23: All Devices | E23: 9 | F23: Airmar | G23: Gillnet pinger | H23: Automatic | I23: https://www.airmar.com/Catalog/Commercial-Scientific/Acoustic-Deterrents/PINGER-10 | J23: https://www.airmar.com/Catalog/Commercial-Scientific/Acoustic-Deterrents/PINGER-10 | K23: Bycatch (gillnets) | L23: 132 | M23: 200 | N23: 191 | O23: 10 | P23: 10 | Q23: 10 kHz | R23: 4000 | S23: 4000 | T23: Pulse duration 300 ms with repeat intervals of 4 s. | U23: Intermittent | V23: 300 | W23: 300 | X23: Pulse duration 300 ms with repeat intervals of 4 s. | Y23: No Data Available | Z23: No Data Available | AA23: No Data Available | AB23: No Data Available | AC23: No Data Available | AD23: No Data Available | AE23: No Data Available | AF23: No Data Available | AG23: Harbour Porpoise | AH23: No Data Available | AI23: No Data Available | AJ23: No Data Available | AK23: No Data Available | AL23: No Evidence Available | AN23: No Comments | AO23: NA
A24: 21 | B24: =IF(D24='Device Selector'!$B$6,'Master Database - amended'!A24,"") ->  | C24: 91 | D24: Low Frequency Cetaceans | E24: 10 | F24: Aquatec Group | G24: Aquamark 848 | H24: Automatic | I24: http://www.aquatecgroup.com/11-products/25-aquamark-840 | J24: http://www.aquatecgroup.com/11-products/25-aquamark-840 | K24: Bycatch (gillnets) | L24: 165 | M24: 168 | N24: No Data Available | O24: 5 | P24: 30 | Q24: 5 - 30 kHz (with harmonic energy up to 120 kHz). | R24: No Data Available | S24: No Data Available | T24: Four alternative signals: general deterrence 'Aquamark' chirp repertoire; pseudo-clicks for echo-location confusion; pseudo-noise for echo-location masking; random composite of all modes. | U24: Intermittent | V24: No Data Available | W24: No Data Available | X24: No Data Available | Y24: 1: Low confidence | Z24: Y | AA24: 1: Low confidence | AB24: Y | AC24: 2: Medium confidence | AD24: Y | AE24: 2: Medium confidence | AF24: Y | AG24: Marine Mammals | AH24: H: >1000 m | AI24: H: >1000 m | AJ24: H: >1000 m | AK24: H: >1000 m | AL24: http://www.ascobans.org/sites/default/files/document/Dawson_To-ping-or-not_ESR-2013.pdf https://infrastructure.planninginspectorate.gov.uk/wp-content/ipc/uploads/projects/EN010049/EN010049-001947-Tidal%20lagoon%20(Swansea%20Bay)%20Plc%201.pdf https://www.carbontrust.com/media/675291/orjip-add-study-final-report-stage-1-phase-2.pdf | AN24: ORJIP review concludes that, as no information available – due to lack of response this is not recommended for use during OWF construction. | AO24: NA
A25: 22 | B25: =IF(D25='Device Selector'!$B$6,'Master Database - amended'!A25,"") ->  | C25: 94 | D25: High Frequency Cetaceans | E25: 10 | F25: Aquatec Group | G25: Aquamark 848 | H25: Automatic | I25: http://www.aquatecgroup.com/11-products/25-aquamark-840 | J25: http://www.aquatecgroup.com/11-products/25-aquamark-840 | K25: Bycatch (gillnets) | L25: 165 | M25: 168 | N25: No Data Available | O25: 5 | P25: 30 | Q25: 5 - 30 kHz (with harmonic energy up to 120 kHz). | R25: No Data Available | S25: No Data Available | T25: Four alternative signals: general deterrence 'Aquamark' chirp repertoire; pseudo-clicks for echo-location confusion; pseudo-noise for echo-location masking; random composite of all modes. | U25: Intermittent | V25: No Data Available | W25: No Data Available | X25: No Data Available | Y25: 1: Low confidence | Z25: Y | AA25: 1: Low confidence | AB25: Y | AC25: 2: Medium confidence | AD25: Y | AE25: 2: Medium confidence | AF25: Y | AG25: Marine Mammals | AH25: >1000m | AI25: >1000m | AJ25: >1000m | AK25: >1000m | AL25: http://www.ascobans.org/sites/default/files/document/Dawson_To-ping-or-not_ESR-2013.pdf https://infrastructure.planninginspectorate.gov.uk/wp-content/ipc/uploads/projects/EN010049/EN010049-001947-Tidal%20lagoon%20(Swansea%20Bay)%20Plc%201.pdf https://www.carbontrust.com/media/675291/orjip-add-study-final-report-stage-1-phase-2.pdf | AN25: ORJIP review concludes that, as no information available – due to lack of response this is not recommended for use during OWF construction. | AO25: NA
A26: 23 | B26: =IF(D26='Device Selector'!$B$6,'Master Database - amended'!A26,"") -> 23 | C26: 97 | D26: Very High Frequency Cetaceans | E26: 10 | F26: Aquatec Group | G26: Aquamark 848 | H26: Automatic | I26: http://www.aquatecgroup.com/11-products/25-aquamark-840 | J26: http://www.aquatecgroup.com/11-products/25-aquamark-840 | K26: Bycatch (gillnets) | L26: 165 | M26: 168 | N26: No Data Available | O26: 5 | P26: 30 | Q26: 5 - 30 kHz (with harmonic energy up to 120 kHz). | R26: No Data Available | S26: No Data Available | T26: Four alternative signals: general deterrence 'Aquamark' chirp repertoire; pseudo-clicks for echo-location confusion; pseudo-noise for echo-location masking; random composite of all modes. | U26: Intermittent | V26: No Data Available | W26: No Data Available | X26: No Data Available | Y26: 1: Low confidence | Z26: Y | AA26: 1: Low confidence | AB26: Y | AC26: 2: Medium confidence | AD26: Y | AE26: 2: Medium confidence | AF26: Y | AG26: Marine Mammals | AH26: >1000m | AI26: >1000m | AJ26: >1000m | AK26: >1000m | AL26: http://www.ascobans.org/sites/default/files/document/Dawson_To-ping-or-not_ESR-2013.pdf https://infrastructure.planninginspectorate.gov.uk/wp-content/ipc/uploads/projects/EN010049/EN010049-001947-Tidal%20lagoon%20(Swansea%20Bay)%20Plc%201.pdf https://www.carbontrust.com/media/675291/orjip-add-study-final-report-stage-1-phase-2.pdf | AN26: ORJIP review concludes that, as no information available – due to lack of response this is not recommended for use during OWF construction. | AO26: NA
A27: 24 | B27: =IF(D27='Device Selector'!$B$6,'Master Database - amended'!A27,"") ->  | C27: 108 | D27: Pinnipeds | E27: 10 | F27: Aquatec Group | G27: Aquamark 848 | H27: Automatic | I27: http://www.aquatecgroup.com/11-products/25-aquamark-840 | J27: http://www.aquatecgroup.com/11-products/25-aquamark-840 | K27: Bycatch (gillnets) | L27: 165 | M27: 168 | N27: No Data Available | O27: 5 | P27: 30 | Q27: 5 - 30 kHz (with harmonic energy up to 120 kHz). | R27: No Data Available | S27: No Data Available | T27: Four alternative signals: general deterrence 'Aquamark' chirp repertoire; pseudo-clicks for echo-location confusion; pseudo-noise for echo-location masking; random composite of all modes. | U27: Intermittent | V27: No Data Available | W27: No Data Available | X27: No Data Available | Y27: 1: Low confidence | Z27: Y | AA27: 1: Low confidence | AB27: Y | AC27: 2: Medium confidence | AD27: Y | AE27: 2: Medium confidence | AF27: Y | AG27: Marine Mammals | AH27: >1000m | AI27: >1000m | AJ27: >1000m | AK27: >1000m | AL27: http://www.ascobans.org/sites/default/files/document/Dawson_To-ping-or-not_ESR-2013.pdf https://infrastructure.planninginspectorate.gov.uk/wp-content/ipc/uploads/projects/EN010049/EN010049-001947-Tidal%20lagoon%20(Swansea%20Bay)%20Plc%201.pdf https://www.carbontrust.com/media/675291/orjip-add-study-final-report-stage-1-phase-2.pdf | AN27: ORJIP review concludes that, as no information available – due to lack of response this is not recommended for use during OWF construction. | AO27: NA
A28: 25 | B28: =IF(D28='Device Selector'!$B$6,'Master Database - amended'!A28,"") ->  | C28: 111 | D28: All Species | E28: 10 | F28: Aquatec Group | G28: Aquamark 848 | H28: Automatic | I28: http://www.aquatecgroup.com/11-products/25-aquamark-840 | J28: http://www.aquatecgroup.com/11-products/25-aquamark-840 | K28: Bycatch (gillnets) | L28: 165 | M28: 168 | N28: No Data Available | O28: 5 | P28: 30 | Q28: 5 - 30 kHz (with harmonic energy up to 120 kHz). | R28: No Data Available | S28: No Data Available | T28: Four alternative signals: general deterrence 'Aquamark' chirp repertoire; pseudo-clicks for echo-location confusion; pseudo-noise for echo-location masking; random composite of all modes. | U28: Intermittent | V28: No Data Available | W28: No Data Available | X28: No Data Available | Y28: 1: Low confidence | Z28: Y | AA28: 1: Low confidence | AB28: Y | AC28: 2: Medium confidence | AD28: Y | AE28: 2: Medium confidence | AF28: Y | AG28: Marine Mammals | AH28: >1000m | AI28: >1000m | AJ28: >1000m | AK28: >1000m | AL28: http://www.ascobans.org/sites/default/files/document/Dawson_To-ping-or-not_ESR-2013.pdf https://infrastructure.planninginspectorate.gov.uk/wp-content/ipc/uploads/projects/EN010049/EN010049-001947-Tidal%20lagoon%20(Swansea%20Bay)%20Plc%201.pdf https://www.carbontrust.com/media/675291/orjip-add-study-final-report-stage-1-phase-2.pdf | AN28: ORJIP review concludes that, as no information available – due to lack of response this is not recommended for use during OWF construction. | AO28: NA
A29: 26 | B29: =IF(D29='Device Selector'!$B$6,'Master Database - amended'!A29,"") ->  | C29: 115 | D29: All Devices | E29: 10 | F29: Aquatec Group | G29: Aquamark 848 | H29: Automatic | I29: http://www.aquatecgroup.com/11-products/25-aquamark-840 | J29: http://www.aquatecgroup.com/11-products/25-aquamark-840 | K29: Bycatch (gillnets) | L29: 165 | M29: 168 | N29: No Data Available | O29: 5 | P29: 30 | Q29: 5 - 30 kHz (with harmonic energy up to 120 kHz). | R29: No Data Available | S29: No Data Available | T29: Four alternative signals: general deterrence 'Aquamark' chirp repertoire; pseudo-clicks for echo-location confusion; pseudo-noise for echo-location masking; random composite of all modes. | U29: Intermittent | V29: No Data Available | W29: No Data Available | X29: No Data Available | Y29: 1: Low confidence | Z29: Y | AA29: 1: Low confidence | AB29: Y | AC29: 2: Medium confidence | AD29: Y | AE29: 2: Medium confidence | AF29: Y | AG29: Marine Mammals | AH29: >1000m | AI29: >1000m | AJ29: >1000m | AK29: >1000m | AL29: http://www.ascobans.org/sites/default/files/document/Dawson_To-ping-or-not_ESR-2013.pdf https://infrastructure.planninginspectorate.gov.uk/wp-content/ipc/uploads/projects/EN010049/EN010049-001947-Tidal%20lagoon%20(Swansea%20Bay)%20Plc%201.pdf https://www.carbontrust.com/media/675291/orjip-add-study-final-report-stage-1-phase-2.pdf | AN29: ORJIP review concludes that, as no information available – due to lack of response this is not recommended for use during OWF construction. | AO29: NA
A30: 27 | B30: =IF(D30='Device Selector'!$B$6,'Master Database - amended'!A30,"") ->  | C30: 126 | D30: High Frequency Cetaceans | E30: 11a | F30: Aquatec Group | G30: Aquamark 100 | H30: Automatic | I30: No manufacturers website available | J30: No manufacturers website available | K30: Bycatch (gillnets) | L30: 145 | M30: 148 | N30: 140 | O30: 20 | P30: 160 | Q30: 20 - 160 kHz | R30: 5000 | S30: 30000 | T30: Signal duration of 200 – 300 ms, with a signal interval of 5 – 30 s (Dawson et al. 2013). | U30: Intermittent | V30: 200 | W30: 300 | X30: Signal duration of 200 – 300 ms, with a signal interval of 5 – 30 s (Dawson et al. 2013). | Y30: No Data Available | Z30: No Data Available | AA30: 3: High confidence | AB30: Y | AC30: 3: High confidence | AD30: Y | AE30: 2: Medium confidence | AF30: Y | AG30: Harbour Porpoise | AH30: No Data Available | AI30: No Data Available | AJ30: <500m | AK30: <500m | AL30: https://stecf.jrc.ec.europa.eu/documents/43805/44956/Trials+pinger+spacing+DK+2007.pdf https://www.sciencedirect.com/science/article/pii/S0165783607003669 http://bycatch.org/articles/can-acoustic-deterrent-devices-reduce-catch-cornish-inshore-gillnet-fishery https://www.researchgate.net/publication/286890618_An_investigation_of_acoustic_deterrent_devices_to_reduce_cetacean_bycatch_in_an_inshore_set_net_fishery http://www.ascobans.org/sites/default/files/document/Dawson_To-ping-or-not_ESR-2013.pdf https://infrastructure.planninginspectorate.gov.uk/wp-content/ipc/uploads/projects/EN010049/EN010049-001947-Tidal%20lagoon%20(Swansea%20Bay)%20Plc%201.pdf | AN30: ABPmer conclude that the use of AQUAmark 100 is considered a viable mitigation option to trial during initial turbine operation at the tidal lagoon given that the device is unlikely to cause wide-scale displacement and has had proven effectiveness in harbour porpoise field trials. Given the predicted relatively small area of avoidance this could be used on a permanent basis without the need for a triggering system. | AO30: NA
A31: 28 | B31: =IF(D31='Device Selector'!$B$6,'Master Database - amended'!A31,"") -> 28 | C31: 129 | D31: Very High Frequency Cetaceans | E31: 11a | F31: Aquatec Group | G31: Aquamark 100 | H31: Automatic | I31: No manufacturers website available | J31: No manufacturers website available | K31: Bycatch (gillnets) | L31: 145 | M31: 148 | N31: 140 | O31: 20 | P31: 160 | Q31: 20 - 160 kHz | R31: 5000 | S31: 30000 | T31: Signal duration of 200 – 300 ms, with a signal interval of 5 – 30 s (Dawson et al. 2013). | U31: Intermittent | V31: 200 | W31: 300 | X31: Signal duration of 200 – 300 ms, with a signal interval of 5 – 30 s (Dawson et al. 2013). | Y31: No Data Available | Z31: No Data Available | AA31: 3: High confidence | AB31: Y | AC31: 3: High confidence | AD31: Y | AE31: 2: Medium confidence | AF31: Y | AG31: Harbour Porpoise | AH31: No Data Available | AI31: No Data Available | AJ31: <500m | AK31: <500m | AL31: https://stecf.jrc.ec.europa.eu/documents/43805/44956/Trials+pinger+spacing+DK+2007.pdf https://www.sciencedirect.com/science/article/pii/S0165783607003669 http://bycatch.org/articles/can-acoustic-deterrent-devices-reduce-catch-cornish-inshore-gillnet-fishery https://www.researchgate.net/publication/286890618_An_investigation_of_acoustic_deterrent_devices_to_reduce_cetacean_bycatch_in_an_inshore_set_net_fishery http://www.ascobans.org/sites/default/files/document/Dawson_To-ping-or-not_ESR-2013.pdf https://infrastructure.planninginspectorate.gov.uk/wp-content/ipc/uploads/projects/EN010049/EN010049-001947-Tidal%20lagoon%20(Swansea%20Bay)%20Plc%201.pdf | AN31: ABPmer conclude that the use of AQUAmark 100 is considered a viable mitigation option to trial during initial turbine operation at the tidal lagoon given that the device is unlikely to cause wide-scale displacement and has had proven effectiveness in harbour porpoise field trials. Given the predicted relatively small area of avoidance this could be used on a permanent basis without the need for a triggering system. | AO31: NA
A32: 29 | B32: =IF(D32='Device Selector'!$B$6,'Master Database - amended'!A32,"") ->  | C32: 139 | D32: Pinnipeds | E32: 11a | F32: Aquatec Group | G32: Aquamark 100 | H32: Automatic | I32: No manufacturers website available | J32: No manufacturers website available | K32: Bycatch (gillnets) | L32: 145 | M32: 148 | N32: 140 | O32: 20 | P32: 160 | Q32: 20 - 160 kHz | R32: 5000 | S32: 30000 | T32: Signal duration of 200 – 300 ms, with a signal interval of 5 – 30 s (Dawson et al. 2013). | U32: Intermittent | V32: 200 | W32: 300 | X32: Signal duration of 200 – 300 ms, with a signal interval of 5 – 30 s (Dawson et al. 2013). | Y32: No Data Available | Z32: No Data Available | AA32: 3: High confidence | AB32: Y | AC32: 3: High confidence | AD32: Y | AE32: 2: Medium confidence | AF32: Y | AG32: Harbour Porpoise | AH32: No Data Available | AI32: No Data Available | AJ32: <500m | AK32: <500m | AL32: https://stecf.jrc.ec.europa.eu/documents/43805/44956/Trials+pinger+spacing+DK+2007.pdf https://www.sciencedirect.com/science/article/pii/S0165783607003669 http://bycatch.org/articles/can-acoustic-deterrent-devices-reduce-catch-cornish-inshore-gillnet-fishery https://www.researchgate.net/publication/286890618_An_investigation_of_acoustic_deterrent_devices_to_reduce_cetacean_bycatch_in_an_inshore_set_net_fishery http://www.ascobans.org/sites/default/files/document/Dawson_To-ping-or-not_ESR-2013.pdf https://infrastructure.planninginspectorate.gov.uk/wp-content/ipc/uploads/projects/EN010049/EN010049-001947-Tidal%20lagoon%20(Swansea%20Bay)%20Plc%201.pdf | AN32: ABPmer conclude that the use of AQUAmark 100 is considered a viable mitigation option to trial during initial turbine operation at the tidal lagoon given that the device is unlikely to cause wide-scale displacement and has had proven effectiveness in harbour porpoise field trials. Given the predicted relatively small area of avoidance this could be used on a permanent basis without the need for a triggering system. | AO32: NA
A33: 30 | B33: =IF(D33='Device Selector'!$B$6,'Master Database - amended'!A33,"") ->  | C33: 142 | D33: All Devices | E33: 11a | F33: Aquatec Group | G33: Aquamark 100 | H33: Automatic | I33: No manufacturers website available | J33: No manufacturers website available | K33: Bycatch (gillnets) | L33: 145 | M33: 148 | N33: 140 | O33: 20 | P33: 160 | Q33: 20 - 160 kHz | R33: 5000 | S33: 30000 | T33: Signal duration of 200 – 300 ms, with a signal interval of 5 – 30 s (Dawson et al. 2013). | U33: Intermittent | V33: 200 | W33: 300 | X33: Signal duration of 200 – 300 ms, with a signal interval of 5 – 30 s (Dawson et al. 2013). | Y33: No Data Available | Z33: No Data Available | AA33: 3: High confidence | AB33: Y | AC33: 3: High confidence | AD33: Y | AE33: 2: Medium confidence | AF33: Y | AG33: Harbour Porpoise | AH33: No Data Available | AI33: No Data Available | AJ33: <500m | AK33: <500m | AL33: https://stecf.jrc.ec.europa.eu/documents/43805/44956/Trials+pinger+spacing+DK+2007.pdf https://www.sciencedirect.com/science/article/pii/S0165783607003669 http://bycatch.org/articles/can-acoustic-deterrent-devices-reduce-catch-cornish-inshore-gillnet-fishery https://www.researchgate.net/publication/286890618_An_investigation_of_acoustic_deterrent_devices_to_reduce_cetacean_bycatch_in_an_inshore_set_net_fishery http://www.ascobans.org/sites/default/files/document/Dawson_To-ping-or-not_ESR-2013.pdf https://infrastructure.planninginspectorate.gov.uk/wp-content/ipc/uploads/projects/EN010049/EN010049-001947-Tidal%20lagoon%20(Swansea%20Bay)%20Plc%201.pdf | AN33: ABPmer conclude that the use of AQUAmark 100 is considered a viable mitigation option to trial during initial turbine operation at the tidal lagoon given that the device is unlikely to cause wide-scale displacement and has had proven effectiveness in harbour porpoise field trials. Given the predicted relatively small area of avoidance this could be used on a permanent basis without the need for a triggering system. | AO33: NA
A34: 31 | B34: =IF(D34='Device Selector'!$B$6,'Master Database - amended'!A34,"") ->  | C34: 145 | D34: High Frequency Cetaceans | E34: 11b | F34: Aquatec Group | G34: Aquamark 200 | H34: Automatic | I34: No manufacturers website available | J34: No manufacturers website available | K34: Bycatch (gillnets) | L34: 145 | M34: 148 | N34: 140 | O34: 5 | P34: 160 | Q34: 5 - 160 kHz | R34: 4000 | S34: 21000 | T34: Signal duration of 200 – 300 ms, with a signal interval of 4 – 21 s (Dawson et al. 2013). | U34: Intermittent | V34: 200 | W34: 300 | X34: Signal duration of 200 – 300 ms, with a signal interval of 4 – 21 s (Dawson et al. 2013). | Y34: No Data Available | Z34: No Data Available | AA34: 2: Medium confidence | AB34: Y | AC34: 3: High confidence | AD34: Y | AE34: No Data Available | AF34: No Data Available | AG34: Harbour Porpoise [Confidence Score 3] & Hector's Dolphin [Confidence Score 2] | AH34: No Data Available | AI34: No Data Available | AJ34: <500m | AK34: No Data Available | AL34: http://www.ascobans.org/sites/default/files/document/Dawson_To-ping-or-not_ESR-2013.pdf | AN34: No Comments | AO34: NA
A35: 32 | B35: =IF(D35='Device Selector'!$B$6,'Master Database - amended'!A35,"") -> 32 | C35: 148 | D35: Very High Frequency Cetaceans | E35: 11b | F35: Aquatec Group | G35: Aquamark 200 | H35: Automatic | I35: No manufacturers website available | J35: No manufacturers website available | K35: Bycatch (gillnets) | L35: 145 | M35: 148 | N35: 140 | O35: 5 | P35: 160 | Q35: 5 - 160 kHz | R35: 4000 | S35: 21000 | T35: Signal duration of 200 – 300 ms, with a signal interval of 4 – 21 s (Dawson et al. 2013). | U35: Intermittent | V35: 200 | W35: 300 | X35: Signal duration of 200 – 300 ms, with a signal interval of 4 – 21 s (Dawson et al. 2013). | Y35: No Data Available | Z35: No Data Available | AA35: 2: Medium confidence | AB35: Y | AC35: 3: High confidence | AD35: Y | AE35: No Data Available | AF35: No Data Available | AG35: Harbour Porpoise [Confidence Score 3] & Hector's Dolphin [Confidence Score 2] | AH35: No Data Available | AI35: No Data Available | AJ35: <500m | AK35: No Data Available | AL35: http://www.ascobans.org/sites/default/files/document/Dawson_To-ping-or-not_ESR-2013.pdf | AN35: No Comments | AO35: NA
A36: 33 | B36: =IF(D36='Device Selector'!$B$6,'Master Database - amended'!A36,"") ->  | D36: All Devices | E36: 11b | F36: Aquatec Group | G36: Aquamark 200 | H36: Automatic | I36: No manufacturers website available | J36: No manufacturers website available | K36: Bycatch (gillnets) | L36: 145 | M36: 148 | N36: 140 | O36: 5 | P36: 160 | Q36: 5 - 160 kHz | R36: 4000 | S36: 21000 | T36: Signal duration of 200 – 300 ms, with a signal interval of 4 – 21 s (Dawson et al. 2013). | U36: Intermittent | V36: 200 | W36: 300 | X36: Signal duration of 200 – 300 ms, with a signal interval of 4 – 21 s (Dawson et al. 2013). | Y36: No Data Available | Z36: No Data Available | AA36: 2: Medium confidence | AB36: Y | AC36: 3: High confidence | AD36: Y | AE36: No Data Available | AF36: No Data Available | AG36: Harbour Porpoise [Confidence Score 3] & Hector's Dolphin [Confidence Score 2] | AH36: No Data Available | AI36: No Data Available | AJ36: <500m | AK36: No Data Available | AL36: http://www.ascobans.org/sites/default/files/document/Dawson_To-ping-or-not_ESR-2013.pdf | AN36: No Comments | AO36: NA
A37: 34 | B37: =IF(D37='Device Selector'!$B$6,'Master Database - amended'!A37,"") ->  | D37: High Frequency Cetaceans | E37: 11c | F37: Aquatec Group | G37: Aquamark 210 | H37: Automatic | I37: No manufacturers website available | J37: No manufacturers website available | K37: Bycatch (gillnets) | L37: 150 | M37: 153 | N37: 145 | O37: 5 | P37: 160 | Q37: 5 - 160 kHz | R37: 5000 | S37: 30000 | T37: Signal duration of 50 – 300 ms, with a signal interval of 5 – 30 s (Dawson et al. 2013). | U37: Intermittent | V37: 50 | W37: 300 | X37: Signal duration of 50 – 300 ms, with a signal interval of 5 – 30 s (Dawson et al. 2013). | Y37: No Data Available | Z37: No Data Available | AA37: 3: High confidence | AB37: Y | AC37: No Data Available | AD37: No Data Available | AE37: No Data Available | AF37: No Data Available | AG37: Dolphins | AH37: No Data Available | AI37: No Data Available | AJ37: No Data Available | AK37: No Data Available | AL37: http://www.int-res.com/articles/esr2008/5/n005p301.pdf | AN37: No Comments | AO37: NA
A38: 35 | B38: =IF(D38='Device Selector'!$B$6,'Master Database - amended'!A38,"") ->  | D38: All Devices | E38: 11c | F38: Aquatec Group | G38: Aquamark 210 | H38: Automatic | I38: No manufacturers website available | J38: No manufacturers website available | K38: Bycatch (gillnets) | L38: 150 | M38: 153 | N38: 145 | O38: 5 | P38: 160 | Q38: 5 - 160 kHz | R38: 5000 | S38: 30000 | T38: Signal duration of 50 – 300 ms, with a signal interval of 5 – 30 s (Dawson et al. 2013). | U38: Intermittent | V38: 50 | W38: 300 | X38: Signal duration of 50 – 300 ms, with a signal interval of 5 – 30 s (Dawson et al. 2013). | Y38: No Data Available | Z38: No Data Available | AA38: 3: High confidence | AB38: Y | AC38: No Data Available | AD38: No Data Available | AE38: No Data Available | AF38: No Data Available | AG38: Dolphins | AH38: No Data Available | AI38: No Data Available | AJ38: No Data Available | AK38: No Data Available | AL38: http://www.int-res.com/articles/esr2008/5/n005p301.pdf | AN38: No Comments | AO38: NA
A39: 36 | B39: =IF(D39='Device Selector'!$B$6,'Master Database - amended'!A39,"") ->  | D39: All Devices | E39: 11d | F39: Aquatec Group | G39: Aquamark 300 | H39: Automatic | I39: No manufacturers website available | J39: No manufacturers website available | K39: Bycatch (gillnets) | L39: 132 | M39: 135 | N39: 127 | O39: 10 | P39: 10 | Q39: 10 kHz | R39: 4000 | S39: 4000 | T39: Signal duration of 300 ms, with a signal interval of 4 s (Dawson et al. 2013). | U39: Intermittent | V39: 300 | W39: 300 | X39: Signal duration of 300 ms, with a signal interval of 4 s (Dawson et al. 2013). | Y39: No Data Available | Z39: No Data Available | AA39: No Data Available | AC39: 3: High confidence | AD39: No Data Available | AE39: No Data Available | AF39: No Data Available | AG39: Harbour Porpoise | AH39: No Data Available | AI39: No Data Available | AJ39: No Data Available | AK39: No Data Available | AL39: No Evidence Available | AN39: No Comments | AO39: NA
A40: 37 | B40: =IF(D40='Device Selector'!$B$6,'Master Database - amended'!A40,"") ->  | D40: High Frequency Cetaceans | E40: 12 | F40: IFREMER / IXTrawl | G40: Cetasaver V.03 | H40: No Data Available | I40: No manufacturers website available | J40: No manufacturers website available | K40: Bycatch (gillnets) | L40: 165 | M40: 168 | N40: 165 | O40: 30 | P40: 150 | Q40: Signal 1: Frequency modulated signal between 30 - 150 kHz. Signal 2: Click train at 90 kHz. | R40: 2000 | S40: 5500 | T40: Signal 1: repeated at a minimum of every 2 seconds, maximum of 5.5 seconds with an average of 4 seconds. Signal 2: Click train of 0.1 second duration, with a constant click time and repetition. | U40: Intermittent | V40: 100 | W40: 1000 | X40: Signal 1: 1 second duration (random time and frequency organised sweeps of base square wave). Signal 2: Click train of 0.1 second duration, with a constant click time and repetition. | Y40: No Data Available | Z40: No Data Available | AA40: 3: High confidence | AB40: Y | AC40: No Data Available | AD40: No Data Available | AE40: No Data Available | AF40: No Data Available | AG40: Harbour Porpoise and Dolphins | AH40: No Data Available | AI40: No Data Available | AJ40: No Data Available | AK40: No Data Available | AL40: http://www.iqoe.org/library/9639 https://www.environment.gov.au/system/files/resources/c2bdc649-02a2-49c2-9c0f-74d0c4a65b27/files/technical-review-bycatch-mitigation-devices.pdf | AN40: No Comments | AO40: NA
A41: 38 | B41: =IF(D41='Device Selector'!$B$6,'Master Database - amended'!A41,"") ->  | D41: All Devices | E41: 12 | F41: IFREMER / IXTrawl | G41: Cetasaver V.03 | H41: No Data Available | I41: No manufacturers website available | J41: No manufacturers website available | K41: Bycatch (gillnets) | L41: 165 | M41: 168 | N41: 165 | O41: 30 | P41: 150 | Q41: Signal 1: Frequency modulated signal between 30 - 150 kHz. Signal 2: Click train at 90 kHz. | R41: 2000 | S41: 5500 | T41: Signal 1: repeated at a minimum of every 2 seconds, maximum of 5.5 seconds with an average of 4 seconds. Signal 2: Click train of 0.1 second duration, with a constant click time and repetition. | U41: Intermittent | V41: 100 | W41: 1000 | X41: Signal 1: 1 second duration (random time and frequency organised sweeps of base square wave). Signal 2: Click train of 0.1 second duration, with a constant click time and repetition. | Y41: No Data Available | Z41: No Data Available | AA41: 3: High confidence | AB41: Y | AC41: No Data Available | AD41: No Data Available | AE41: No Data Available | AF41: No Data Available | AG41: Harbour Porpoise and Dolphins | AH41: No Data Available | AI41: No Data Available | AJ41: No Data Available | AK41: No Data Available | AL41: http://www.iqoe.org/library/9639 https://www.environment.gov.au/system/files/resources/c2bdc649-02a2-49c2-9c0f-74d0c4a65b27/files/technical-review-bycatch-mitigation-devices.pdf | AN41: No Comments | AO41: NA
A42: 39 | B42: =IF(D42='Device Selector'!$B$6,'Master Database - amended'!A42,"") ->  | D42: High Frequency Cetaceans | E42: 13a | F42: STM products | G42: Dolphin Deterrent Device (DDD) 03L | H42: Automatic | I42: http://www.stm-products.com/en/products/fishing-technology/ | J42: http://www.stm-products.com/en/products/fishing-technology/ | K42: Bycatch (gillnets) | L42: 165 | M42: 168 | N42: 165 | O42: 5 | P42: 500 | Q42: 5 - 500 kHz (random). | R42: 150000 | S42: 150000 | T42: Average duration between each pulse is 150 s. | U42: Intermittent | V42: 500 | W42: 9000 | X42: Pulse duration can be random or vary between 500 ms and 9000 ms. | Y42: No Data Available | Z42: No Data Available | AA42: 3: High confidence | AB42: N | AC42: 2: Medium confidence | AD42: Y | AE42: No Data Available | AF42: No Data Available | AG42: Dolphins | AH42: No Data Available | AI42: >1000m | AJ42: >1000m | AK42: No Data Available | AL42: https://www.carbontrust.com/media/675291/orjip-add-study-final-report-stage-1-phase-2.pdf | AN42: ORJIP review concludes that the DDD and DDD03 are not designed to have the control functions necessary for OWF applications. | AO42: NA
A43: 40 | B43: =IF(D43='Device Selector'!$B$6,'Master Database - amended'!A43,"") -> 40 | D43: Very High Frequency Cetaceans | E43: 13a | F43: STM products | G43: Dolphin Deterrent Device (DDD) 03L | H43: Automatic | I43: http://www.stm-products.com/en/products/fishing-technology/ | J43: http://www.stm-products.com/en/products/fishing-technology/ | K43: Bycatch (gillnets) | L43: 165 | M43: 168 | N43: 165 | O43: 5 | P43: 500 | Q43: 5 - 500 kHz (random). | R43: 150000 | S43: 150000 | T43: Average duration between each pulse is 150 s. | U43: Intermittent | V43: 500 | W43: 9000 | X43: Pulse duration can be random or vary between 500 ms and 9000 ms. | Y43: No Data Available | Z43: No Data Available | AA43: 3: High confidence | AB43: N | AC43: 2: Medium confidence | AD43: Y | AE43: No Data Available | AF43: No Data Available | AG43: Dolphins | AH43: No Data Available | AI43: >1000m | AJ43: >1000m | AK43: No Data Available | AL43: https://www.carbontrust.com/media/675291/orjip-add-study-final-report-stage-1-phase-2.pdf | AN43: ORJIP review concludes that the DDD and DDD03 are not designed to have the control functions necessary for OWF applications. | AO43: NA
A44: 41 | B44: =IF(D44='Device Selector'!$B$6,'Master Database - amended'!A44,"") ->  | D44: All Devices | E44: 13a | F44: STM products | G44: Dolphin Deterrent Device (DDD) 03L | H44: Automatic | I44: http://www.stm-products.com/en/products/fishing-technology/ | J44: http://www.stm-products.com/en/products/fishing-technology/ | K44: Bycatch (gillnets) | L44: 165 | M44: 168 | N44: 165 | O44: 5 | P44: 500 | Q44: 5 - 500 kHz (random). | R44: 150000 | S44: 150000 | T44: Average duration between each pulse is 150 s. | U44: Intermittent | V44: 500 | W44: 9000 | X44: Pulse duration can be random or vary between 500 ms and 9000 ms. | Y44: No Data Available | Z44: No Data Available | AA44: 3: High confidence | AB44: N | AC44: 2: Medium confidence | AD44: Y | AE44: No Data Available | AF44: No Data Available | AG44: Dolphins | AH44: No Data Available | AI44: >1000m | AJ44: >1000m | AK44: No Data Available | AL44: https://www.carbontrust.com/media/675291/orjip-add-study-final-report-stage-1-phase-2.pdf | AN44: ORJIP review concludes that the DDD and DDD03 are not designed to have the control functions necessary for OWF applications. | AO44: NA
A45: 42 | B45: =IF(D45='Device Selector'!$B$6,'Master Database - amended'!A45,"") ->  | D45: High Frequency Cetaceans | E45: 13b | F45: STM products | G45: DDD 03N | H45: Automatic | I45: http://www.stm-products.com/en/products/fishing-technology/ | J45: http://www.stm-products.com/en/products/fishing-technology/ | K45: Bycatch (gillnets) | L45: 165 | M45: 168 | N45: 165 | O45: 5 | P45: 500 | Q45: 5 - 500 kHz (random). | R45: 90000 | S45: 90000 | T45: Average duration between each pulse is 90 s. | U45: Intermittent | V45: 500 | W45: 9000 | X45: Pulse duration can be random or vary between 500 ms and 9000 ms. | Y45: No Data Available | Z45: No Data Available | AA45: 3: High confidence | AB45: N | AC45: 2: Medium confidence | AD45: Y | AE45: No Data Available | AF45: No Data Available | AG45: Dolphins | AH45: No Data Available | AI45: >1000m | AJ45: >1000m | AK45: No Data Available | AL45: https://www.carbontrust.com/media/675291/orjip-add-study-final-report-stage-1-phase-2.pdf | AN45: ORJIP review concludes that the DDD and DDD03 are not designed to have the control functions necessary for OWF applications. | AO45: NA
A46: 43 | B46: =IF(D46='Device Selector'!$B$6,'Master Database - amended'!A46,"") -> 43 | D46: Very High Frequency Cetaceans | E46: 13b | F46: STM products | G46: DDD 03N | H46: Automatic | I46: http://www.stm-products.com/en/products/fishing-technology/ | J46: http://www.stm-products.com/en/products/fishing-technology/ | K46: Bycatch (gillnets) | L46: 165 | M46: 168 | N46: 165 | O46: 5 | P46: 500 | Q46: 5 - 500 kHz (random). | R46: 90000 | S46: 90000 | T46: Average duration between each pulse is 90 s. | U46: Intermittent | V46: 500 | W46: 9000 | X46: Pulse duration can be random or vary between 500 ms and 9000 ms. | Y46: No Data Available | Z46: No Data Available | AA46: 3: High confidence | AB46: N | AC46: 2: Medium confidence | AD46: Y | AE46: No Data Available | AF46: No Data Available | AG46: Dolphins | AH46: No Data Available | AI46: >1000m | AJ46: >1000m | AK46: No Data Available | AL46: https://www.carbontrust.com/media/675291/orjip-add-study-final-report-stage-1-phase-2.pdf | AN46: ORJIP review concludes that the DDD and DDD03 are not designed to have the control functions necessary for OWF applications. | AO46: NA
A47: 44 | B47: =IF(D47='Device Selector'!$B$6,'Master Database - amended'!A47,"") ->  | D47: All Devices | E47: 13b | F47: STM products | G47: DDD 03N | H47: Automatic | I47: http://www.stm-products.com/en/products/fishing-technology/ | J47: http://www.stm-products.com/en/products/fishing-technology/ | K47: Bycatch (gillnets) | L47: 165 | M47: 168 | N47: 165 | O47: 5 | P47: 500 | Q47: 5 - 500 kHz (random). | R47: 90000 | S47: 90000 | T47: Average duration between each pulse is 90 s. | U47: Intermittent | V47: 500 | W47: 9000 | X47: Pulse duration can be random or vary between 500 ms and 9000 ms. | Y47: No Data Available | Z47: No Data Available | AA47: 3: High confidence | AB47: N | AC47: 2: Medium confidence | AD47: Y | AE47: No Data Available | AF47: No Data Available | AG47: Dolphins | AH47: No Data Available | AI47: >1000m | AJ47: >1000m | AK47: No Data Available | AL47: https://www.carbontrust.com/media/675291/orjip-add-study-final-report-stage-1-phase-2.pdf | AN47: ORJIP review concludes that the DDD and DDD03 are not designed to have the control functions necessary for OWF applications. | AO47: NA
A48: 45 | B48: =IF(D48='Device Selector'!$B$6,'Master Database - amended'!A48,"") ->  | D48: High Frequency Cetaceans | E48: 13c | F48: STM products | G48: DDD 03H | H48: Automatic | I48: http://www.stm-products.com/en/products/fishing-technology/ | J48: http://www.stm-products.com/en/products/fishing-technology/ | K48: Bycatch (gillnets) | L48: 165 | M48: 168 | N48: 165 | O48: 5 | P48: 500 | Q48: 5 - 500 kHz (random). | R48: 40000 | S48: 40000 | T48: Average duration between each pulse is 40 s. | U48: Intermittent | V48: 500 | W48: 9000 | X48: Pulse duration can be random or vary between 500 ms and 9000 ms. | Y48: No Data Available | Z48: No Data Available | AA48: 3: High confidence | AB48: N | AC48: 2: Medium confidence | AD48: Y | AE48: No Data Available | AF48: No Data Available | AG48: Dolphins | AH48: No Data Available | AI48: >1000m | AJ48: >1000m | AK48: No Data Available | AL48: https://www.carbontrust.com/media/675291/orjip-add-study-final-report-stage-1-phase-2.pdf | AN48: ORJIP review concludes that the DDD and DDD03 are not designed to have the control functions necessary for OWF applications. | AO48: NA
A49: 46 | B49: =IF(D49='Device Selector'!$B$6,'Master Database - amended'!A49,"") -> 46 | D49: Very High Frequency Cetaceans | E49: 13c | F49: STM products | G49: DDD 03H | H49: Automatic | I49: http://www.stm-products.com/en/products/fishing-technology/ | J49: http://www.stm-products.com/en/products/fishing-technology/ | K49: Bycatch (gillnets) | L49: 165 | M49: 168 | N49: 165 | O49: 5 | P49: 500 | Q49: 5 - 500 kHz (random). | R49: 40000 | S49: 40000 | T49: Average duration between each pulse is 40 s. | U49: Intermittent | V49: 500 | W49: 9000 | X49: Pulse duration can be random or vary between 500 ms and 9000 ms. | Y49: No Data Available | Z49: No Data Available | AA49: 3: High confidence | AB49: N | AC49: 2: Medium confidence | AD49: Y | AE49: No Data Available | AF49: No Data Available | AG49: Dolphins | AH49: No Data Available | AI49: >1000m | AJ49: >1000m | AK49: No Data Available | AL49: https://www.carbontrust.com/media/675291/orjip-add-study-final-report-stage-1-phase-2.pdf | AN49: ORJIP review concludes that the DDD and DDD03 are not designed to have the control functions necessary for OWF applications. | AO49: NA
A50: 47 | B50: =IF(D50='Device Selector'!$B$6,'Master Database - amended'!A50,"") ->  | D50: All Devices | E50: 13c | F50: STM products | G50: DDD 03H | H50: Automatic | I50: http://www.stm-products.com/en/products/fishing-technology/ | J50: http://www.stm-products.com/en/products/fishing-technology/ | K50: Bycatch (gillnets) | L50: 165 | M50: 168 | N50: 165 | O50: 5 | P50: 500 | Q50: 5 - 500 kHz (random). | R50: 40000 | S50: 40000 | T50: Average duration between each pulse is 40 s. | U50: Intermittent | V50: 500 | W50: 9000 | X50: Pulse duration can be random or vary between 500 ms and 9000 ms. | Y50: No Data Available | Z50: No Data Available | AA50: 3: High confidence | AB50: N | AC50: 2: Medium confidence | AD50: Y | AE50: No Data Available | AF50: No Data Available | AG50: Dolphins | AH50: No Data Available | AI50: >1000m | AJ50: >1000m | AK50: No Data Available | AL50: https://www.carbontrust.com/media/675291/orjip-add-study-final-report-stage-1-phase-2.pdf | AN50: ORJIP review concludes that the DDD and DDD03 are not designed to have the control functions necessary for OWF applications. | AO50: NA
A51: 48 | B51: =IF(D51='Device Selector'!$B$6,'Master Database - amended'!A51,"") ->  | D51: High Frequency Cetaceans | E51: 13d | F51: STM products | G51: DDD 03U | H51: Automatic | I51: http://www.stm-products.com/en/products/fishing-technology/ | J51: http://www.stm-products.com/en/products/fishing-technology/ | K51: Bycatch (gillnets) | L51: 165 | M51: 168 | N51: 165 | O51: 5 | P51: 500 | Q51: 5 - 500 kHz (random). | R51: 25000 | S51: 25000 | T51: Average duration between each pulse is 25 s. | U51: Intermittent | V51: 500 | W51: 9000 | X51: Pulse duration can be random or vary between 500 ms and 9000 ms. | Y51: No Data Available | Z51: No Data Available | AA51: 3: High confidence | AB51: N | AC51: 2: Medium confidence | AD51: Y | AE51: No Data Available | AF51: No Data Available | AG51: Dolphins | AH51: No Data Available | AI51: >1000m | AJ51: >1000m | AK51: No Data Available | AL51: https://www.carbontrust.com/media/675291/orjip-add-study-final-report-stage-1-phase-2.pdf | AN51: ORJIP review concludes that the DDD and DDD03 are not designed to have the control functions necessary for OWF applications. | AO51: NA
A52: 49 | B52: =IF(D52='Device Selector'!$B$6,'Master Database - amended'!A52,"") -> 49 | D52: Very High Frequency Cetaceans | E52: 13c | F52: STM products | G52: DDD 03U | H52: Automatic | I52: http://www.stm-products.com/en/products/fishing-technology/ | J52: http://www.stm-products.com/en/products/fishing-technology/ | K52: Bycatch (gillnets) | L52: 165 | M52: 168 | N52: 165 | O52: 5 | P52: 500 | Q52: 5 - 500 kHz (random). | R52: 25000 | S52: 25000 | T52: Average duration between each pulse is 25 s. | U52: Intermittent | V52: 500 | W52: 9000 | X52: Pulse duration can be random or vary between 500 ms and 9000 ms. | Y52: No Data Available | Z52: No Data Available | AA52: 3: High confidence | AB52: N | AC52: 2: Medium confidence | AD52: Y | AE52: No Data Available | AF52: No Data Available | AG52: Dolphins | AH52: No Data Available | AI52: >1000m | AJ52: >1000m | AK52: No Data Available | AL52: https://www.carbontrust.com/media/675291/orjip-add-study-final-report-stage-1-phase-2.pdf | AN52: ORJIP review concludes that the DDD and DDD03 are not designed to have the control functions necessary for OWF applications. | AO52: NA
A53: 50 | B53: =IF(D53='Device Selector'!$B$6,'Master Database - amended'!A53,"") ->  | D53: All Devices | E53: 13d | F53: STM products | G53: DDD 03U | H53: Automatic | I53: http://www.stm-products.com/en/products/fishing-technology/ | J53: http://www.stm-products.com/en/products/fishing-technology/ | K53: Bycatch (gillnets) | L53: 165 | M53: 168 | N53: 165 | O53: 5 | P53: 500 | Q53: 5 - 500 kHz (random). | R53: 25000 | S53: 25000 | T53: Average duration between each pulse is 25 s. | U53: Intermittent | V53: 500 | W53: 9000 | X53: Pulse duration can be random or vary between 500 ms and 9000 ms. | Y53: No Data Available | Z53: No Data Available | AA53: 3: High confidence | AB53: N | AC53: 2: Medium confidence | AD53: Y | AE53: No Data Available | AF53: No Data Available | AG53: Dolphins | AH53: No Data Available | AI53: >1000m | AJ53: >1000m | AK53: No Data Available | AL53: https://www.carbontrust.com/media/675291/orjip-add-study-final-report-stage-1-phase-2.pdf | AN53: ORJIP review concludes that the DDD and DDD03 are not designed to have the control functions necessary for OWF applications. | AO53: NA
A54: 51 | B54: =IF(D54='Device Selector'!$B$6,'Master Database - amended'!A54,"") ->  | D54: High Frequency Cetaceans | E54: 13e | F54: STM products | G54: Dolphin interactive deterrent (DiD) 01 | H54: Automatic | I54: http://www.stm-products.com/en/products/fishing-technology/ | J54: http://www.stm-products.com/en/products/fishing-technology/ | K54: Bycatch (gillnets) | L54: 165 | M54: 168 | N54: No Data Available | O54: 5 | P54: 500 | Q54: 5 - 500 kHz (random). | R54: No Data Available | S54: No Data Available | T54: Interactive depending on the presence of mammals in it's vicinity. | U54: Intermittent | V54: No Data Available | W54: No Data Available | X54: Interactive depending on the presence of mammals in it's vicinity. | Y54: No Data Available | Z54: No Data Available | AA54: 3: High confidence | AB54: N | AC54: 2: Medium confidence | AD54: Y | AE54: No Data Available | AF54: No Data Available | AG54: Dolphins | AH54: No Data Available | AI54: >1000m | AJ54: >1000m | AK54: No Data Available | AL54: https://www.nature.com/articles/s41598-023-46836-z | AN54: User manual warns: “do not place a DiD01 at less than 600–800 m from another DiD01" | AO54: NA
A55: 52 | B55: =IF(D55='Device Selector'!$B$6,'Master Database - amended'!A55,"") -> 52 | D55: Very High Frequency Cetaceans | E55: 13e | F55: STM products | G55: Dolphin interactive deterrent (DiD) 01 | H55: Automatic | I55: http://www.stm-products.com/en/products/fishing-technology/ | J55: http://www.stm-products.com/en/products/fishing-technology/ | K55: Bycatch (gillnets) | L55: 165 | M55: 168 | N55: No Data Available | O55: 5 | P55: 500 | Q55: 5 - 500 kHz (random). | R55: No Data Available | S55: No Data Available | T55: Interactive depending on the presence of mammals in it's vicinity. | U55: Intermittent | V55: No Data Available | W55: No Data Available | X55: Interactive depending on the presence of mammals in it's vicinity. | Y55: No Data Available | Z55: No Data Available | AA55: 3: High confidence | AB55: N | AC55: 2: Medium confidence | AD55: Y | AE55: No Data Available | AF55: No Data Available | AG55: Dolphins | AH55: No Data Available | AI55: >1000m | AJ55: >1000m | AK55: No Data Available | AL55: https://www.nature.com/articles/s41598-023-46836-z | AN55: User manual warns: “do not place a DiD01 at less than 600–800 m from another DiD01" | AO55: NA
A56: 53 | B56: =IF(D56='Device Selector'!$B$6,'Master Database - amended'!A56,"") ->  | D56: All Devices | E56: 13e | F56: STM products | G56: Dolphin interactive deterrent (DiD) 01 | H56: Automatic | I56: http://www.stm-products.com/en/products/fishing-technology/ | J56: http://www.stm-products.com/en/products/fishing-technology/ | K56: Bycatch (gillnets) | L56: 165 | M56: 168 | N56: No Data Available | O56: 5 | P56: 500 | Q56: 5 - 500 kHz (random). | R56: No Data Available | S56: No Data Available | T56: Interactive depending on the presence of mammals in it's vicinity. | U56: Intermittent | V56: No Data Available | W56: No Data Available | X56: Interactive depending on the presence of mammals in it's vicinity. | Y56: No Data Available | Z56: No Data Available | AA56: 3: High confidence | AB56: Y | AC56: 2: Medium confidence | AD56: Y | AE56: No Data Available | AF56: No Data Available | AG56: Dolphins | AH56: No Data Available | AI56: >1000m | AJ56: >1000m | AK56: No Data Available | AL56: https://www.nature.com/articles/s41598-023-46836-z | AN56: User manual warns: “do not place a DiD01 at less than 600–800 m from another DiD01" | AO56: NA
A57: 54 | B57: =IF(D57='Device Selector'!$B$6,'Master Database - amended'!A57,"") ->  | D57: High Frequency Cetaceans | E57: 14 | F57: Dukane | G57: NetMark 1000 alarm | H57: No Data Available | I57: https://spinoff.nasa.gov/spinoff1997/er1.html | J57: https://spinoff.nasa.gov/spinoff1997/er1.html | K57: Bycatch (gillnets) | L57: 132 | M57: 135 | N57: 127 | O57: 10 | P57: 10 | Q57: 10 kHz | R57: 4000 | S57: 4000 | T57: Pulse interval of 4 s. | U57: Intermittent | V57: 300 | W57: 300 | X57: 300 ms | Y57: No Data Available | Z57: No Data Available | AA57: 2: Medium confidence | AB57: Y | AC57: 3: High confidence | AD57: Y | AE57: No Data Available | AF57: No Data Available | AG57: Harbour Porpoise [Confidence Score 3] & Hector's Dolphin [Confidence Score 2] | AH57: No Data Available | AI57: No Data Available | AJ57: <500m | AK57: No Data Available | AL57: https://www.nature.com/articles/41451 http://www.ascobans.org/sites/default/files/document/Dawson_To-ping-or-not_ESR-2013.pdf https://swfsc.noaa.gov/uploadedFiles/Divisions/PRD/Programs/Coastal_Marine_Mammal/Barlow_Cameron_MMS19.pdf http://www.int-res.com/articles/esr2008/5/n005p301.pdf https://www.researchgate.net/publication/228419119_Will_Harbour_porpoises_Phocoena_phocoena_habituate_to_pingers https://www.researchgate.net/publication/222300489_Behavioral_Responses_of_Bottlenose_Dolphins_Tursiops_truncatus_to_Gillnets_and_Acoustic_Alarms http://www.nrcresearchpress.com/doi/pdfplus/10.1139/f98-162 http://www.nrcresearchpress.com/doi/10.1139/F08-186#.Wplyzq5l-Ul https://www.researchgate.net/publication/285703537_The_effect_of_pingers_on_harbour_porpoise_Phocoena_phocoena_bycatch_and_fishing_effort_in_the_turbot_gill_net_fishery_in_the_Turkish_Black_Sea_coast https://www.rufford.org/files/2-20.12.08%20Detailed%20Final%20Report.pdf http://conservation.govt.nz/Documents/science-and-technical/CSL3071.PDF https://www.researchgate.net/publication/227652806_Reducing_incidental_mortality_of_Franciscana_dolphin_Pontoporia_blainvilei_with_acoustic_warning_devices_attached_to_fishing_nets http://www.gov.scot/Publications/2013/10/7618/4 https://journal.iwc.int/index.php/jcrm/article/view/904 | AN57: In Bordino et al. 2002, although pingers show promise as a management tool for this species, pinniped depredation suggests that higher pinger frequencies will be needed to avoid a “dinner bell” effect. In Wilson and Carter 2013, deployment of off-the-shelf acoustic devices developed for other applications, is shown to be unlikely to be appropriate for a particular tidal-stream site. An AHD is likely to be detectable at ranges far greater than the sphere of influence of an individual turbine or even an entire array. | AO57: NA
A58: 55 | B58: =IF(D58='Device Selector'!$B$6,'Master Database - amended'!A58,"") -> 55 | D58: Very High Frequency Cetaceans | E58: 14 | F58: Dukane | G58: NetMark 1000 alarm | H58: No Data Available | I58: https://spinoff.nasa.gov/spinoff1997/er1.html | J58: https://spinoff.nasa.gov/spinoff1997/er1.html | K58: Bycatch (gillnets) | L58: 132 | M58: 135 | N58: 127 | O58: 10 | P58: 10 | Q58: 10 kHz | R58: 4000 | S58: 4000 | T58: Pulse interval of 4 s. | U58: Intermittent | V58: 300 | W58: 300 | X58: 300 ms | Y58: No Data Available | Z58: No Data Available | AA58: 2: Medium confidence | AB58: Y | AC58: 3: High confidence | AD58: Y | AE58: No Data Available | AF58: No Data Available | AG58: Harbour Porpoise [Confidence Score 3] & Hector's Dolphin [Confidence Score 2] | AH58: No Data Available | AI58: No Data Available | AJ58: <500m | AK58: No Data Available | AL58: https://www.nature.com/articles/41451 http://www.ascobans.org/sites/default/files/document/Dawson_To-ping-or-not_ESR-2013.pdf https://swfsc.noaa.gov/uploadedFiles/Divisions/PRD/Programs/Coastal_Marine_Mammal/Barlow_Cameron_MMS19.pdf http://www.int-res.com/articles/esr2008/5/n005p301.pdf https://www.researchgate.net/publication/228419119_Will_Harbour_porpoises_Phocoena_phocoena_habituate_to_pingers https://www.researchgate.net/publication/222300489_Behavioral_Responses_of_Bottlenose_Dolphins_Tursiops_truncatus_to_Gillnets_and_Acoustic_Alarms http://www.nrcresearchpress.com/doi/pdfplus/10.1139/f98-162 http://www.nrcresearchpress.com/doi/10.1139/F08-186#.Wplyzq5l-Ul https://www.researchgate.net/publication/285703537_The_effect_of_pingers_on_harbour_porpoise_Phocoena_phocoena_bycatch_and_fishing_effort_in_the_turbot_gill_net_fishery_in_the_Turkish_Black_Sea_coast https://www.rufford.org/files/2-20.12.08%20Detailed%20Final%20Report.pdf http://conservation.govt.nz/Documents/science-and-technical/CSL3071.PDF https://www.researchgate.net/publication/227652806_Reducing_incidental_mortality_of_Franciscana_dolphin_Pontoporia_blainvilei_with_acoustic_warning_devices_attached_to_fishing_nets http://www.gov.scot/Publications/2013/10/7618/4 https://journal.iwc.int/index.php/jcrm/article/view/904 | AN58: In Bordino et al. 2002, although pingers show promise as a management tool for this species, pinniped depredation suggests that higher pinger frequencies will be needed to avoid a “dinner bell” effect. In Wilson and Carter 2013, deployment of off-the-shelf acoustic devices developed for other applications, is shown to be unlikely to be appropriate for a particular tidal-stream site. An AHD is likely to be detectable at ranges far greater than the sphere of influence of an individual turbine or even an entire array. | AO58: NA
A59: 56 | B59: =IF(D59='Device Selector'!$B$6,'Master Database - amended'!A59,"") ->  | D59: All Devices | E59: 14 | F59: Dukane | G59: NetMark 1000 alarm | H59: No Data Available | I59: https://spinoff.nasa.gov/spinoff1997/er1.html | J59: https://spinoff.nasa.gov/spinoff1997/er1.html | K59: Bycatch (gillnets) | L59: 132 | M59: 135 | N59: 127 | O59: 10 | P59: 10 | Q59: 10 kHz | R59: 4000 | S59: 4000 | T59: Pulse interval of 4 s. | U59: Intermittent | V59: 300 | W59: 300 | X59: 300 ms | Y59: No Data Available | Z59: No Data Available | AA59: 2: Medium confidence | AB59: Y | AC59: 3: High confidence | AD59: Y | AE59: No Data Available | AF59: No Data Available | AG59: Harbour Porpoise [Confidence Score 3] & Hector's Dolphin [Confidence Score 2] | AH59: No Data Available | AI59: No Data Available | AJ59: <500m | AK59: No Data Available | AL59: https://www.nature.com/articles/41451 http://www.ascobans.org/sites/default/files/document/Dawson_To-ping-or-not_ESR-2013.pdf https://swfsc.noaa.gov/uploadedFiles/Divisions/PRD/Programs/Coastal_Marine_Mammal/Barlow_Cameron_MMS19.pdf http://www.int-res.com/articles/esr2008/5/n005p301.pdf https://www.researchgate.net/publication/228419119_Will_Harbour_porpoises_Phocoena_phocoena_habituate_to_pingers https://www.researchgate.net/publication/222300489_Behavioral_Responses_of_Bottlenose_Dolphins_Tursiops_truncatus_to_Gillnets_and_Acoustic_Alarms http://www.nrcresearchpress.com/doi/pdfplus/10.1139/f98-162 http://www.nrcresearchpress.com/doi/10.1139/F08-186#.Wplyzq5l-Ul https://www.researchgate.net/publication/285703537_The_effect_of_pingers_on_harbour_porpoise_Phocoena_phocoena_bycatch_and_fishing_effort_in_the_turbot_gill_net_fishery_in_the_Turkish_Black_Sea_coast https://www.rufford.org/files/2-20.12.08%20Detailed%20Final%20Report.pdf http://conservation.govt.nz/Documents/science-and-technical/CSL3071.PDF https://www.researchgate.net/publication/227652806_Reducing_incidental_mortality_of_Franciscana_dolphin_Pontoporia_blainvilei_with_acoustic_warning_devices_attached_to_fishing_nets http://www.gov.scot/Publications/2013/10/7618/4 https://journal.iwc.int/index.php/jcrm/article/view/904 | AN59: In Bordino et al. 2002, although pingers show promise as a management tool for this species, pinniped depredation suggests that higher pinger frequencies will be needed to avoid a “dinner bell” effect. In Wilson and Carter 2013, deployment of off-the-shelf acoustic devices developed for other applications, is shown to be unlikely to be appropriate for a particular tidal-stream site. An AHD is likely to be detectable at ranges far greater than the sphere of influence of an individual turbine or even an entire array. | AO59: NA
A60: 57 | B60: =IF(D60='Device Selector'!$B$6,'Master Database - amended'!A60,"") -> 57 | D60: Very High Frequency Cetaceans | E60: 15a | F60: Future Oceans | G60: 10KHz Netguard Porpoise and dolphin pinger | H60: Automatic | I60: https://futureoceans.com/pingers/porpoise-pinger/ | J60: https://futureoceans.com/pingers/porpoise-pinger/ | K60: Bycatch (gillnets) | L60: 132 | M60: 135 | N60: 127 | O60: 10 | P60: 10 | Q60: 10 kHz (includes multiple ultrasonic harmonics). | R60: 4000 | S60: 4000 | T60: Pulse interval 4 s. | U60: Intermittent | V60: 300 | W60: 300 | X60: 300 ms | Y60: No Data Available | Z60: No Data Available | AA60: 3: High confidence | AB60: Y | AC60: No Data Available | AD60: No Data Available | AE60: No Data Available | AG60: Harbour Porpoise | AH60: No Data Available | AI60: No Data Available | AJ60: <500m | AK60: No Data Available | AL60: http://www.int-res.com/articles/esr_oa/n020p271.pdf | AN60: This device is unlikely to be effective for the mitigation of impacts from wind farm piling (for humpback and snubfin dolphins at least).
A61: 58 | B61: =IF(D61='Device Selector'!$B$6,'Master Database - amended'!A61,"") ->  | D61: All Devices | E61: 15a | F61: Future Oceans | G61: 10KHz Netguard Porpoise and dolphin pinger | H61: Automatic | I61: https://futureoceans.com/pingers/porpoise-pinger/ | J61: https://futureoceans.com/pingers/porpoise-pinger/ | K61: Bycatch (gillnets) | L61: 132 | M61: 135 | N61: 127 | O61: 10 | P61: 10 | Q61: 10 kHz (includes multiple ultrasonic harmonics). | R61: 4000 | S61: 4000 | T61: Pulse interval 4 s. | U61: Intermittent | V61: 300 | W61: 300 | X61: 300 ms | Y61: No Data Available | Z61: No Data Available | AA61: 3: High confidence | AB61: Y | AC61: No Data Available | AD61: No Data Available | AE61: No Data Available | AG61: Harbour Porpoise | AH61: No Data Available | AI61: No Data Available | AJ61: <500m | AK61: No Data Available | AL61: http://www.int-res.com/articles/esr_oa/n020p271.pdf | AN61: This device is unlikely to be effective for the mitigation of impacts from wind farm piling (for humpback and snubfin dolphins at least).
A62: 59 | B62: =IF(D62='Device Selector'!$B$6,'Master Database - amended'!A62,"") ->  | D62: High Frequency Cetaceans | E62: 15b | F62: Future Oceans | G62: 60kHz -120kHz Netguard Dolphin Pinger | H62: Automatic | I62: https://futureoceans.com/pingers/dolphin-pinger/ | J62: https://futureoceans.com/pingers/dolphin-pinger/ | K62: Bycatch (gillnets) | L62: 145 | M62: 148 | N62: 140 | O62: 60 | P62: 120 | Q62: 60 kHz-120 kHz | R62: 4000 | S62: 4000 | T62: Pulse interval 4 s. | U62: Intermittent | V62: 300 | W62: 300 | X62: 300 ms | Y62: No Data Available | Z62: No Data Available | AA62: 2: Medium confidence | AB62: Y | AC62: 3: High confidence | AD62: Y | AE62: 3: High confidence | AF62: Y | AG62: Humpback dolphin & snubfin dolphin [Confidence Score 3 and Y], Bottlenose Dolphin [Confidence Score 2 and N]. Harbour porpoise [Confidence score 3 and Y], Grey seal [Confidence score 3 and N] | AH62: No Data Available | AI62: <500m | AJ62: No Data Available | AK62: No Data Available | AL62: http://www.int-res.com/articles/esr_oa/n020p271.pdf https://onlinelibrary.wiley.com/doi/10.1002/aqc.3932 | AN62: Deployment one every 200 metres Effective at deterring harbour porpoises, no effect on grey seal as outside range of audible frequencies (Carlén and Cosentino, 2023) | AO62: NA
A63: 60 | B63: =IF(D63='Device Selector'!$B$6,'Master Database - amended'!A63,"") ->  | D63: All Devices | E63: 15b | F63: Future Oceans | G63: 60kHz -120kHz Netguard Dolphin Pinger | H63: Automatic | I63: https://futureoceans.com/pingers/dolphin-pinger/ | J63: https://futureoceans.com/pingers/dolphin-pinger/ | K63: Bycatch (gillnets) | L63: 145 | M63: 148 | N63: 140 | O63: 60 | P63: 120 | Q63: 60 kHz-120 kHz | R63: 4000 | S63: 4000 | T63: Pulse interval 4 s. | U63: Intermittent | V63: 300 | W63: 300 | X63: 300 ms | Y63: No Data Available | Z63: No Data Available | AA63: 2: Medium confidence | AB63: Y | AC63: 3: High confidence | AD63: Y | AE63: 3: High confidence | AF63: Y | AG63: Humpback dolphin & snubfin dolphin [Confidence Score 3 and Y], Bottlenose Dolphin [Confidence Score 2 and N]. Harbour porpoise [Confidence score 3 and Y], Grey seal [Confidence score 3 and N] | AH63: No Data Available | AI63: <500m | AJ63: No Data Available | AK63: No Data Available | AL63: http://www.int-res.com/articles/esr_oa/n020p271.pdf https://onlinelibrary.wiley.com/doi/10.1002/aqc.3932 | AN63: Deployment one every 200 metres Effective at deterring harbour porpoises, no effect on grey seal as outside range of audible frequencies (Carlén and Cosentino, 2023) | AO63: NA
A64: 61 | B64: =IF(D64='Device Selector'!$B$6,'Master Database - amended'!A64,"") ->  | D64: Low Frequency Cetaceans | E64: 15c | F64: Future Oceans | G64: 3kHz Netguard Whale Pinger | H64: Automatic | I64: https://www.futureoceans.com/our-pingers/ | J64: https://www.futureoceans.com/our-pingers/ | K64: Bycatch (gillnets) | L64: 145 | M64: =L64+3 -> 148 | N64: =ROUNDUP(L64+10*LOG10(W64/1000),0) -> 140 | O64: 3 | P64: 3 | Q64: 3 kHz (± .5 kHz) | R64: 4000 | S64: 4000 | T64: Pulse interval 4 s. | U64: Intermittent | V64: 300 | W64: 300 | X64: 300 ms | Y64: 3: High confidence | Z64: N | AA64: No Data Available | AB64: No Data Available | AC64: No Data Available | AD64: No Data Available | AE64: No Data Available | AF64: No Data Available | AG64: Whales | AH64: <500m | AI64: No Data Available | AJ64: No Data Available | AK64: No Data Available | AL64: http://www.int-res.com/articles/esr_oa/n025p035.pdf | AN64: No Comments | AO64: NA
A65: 62 | B65: =IF(D65='Device Selector'!$B$6,'Master Database - amended'!A65,"") ->  | D65: All Devices | E65: 15c | F65: Future Oceans | G65: 3kHz Netguard Whale Pinger | H65: Automatic | I65: https://www.futureoceans.com/our-pingers/ | J65: https://www.futureoceans.com/our-pingers/ | K65: Bycatch (gillnets) | L65: 145 | M65: =L65+3 -> 148 | N65: =ROUNDUP(L65+10*LOG10(W65/1000),0) -> 140 | O65: 3 | P65: 3 | Q65: 3 kHz (± .5 kHz) | R65: 4000 | S65: 4000 | T65: Pulse interval 4 s. | U65: Intermittent | V65: 300 | W65: 300 | X65: 300 ms | Y65: 3: High confidence | Z65: N | AA65: No Data Available | AB65: No Data Available | AC65: No Data Available | AD65: No Data Available | AE65: No Data Available | AF65: No Data Available | AG65: Whales | AH65: <500m | AI65: No Data Available | AJ65: No Data Available | AK65: No Data Available | AL65: http://www.int-res.com/articles/esr_oa/n025p035.pdf | AN65: No Comments | AO65: NA
A66: 63 | B66: =IF(D66='Device Selector'!$B$6,'Master Database - amended'!A66,"") ->  | D66: High Frequency Cetaceans | E66: 16a | F66: Fishtek Marine | G66: Banana Pinger (50-120) | H66: Automatic | I66: www.fishtekmarine.com | J66: www.fishtekmarine.com | K66: Bycatch (gillnets, trawls) | L66: 148 | M66: 151 | N66: 142 | O66: 50 | P66: 120 | Q66: 50 - 120 kHz (±2 kHz) | R66: 4000 | S66: 12000 | T66: Signal interval of 4 - 12 s. Randomised signal interval and structure. | U66: Intermittent | V66: 300 | W66: 300 | X66: 300 ms | Y66: No Data Available | Z66: No Data Available | AA66: 2: Medium confidence | AB66: Y | AC66: 3: High confidence | AD66: Y | AE66: 3: High confidence | AF66: Y | AG66: Porpoise and Dolphin species | AH66: No Data Available | AI66: <500m | AJ66: <500m | AK66: No Data Available | AL66: BRUNO, C. A., CASERTA, V., SALZERI, P., BONANNO FERRARO, G., PECORARO, F., LUCCHETTI, A., BOITANI, L., & BLASI, M. F. (2021). Acoustic deterrent devices as mitigation tool to prevent dolphin-fishery interactions in the Aeolian Archipelago (Southern Tyrrhenian Sea, Italy). Mediterranean Marine Science, 22(2), 408–421. https://doi.org/10.12681/mms.23129 André Moan, Arne Bjørge, Pingers reduce harbour porpoise bycatch in Norwegian gillnet fisheries, with little impact on day-to-day fishing operations, Fisheries Research, Volume 259, 2023, 106564, ISSN 0165-7836, https://doi.org/10.1016/j.fishres.2022.106564. MIND THE GAP - Pinger spacing and sound levels influence bycatch-rates of harbour porpoises (2024) Kindt-Larsen, L., Brooks, M.E., Søgaard., M., Noak, T., Glemarec. G. In Prep Vella, A., 2016. Resolving bottlenose dolphin-fisheries association in Maltese waters, central Mediterranean, CIESM Congress, Kiel Article 0499. Crosby A., Tregenza N. & Williams R. (2013) The Banana Pinger Trial: investigation into the Fishtek Banana Pinger to reduce cetacean bycatch in an inshore set net fishery. Wildlife Trusts report. Omeyer Lucy C. M., Doherty Philip D., Dolman Sarah, Enever Robert, Reese Allan, Tregenza Nicholas, Williams Ruth, Godley Brendan J. (2020). Assessing the Effects of Banana Pingers as a Bycatch Mitigation Device for Harbour Porpoises (Phocoena phocoena), Frontiers in Marine Science, 7, 2020, DOI=10.3389/fmars.2020.00285 Dennis Brennecke, Ursula Siebert, Lotte Kindt-Larsen, Henrik Skov Midtiby, Henrik Dyrberg Egemose, Sara Torres Ortiz, Katrin Knickmeier, Magnus Wahlberg, The fine-scale behaviour of harbour porpoises towards pingers, Fisheries Research, Volume 255, 2022, 106437, ISSN 0165-7836, https://doi.org/10.1016/j.fishres.2022.106437. Sebastián Jiménez, Martin Laporta, Rodrigo Forselledo, Graciela Fabiano, Enrique Páez, Inés Pereyra, Santiago Silveira, Andrés Domingo. (2022) Effectiveness of pingers to reduce the bycatch of Franciscana (Pontoporia blainvillei) in the Uruguayan artisanal gillnet fishery. Submitted to the International Whaling Commission Science Committee SC/68B/HIM/01 N. de Paz, F. Mondragon, D. Grados, M. Pozada, S. Kelez , E. Goya (2022), Using acoustic devices to reduce cetacean bycatch in the Peruvian artisanal Fishery. In press. https://onlinelibrary.wiley.com/doi/10.1002/aqc.3932 https://www.frontiersin.org/articles/10.3389/fmars.2020.00285 | AN66: No Comments | AO66: NA
A67: 64 | B67: =IF(D67='Device Selector'!$B$6,'Master Database - amended'!A67,"") -> 64 | D67: Very High Frequency Cetaceans | E67: 16a | F67: Fishtek Marine | G67: Banana Pinger (50-120) | H67: Automatic | I67: www.fishtekmarine.com | J67: www.fishtekmarine.com | K67: Bycatch (gillnets, trawls) | L67: 148 | M67: 151 | N67: 142 | O67: 50 | P67: 120 | Q67: 50 - 120 kHz (±2 kHz) | R67: 4000 | S67: 12000 | T67: Signal interval of 4 - 12 s. Randomised signal interval and structure. | U67: Intermittent | V67: 300 | W67: 300 | X67: 300 ms | Y67: No Data Available | Z67: No Data Available | AA67: 2: Medium confidence | AB67: Y | AC67: 3: High confidence | AD67: Y | AE67: 3: High confidence | AF67: Y | AG67: Porpoise and Dolphin species | AH67: No Data Available | AI67: <500m | AJ67: <500m | AK67: No Data Available | AL67: BRUNO, C. A., CASERTA, V., SALZERI, P., BONANNO FERRARO, G., PECORARO, F., LUCCHETTI, A., BOITANI, L., & BLASI, M. F. (2021). Acoustic deterrent devices as mitigation tool to prevent dolphin-fishery interactions in the Aeolian Archipelago (Southern Tyrrhenian Sea, Italy). Mediterranean Marine Science, 22(2), 408–421. https://doi.org/10.12681/mms.23129 André Moan, Arne Bjørge, Pingers reduce harbour porpoise bycatch in Norwegian gillnet fisheries, with little impact on day-to-day fishing operations, Fisheries Research, Volume 259, 2023, 106564, ISSN 0165-7836, https://doi.org/10.1016/j.fishres.2022.106564. MIND THE GAP - Pinger spacing and sound levels influence bycatch-rates of harbour porpoises (2024) Kindt-Larsen, L., Brooks, M.E., Søgaard., M., Noak, T., Glemarec. G. In Prep Vella, A., 2016. Resolving bottlenose dolphin-fisheries association in Maltese waters, central Mediterranean, CIESM Congress, Kiel Article 0499. Crosby A., Tregenza N. & Williams R. (2013) The Banana Pinger Trial: investigation into the Fishtek Banana Pinger to reduce cetacean bycatch in an inshore set net fishery. Wildlife Trusts report. Omeyer Lucy C. M., Doherty Philip D., Dolman Sarah, Enever Robert, Reese Allan, Tregenza Nicholas, Williams Ruth, Godley Brendan J. (2020). Assessing the Effects of Banana Pingers as a Bycatch Mitigation Device for Harbour Porpoises (Phocoena phocoena), Frontiers in Marine Science, 7, 2020, DOI=10.3389/fmars.2020.00285 Dennis Brennecke, Ursula Siebert, Lotte Kindt-Larsen, Henrik Skov Midtiby, Henrik Dyrberg Egemose, Sara Torres Ortiz, Katrin Knickmeier, Magnus Wahlberg, The fine-scale behaviour of harbour porpoises towards pingers, Fisheries Research, Volume 255, 2022, 106437, ISSN 0165-7836, https://doi.org/10.1016/j.fishres.2022.106437. Sebastián Jiménez, Martin Laporta, Rodrigo Forselledo, Graciela Fabiano, Enrique Páez, Inés Pereyra, Santiago Silveira, Andrés Domingo. (2022) Effectiveness of pingers to reduce the bycatch of Franciscana (Pontoporia blainvillei) in the Uruguayan artisanal gillnet fishery. Submitted to the International Whaling Commission Science Committee SC/68B/HIM/01 N. de Paz, F. Mondragon, D. Grados, M. Pozada, S. Kelez , E. Goya (2022), Using acoustic devices to reduce cetacean bycatch in the Peruvian artisanal Fishery. In press. https://onlinelibrary.wiley.com/doi/10.1002/aqc.3932 https://www.frontiersin.org/articles/10.3389/fmars.2020.00285 | AN67: No Comments | AO67: NA
A68: 65 | B68: =IF(D68='Device Selector'!$B$6,'Master Database - amended'!A68,"") ->  | D68: All Devices | E68: 16a | F68: Fishtek Marine | G68: Banana Pinger (50-120) | H68: Automatic | I68: www.fishtekmarine.com | J68: www.fishtekmarine.com | K68: Bycatch (gillnets, trawls) | L68: 148 | M68: 151 | N68: 142 | O68: 50 | P68: 120 | Q68: 50 - 120 kHz (±2 kHz) | R68: 4000 | S68: 12000 | T68: Signal interval of 4 - 12 s. Randomised signal interval and structure. | U68: Intermittent | V68: 300 | W68: 300 | X68: 300 ms | Y68: No Data Available | Z68: No Data Available | AA68: 2: Medium confidence | AB68: Y | AC68: 3: High confidence | AD68: Y | AE68: 3: High confidence | AF68: Y | AG68: Porpoise and Dolphin species | AH68: No Data Available | AI68: <500m | AJ68: <500m | AK68: No Data Available | AL68: BRUNO, C. A., CASERTA, V., SALZERI, P., BONANNO FERRARO, G., PECORARO, F., LUCCHETTI, A., BOITANI, L., & BLASI, M. F. (2021). Acoustic deterrent devices as mitigation tool to prevent dolphin-fishery interactions in the Aeolian Archipelago (Southern Tyrrhenian Sea, Italy). Mediterranean Marine Science, 22(2), 408–421. https://doi.org/10.12681/mms.23129 André Moan, Arne Bjørge, Pingers reduce harbour porpoise bycatch in Norwegian gillnet fisheries, with little impact on day-to-day fishing operations, Fisheries Research, Volume 259, 2023, 106564, ISSN 0165-7836, https://doi.org/10.1016/j.fishres.2022.106564. MIND THE GAP - Pinger spacing and sound levels influence bycatch-rates of harbour porpoises (2024) Kindt-Larsen, L., Brooks, M.E., Søgaard., M., Noak, T., Glemarec. G. In Prep Vella, A., 2016. Resolving bottlenose dolphin-fisheries association in Maltese waters, central Mediterranean, CIESM Congress, Kiel Article 0499. Crosby A., Tregenza N. & Williams R. (2013) The Banana Pinger Trial: investigation into the Fishtek Banana Pinger to reduce cetacean bycatch in an inshore set net fishery. Wildlife Trusts report. Omeyer Lucy C. M., Doherty Philip D., Dolman Sarah, Enever Robert, Reese Allan, Tregenza Nicholas, Williams Ruth, Godley Brendan J. (2020). Assessing the Effects of Banana Pingers as a Bycatch Mitigation Device for Harbour Porpoises (Phocoena phocoena), Frontiers in Marine Science, 7, 2020, DOI=10.3389/fmars.2020.00285 Dennis Brennecke, Ursula Siebert, Lotte Kindt-Larsen, Henrik Skov Midtiby, Henrik Dyrberg Egemose, Sara Torres Ortiz, Katrin Knickmeier, Magnus Wahlberg, The fine-scale behaviour of harbour porpoises towards pingers, Fisheries Research, Volume 255, 2022, 106437, ISSN 0165-7836, https://doi.org/10.1016/j.fishres.2022.106437. Sebastián Jiménez, Martin Laporta, Rodrigo Forselledo, Graciela Fabiano, Enrique Páez, Inés Pereyra, Santiago Silveira, Andrés Domingo. (2022) Effectiveness of pingers to reduce the bycatch of Franciscana (Pontoporia blainvillei) in the Uruguayan artisanal gillnet fishery. Submitted to the International Whaling Commission Science Committee SC/68B/HIM/01 N. de Paz, F. Mondragon, D. Grados, M. Pozada, S. Kelez , E. Goya (2022), Using acoustic devices to reduce cetacean bycatch in the Peruvian artisanal Fishery. In press. https://onlinelibrary.wiley.com/doi/10.1002/aqc.3932 https://www.frontiersin.org/articles/10.3389/fmars.2020.00285 | AN68: No Comments | AO68: NA
A69: 66 | B69: =IF(D69='Device Selector'!$B$6,'Master Database - amended'!A69,"") ->  | C69: =IFERROR(SMALL($B$4:$B$200,A69),"") ->  | D69: Low Frequency Cetaceans | E69: 16b | F69: Fishtek Marine | G69: Banana Pinger whale (3-20) | H69: Automatic | I69: www.fishtekmarine.com | J69: =I69 -> www.fishtekmarine.com | K69: Bycatch (gillnets) | L69: =ROUNDUP(N69-10*(LOG10(W69/1000)),0) -> 138 | M69: =L69+3 -> 141 | N69: 132 | O69: 3 | P69: 20 | Q69: 3 - 20 kHz (±2 kHz) | R69: 4000 | S69: 4000 | T69: Signal interval of 4 s. | U69: Intermittent | V69: 300 | W69: 300 | X69: 300 ms | Y69: 1: Low confidence | Z69: Y | AA69: No Data Available | AB69: No Data Available | AC69: No Data Available | AD69: No Data Available | AE69: No Data Available | AF69: No Data Available | AG69: Baleen and Beaked Whales | AH69: <500m | AI69: No Data Available | AJ69: No Data Available | AK69: No Data Available | AL69: No Evidence Available | AN69: No Comments | AO69: NA
A70: 67 | B70: =IF(D70='Device Selector'!$B$6,'Master Database - amended'!A70,"") ->  | D70: All Devices | E70: 16b | F70: Fishtek Marine | G70: Banana Pinger whale (3-20) | H70: Automatic | I70: www.fishtekmarine.com | J70: www.fishtekmarine.com | K70: Bycatch (gillnets) | L70: =ROUNDUP(N70-10*(LOG10(W70/1000)),0) -> 138 | M70: =L70+3 -> 141 | N70: 132 | O70: 3 | P70: 20 | Q70: 3 - 20 kHz (±2 kHz) | R70: 4000 | S70: 4000 | T70: Signal interval of 4 s. | U70: Intermittent | V70: 300 | W70: 300 | X70: 300 ms | Y70: 1: Low confidence | Z70: Y | AA70: No Data Available | AB70: No Data Available | AC70: No Data Available | AD70: No Data Available | AE70: No Data Available | AF70: No Data Available | AG70: Baleen and Beaked Whales | AH70: <500m | AI70: No Data Available | AJ70: No Data Available | AK70: No Data Available | AL70: No Evidence Available | AN70: No Comments | AO70: NA
A71: 68 | B71: =IF(D71='Device Selector'!$B$6,'Master Database - amended'!A71,"") -> 68 | D71: Very High Frequency Cetaceans | E71: 16c | F71: Fishtek Marine | G71: Banana Pinger US (10) | H71: Automatic | I71: www.fishtekmarine.com | J71: www.fishtekmarine.com | K71: Bycatch (gillnets) | L71: 135 | M71: 138 | N71: 129 | O71: 10 | P71: 10 | Q71: 10 kHz (± 2kHz) | R71: 4000 | S71: 4000 | T71: Signal interval of 4 - 12 s. Randomised signal interval and structure. | U71: Intermittent | V71: 300 | W71: 300 | X71: 300 ms | Y71: No Data Available | Z71: No Data Available | AA71: No Data Available | AB71: 1: Intended for use but no evidence | AC71: 3: High confidence | AD71: Y | AE71: No Data Available | AF71: No Data Available | AG71: Porpoise | AH71: No Data Available | AI71: No Data Available | AJ71: <500m | AK71: No Data Available | AL71: https://swfsc.noaa.gov/uploadedFiles/Divisions/PRD/Programs/Coastal_Marine_Mammal/Barlow_Cameron_MMS19.pdf | AN71: Meets acoustic characteristics as set out under US Federal Register etc. | AO71: NA
A72: 69 | B72: =IF(D72='Device Selector'!$B$6,'Master Database - amended'!A72,"") ->  | D72: All Devices | E72: 16c | F72: Fishtek Marine | G72: Banana Pinger US (10) | H72: Automatic | I72: www.fishtekmarine.com | J72: www.fishtekmarine.com | K72: Bycatch (gillnets) | L72: 135 | M72: 138 | N72: 129 | O72: 10 | P72: 10 | Q72: 10 kHz (± 2kHz) | R72: 4000 | S72: 4000 | T72: Signal interval of 4 - 12 s. Randomised signal interval and structure. | U72: Intermittent | V72: 300 | W72: 300 | X72: 300 ms | Y72: No Data Available | Z72: No Data Available | AA72: No Data Available | AB72: 1: Intended for use but no evidence | AC72: 3: High confidence | AD72: Y | AE72: No Data Available | AF72: No Data Available | AG72: Porpoise | AH72: No Data Available | AI72: No Data Available | AJ72: <500m | AK72: No Data Available | AL72: https://swfsc.noaa.gov/uploadedFiles/Divisions/PRD/Programs/Coastal_Marine_Mammal/Barlow_Cameron_MMS19.pdf | AN72: Meets acoustic characteristics as set out under US Federal Register etc. | AO72: NA
A73: 70 | B73: =IF(D73='Device Selector'!$B$6,'Master Database - amended'!A73,"") ->  | D73: High Frequency Cetaceans | E73: 16d | F73: Fishtek Marine | G73: Dolphin Anti-depredation pinger | H73: Automatic | I73: www.fishtekmarine.com | J73: www.fishtekmarine.com | K73: Bycatch (gillnets, trawls)‚ fisheries depredation (longline) ‚ mitigation for construction | L73: 188 | M73: 191 | N73: 172 | O73: 40 | P73: 40 | Q73: 40 kHz (± 2kHz) | R73: 4000 | S73: 12000 | T73: Signal interval of 4 - 12 s. Randomised signal interval and structure. | U73: Intermittent | V73: 30 | W73: 30 | X73: 30 ms | Y73: No Data Available | Z73: No Data Available | AA73: 2: Medium confidence | AB73: Y | AC73: No Data Available | AD73: No Data Available | AE73: No Data Available | AF73: No Data Available | AG73: Dolphin and Porpoise species | AH73: No Data Available | AI73: <500m | AJ73: No Data Available | AK73: No Data Available | AL73: BRUNO, C. A., CASERTA, V., SALZERI, P., BONANNO FERRARO, G., PECORARO, F., LUCCHETTI, A., BOITANI, L., & BLASI, M. F. (2021). Acoustic deterrent devices as mitigation tool to prevent dolphin-fishery interactions in the Aeolian Archipelago (Southern Tyrrhenian Sea, Italy). Mediterranean Marine Science, 22(2), 408–421. https://doi.org/10.12681/mms.23129 Sebastián Jiménez, Martin Laporta, Rodrigo Forselledo, Graciela Fabiano, Enrique Páez, Inés Pereyra, Santiago Silveira, Andrés Domingo. (2022) Assessing the effectiveness of dolphin antipredation pingers to reduce the bycatch of Franciscana (Pontoporia blainvillei) in demersal pair trawl fishing. Submitted to the International Whaling Commission Science Committee SC/68B/HIM/11 | AN73: No Comments | AO73: NA
A74: 71 | B74: =IF(D74='Device Selector'!$B$6,'Master Database - amended'!A74,"") -> 71 | D74: Very High Frequency Cetaceans | E74: 16d | F74: Fishtek Marine | G74: Dolphin Anti-depredation pinger | H74: Automatic | I74: www.fishtekmarine.com | J74: www.fishtekmarine.com | K74: Bycatch (gillnets, trawls)‚ fisheries depredation (longline) ‚ mitigation for construction | L74: 188 | M74: 191 | N74: 172 | O74: 40 | P74: 40 | Q74: 40 kHz (± 2kHz) | R74: 4000 | S74: 12000 | T74: Signal interval of 4 - 12 s. Randomised signal interval and structure. | U74: Intermittent | V74: 30 | W74: 30 | X74: 30 ms | Y74: No Data Available | Z74: No Data Available | AA74: 2: Medium confidence | AB74: Y | AC74: No Data Available | AD74: No Data Available | AE74: No Data Available | AF74: No Data Available | AG74: Dolphin and Porpoise species | AH74: No Data Available | AI74: <500m | AJ74: No Data Available | AK74: No Data Available | AL74: BRUNO, C. A., CASERTA, V., SALZERI, P., BONANNO FERRARO, G., PECORARO, F., LUCCHETTI, A., BOITANI, L., & BLASI, M. F. (2021). Acoustic deterrent devices as mitigation tool to prevent dolphin-fishery interactions in the Aeolian Archipelago (Southern Tyrrhenian Sea, Italy). Mediterranean Marine Science, 22(2), 408–421. https://doi.org/10.12681/mms.23129 Sebastián Jiménez, Martin Laporta, Rodrigo Forselledo, Graciela Fabiano, Enrique Páez, Inés Pereyra, Santiago Silveira, Andrés Domingo. (2022) Assessing the effectiveness of dolphin antipredation pingers to reduce the bycatch of Franciscana (Pontoporia blainvillei) in demersal pair trawl fishing. Submitted to the International Whaling Commission Science Committee SC/68B/HIM/11 | AN74: No Comments | AO74: NA
A75: 72 | B75: =IF(D75='Device Selector'!$B$6,'Master Database - amended'!A75,"") ->  | D75: All Devices | E75: 16d | F75: Fishtek Marine | G75: Dolphin Anti-depredation pinger | H75: Automatic | I75: www.fishtekmarine.com | J75: www.fishtekmarine.com | K75: Bycatch (gillnets, trawls)‚ fisheries depredation (longline) ‚ mitigation for construction | L75: 188 | M75: 191 | N75: 172 | O75: 40 | P75: 40 | Q75: 40 kHz (± 2kHz) | R75: 4000 | S75: 12000 | T75: Signal interval of 4 - 12 s. Randomised signal interval and structure. | U75: Intermittent | V75: 30 | W75: 30 | X75: 30 ms | Y75: No Data Available | Z75: No Data Available | AA75: 2: Medium confidence | AB75: Y | AC75: No Data Available | AD75: No Data Available | AE75: No Data Available | AF75: No Data Available | AG75: Dolphin and Porpoise species | AH75: No Data Available | AI75: <500m | AJ75: No Data Available | AK75: No Data Available | AL75: BRUNO, C. A., CASERTA, V., SALZERI, P., BONANNO FERRARO, G., PECORARO, F., LUCCHETTI, A., BOITANI, L., & BLASI, M. F. (2021). Acoustic deterrent devices as mitigation tool to prevent dolphin-fishery interactions in the Aeolian Archipelago (Southern Tyrrhenian Sea, Italy). Mediterranean Marine Science, 22(2), 408–421. https://doi.org/10.12681/mms.23129 Sebastián Jiménez, Martin Laporta, Rodrigo Forselledo, Graciela Fabiano, Enrique Páez, Inés Pereyra, Santiago Silveira, Andrés Domingo. (2022) Assessing the effectiveness of dolphin antipredation pingers to reduce the bycatch of Franciscana (Pontoporia blainvillei) in demersal pair trawl fishing. Submitted to the International Whaling Commission Science Committee SC/68B/HIM/11 | AN75: No Comments | AO75: NA
A76: 73 | B76: =IF(D76='Device Selector'!$B$6,'Master Database - amended'!A76,"") -> 73 | D76: Very High Frequency Cetaceans | E76: 17a | F76: F3 Maritime Technology UG Ltd (Life Systems) | G76: Porpoise PAL | H76: Automatic | I76: https://www.f3mt.net/harbour-porpoise---pal.html | J76: https://www.f3mt.net/harbour-porpoise---pal.html | K76: Bycatch (gillnets) | L76: 145 | M76: 148 | N76: 145 | O76: 133 | P76: 133 | Q76: 133 kHz Porpoise clicks. Narrow band porpoise click train. | R76: 8000 | S76: 24000 | T76: Random pulse interval between 8 - 24 s. | U76: Intermittent | V76: 1000 | W76: 1000 | X76: 1 s | Y76: No Data Available | Z76: No Data Available | AA76: No Data Available | AB76: No Data Available | AC76: 3: High confidence | AD76: Y | AE76: No Data Available | AF76: No Data Available | AG76: Porpoise species | AH76: No Data Available | AI76: No Data Available | AJ76: <500m | AK76: No Data Available | AL76: Pinger trials to reduce bycatch in Bulgarian Black Sea turbot fisher (https://www.thebdri.com/ecs2023abstractbook.pdf) Chladek, J., Culik, B., Kindt-Larsen, L., Albertsen, C. M. and Von Dorrien, C. (2020). Synthetic harbour porpoise (Phocoena phocoena) communication signals emitted by acoustic alerting device (Porpoise ALert, PAL) significantly reduce their bycatch in western Baltic gillnet fisheries. Fisheries Research, 232, pp.105732. DOI:10.1016/j.fishres.2020.105732. | AN76: No Comments | AO76: NA
A77: 74 | B77: =IF(D77='Device Selector'!$B$6,'Master Database - amended'!A77,"") ->  | D77: All Devices | E77: 17a | F77: F3 Maritime Technology UG Ltd (Life Systems) | G77: Porpoise PAL | H77: Automatic | I77: https://www.f3mt.net/harbour-porpoise---pal.html | J77: https://www.f3mt.net/harbour-porpoise---pal.html | K77: Bycatch (gillnets) | L77: 145 | M77: 148 | N77: 145 | O77: 133 | P77: 133 | Q77: 133 kHz Porpoise clicks. Narrow band porpoise click train. | R77: 8000 | S77: 24000 | T77: Random pulse interval between 8 - 24 s. | U77: Intermittent | V77: 1000 | W77: 1000 | X77: 1 s | Y77: No Data Available | Z77: No Data Available | AA77: No Data Available | AB77: No Data Available | AC77: 3: High confidence | AD77: Y | AE77: No Data Available | AF77: No Data Available | AG77: Porpoise species | AH77: No Data Available | AI77: No Data Available | AJ77: <500m | AK77: No Data Available | AL77: Pinger trials to reduce bycatch in Bulgarian Black Sea turbot fisher (https://www.thebdri.com/ecs2023abstractbook.pdf) Chladek, J., Culik, B., Kindt-Larsen, L., Albertsen, C. M. and Von Dorrien, C. (2020). Synthetic harbour porpoise (Phocoena phocoena) communication signals emitted by acoustic alerting device (Porpoise ALert, PAL) significantly reduce their bycatch in western Baltic gillnet fisheries. Fisheries Research, 232, pp.105732. DOI:10.1016/j.fishres.2020.105732. | AN77: No Comments | AO77: NA
A78: 75 | B78: =IF(D78='Device Selector'!$B$6,'Master Database - amended'!A78,"") -> 75 | D78: Very High Frequency Cetaceans | E78: 17b | F78: F3 Maritime Technology UG Ltd | G78: 10 kHz PAL | H78: Automatic | I78: 10 kHz - PAL - F³ Maritime Technology (f3mt.net) | J78: 10 kHz - PAL - F³ Maritime Technology (f3mt.net) | K78: Bycatch (gillnets) | L78: 132 | M78: 135 | N78: 127 | O78: 10 | P78: 10 | Q78: 10 kHz narrow band. | R78: 4000 | S78: 4000 | T78: Pulse interval of 4 s. | U78: Intermittent | V78: 300 | W78: 300 | X78: 300 ms | Y78: No Data Available | Z78: No Data Available | AA78: No Data Available | AB78: No Data Available | AC78: No Data Available | AD78: No Data Available | AE78: No Data Available | AF78: No Data Available | AG78: Marine Mammals | AH78: No Data Available | AI78: No Data Available | AJ78: No Data Available | AK78: No Data Available | AL78: No Evidence Available | AN78: No Comments | AO78: NA
A79: 76 | B79: =IF(D79='Device Selector'!$B$6,'Master Database - amended'!A79,"") ->  | D79: All Devices | E79: 17b | F79: F3 Maritime Technology UG Ltd | G79: 10 kHz PAL | H79: Automatic | I79: 10 kHz - PAL - F³ Maritime Technology (f3mt.net) | J79: 10 kHz - PAL - F³ Maritime Technology (f3mt.net) | K79: Bycatch (gillnets) | L79: 132 | M79: 135 | N79: 127 | O79: 10 | P79: 10 | Q79: 10 kHz narrow band. | R79: 4000 | S79: 4000 | T79: Pulse interval of 4 s. | U79: Intermittent | V79: 300 | W79: 300 | X79: 300 ms | Y79: No Data Available | Z79: No Data Available | AA79: No Data Available | AB79: No Data Available | AC79: No Data Available | AD79: No Data Available | AE79: No Data Available | AF79: No Data Available | AG79: Marine Mammals | AH79: No Data Available | AI79: No Data Available | AJ79: No Data Available | AK79: No Data Available | AL79: No Evidence Available | AN79: No Comments | AO79: NA
A80: 77 | B80: =IF(D80='Device Selector'!$B$6,'Master Database - amended'!A80,"") ->  | D80: Low Frequency Cetaceans | E80: 17c | F80: F3 Maritime Technology UG Ltd | G80: Wideband PAL | H80: Automatic | I80: https://www.f3mt.net/wideband---pal.html | J80: https://www.f3mt.net/wideband---pal.html | K80: Bycatch (gillnets) | L80: 145 | M80: 148 | N80: 140 | O80: 20 | P80: 160 | Q80: 20 - 160 kHz | R80: 4000 | S80: 30000 | T80: Random pulse interval between 4 - 30 s. | U80: Intermittent | V80: 300 | W80: 300 | X80: 300 ms | Y80: No Data Available | Z80: No Data Available | AA80: No Data Available | AB80: No Data Available | AC80: No Data Available | AD80: No Data Available | AE80: No Data Available | AF80: No Data Available | AG80: Marine Mammals | AH80: No Data Available | AI80: No Data Available | AJ80: No Data Available | AK80: No Data Available | AL80: No Evidence Available | AN80: No Comments | AO80: NA
A81: 78 | B81: =IF(D81='Device Selector'!$B$6,'Master Database - amended'!A81,"") ->  | D81: High Frequency Cetaceans | E81: 17c | F81: F3 Maritime Technology UG Ltd | G81: Wideband PAL | H81: Automatic | I81: https://www.f3mt.net/wideband---pal.html | J81: https://www.f3mt.net/wideband---pal.html | K81: Bycatch (gillnets) | L81: 145 | M81: 148 | N81: 140 | O81: 20 | P81: 160 | Q81: 20 - 160 kHz | R81: 4000 | S81: 30000 | T81: Random pulse interval between 4 - 30 s. | U81: Intermittent | V81: 300 | W81: 300 | X81: 300 ms | Y81: No Data Available | Z81: No Data Available | AA81: No Data Available | AB81: No Data Available | AC81: No Data Available | AD81: No Data Available | AE81: No Data Available | AF81: No Data Available | AG81: Marine Mammals | AH81: No Data Available | AI81: No Data Available | AJ81: No Data Available | AK81: No Data Available | AL81: No Evidence Available | AN81: No Comments | AO81: NA
A82: 79 | B82: =IF(D82='Device Selector'!$B$6,'Master Database - amended'!A82,"") -> 79 | D82: Very High Frequency Cetaceans | E82: 17c | F82: F3 Maritime Technology UG Ltd | G82: Wideband PAL | H82: Automatic | I82: https://www.f3mt.net/wideband---pal.html | J82: https://www.f3mt.net/wideband---pal.html | K82: Bycatch (gillnets) | L82: 145 | M82: 148 | N82: 140 | O82: 20 | P82: 160 | Q82: 20 - 160 kHz | R82: 4000 | S82: 30000 | T82: Random pulse interval between 4 - 30 s. | U82: Intermittent | V82: 300 | W82: 300 | X82: 300 ms | Y82: No Data Available | Z82: No Data Available | AA82: No Data Available | AB82: No Data Available | AC82: No Data Available | AD82: No Data Available | AE82: No Data Available | AF82: No Data Available | AG82: Marine Mammals | AH82: No Data Available | AI82: No Data Available | AJ82: No Data Available | AK82: No Data Available | AL82: No Evidence Available | AN82: No Comments | AO82: NA
A83: 80 | B83: =IF(D83='Device Selector'!$B$6,'Master Database - amended'!A83,"") ->  | D83: Pinnipeds | E83: 17c | F83: F3 Maritime Technology UG Ltd | G83: Wideband PAL | H83: Automatic | I83: https://www.f3mt.net/wideband---pal.html | J83: https://www.f3mt.net/wideband---pal.html | K83: Bycatch (gillnets) | L83: 145 | M83: 148 | N83: 140 | O83: 20 | P83: 160 | Q83: 20 - 160 kHz | R83: 4000 | S83: 30000 | T83: Random pulse interval between 4 - 30 s. | U83: Intermittent | V83: 300 | W83: 300 | X83: 300 ms | Y83: No Data Available | Z83: No Data Available | AA83: No Data Available | AB83: No Data Available | AC83: No Data Available | AD83: No Data Available | AE83: No Data Available | AF83: No Data Available | AG83: Marine Mammals | AH83: No Data Available | AI83: No Data Available | AJ83: No Data Available | AK83: No Data Available | AL83: No Evidence Available | AN83: No Comments | AO83: NA
A84: 81 | B84: =IF(D84='Device Selector'!$B$6,'Master Database - amended'!A84,"") ->  | D84: All Species | E84: 17c | F84: F3 Maritime Technology UG Ltd | G84: Wideband PAL | H84: Automatic | I84: https://www.f3mt.net/wideband---pal.html | J84: https://www.f3mt.net/wideband---pal.html | K84: Bycatch (gillnets) | L84: 145 | M84: 148 | N84: 140 | O84: 20 | P84: 160 | Q84: 20 - 160 kHz | R84: 4000 | S84: 30000 | T84: Random pulse interval between 4 - 30 s. | U84: Intermittent | V84: 300 | W84: 300 | X84: 300 ms | Y84: No Data Available | Z84: No Data Available | AA84: No Data Available | AB84: No Data Available | AC84: No Data Available | AD84: No Data Available | AE84: No Data Available | AF84: No Data Available | AG84: Marine Mammals | AH84: No Data Available | AI84: No Data Available | AJ84: No Data Available | AK84: No Data Available | AL84: No Evidence Available | AN84: No Comments | AO84: NA
A85: 82 | B85: =IF(D85='Device Selector'!$B$6,'Master Database - amended'!A85,"") ->  | D85: All Devices | E85: 17c | F85: F3 Maritime Technology UG Ltd | G85: Wideband PAL | H85: Automatic | I85: https://www.f3mt.net/wideband---pal.html | J85: https://www.f3mt.net/wideband---pal.html | K85: Bycatch (gillnets) | L85: 145 | M85: 148 | N85: 140 | O85: 20 | P85: 160 | Q85: 20 - 160 kHz | R85: 4000 | S85: 30000 | T85: Random pulse interval between 4 - 30 s. | U85: Intermittent | V85: 300 | W85: 300 | X85: 300 ms | Y85: No Data Available | Z85: No Data Available | AA85: No Data Available | AB85: No Data Available | AC85: No Data Available | AD85: No Data Available | AE85: No Data Available | AF85: No Data Available | AG85: Marine Mammals | AH85: No Data Available | AI85: No Data Available | AJ85: No Data Available | AK85: No Data Available | AL85: No Evidence Available | AN85: No Comments | AO85: NA
A86: 83 | B86: =IF(D86='Device Selector'!$B$6,'Master Database - amended'!A86,"") ->  | D86: Low Frequency Cetaceans | E86: 17d | F86: F3 Maritime Technology UG Ltd | G86: Whale PAL (v3) | H86: Automatic | I86: https://www.f3mt.net/whale---pal.html | J86: https://www.f3mt.net/whale---pal.html | K86: Bycatch (gillnets) | L86: 145 | M86: 148 | N86: 140 | O86: 10 | P86: 160 | Q86: Wideband | R86: 4000 | S86: 4000 | T86: Pulse interval of 4 s. Secondary signal repeated 8-20 s random | U86: Intermittent | V86: 300 | W86: 300 | X86: 300 ms | Y86: No Data Available | Z86: No Data Available | AA86: No Data Available | AB86: No Data Available | AC86: No Data Available | AD86: No Data Available | AE86: No Data Available | AF86: No Data Available | AG86: Whales | AH86: No Data Available | AI86: No Data Available | AJ86: No Data Available | AK86: No Data Available | AL86: No Evidence Available | AN86: No Comments | AO86: NA
A87: 84 | B87: =IF(D87='Device Selector'!$B$6,'Master Database - amended'!A87,"") ->  | D87: All Devices | E87: 17d | F87: F3 Maritime Technology UG Ltd | G87: Whale PAL (v3) | H87: Automatic | I87: https://www.f3mt.net/whale---pal.html | J87: https://www.f3mt.net/whale---pal.html | K87: Bycatch (gillnets) | L87: 145 | M87: 148 | N87: 140 | O87: 10 | P87: 160 | Q87: Wideband | R87: 4000 | S87: 4000 | T87: Pulse interval of 4 s. Secondary signal repeated 8-20 s random | U87: Intermittent | V87: 300 | W87: 300 | X87: 300 ms | Y87: No Data Available | Z87: No Data Available | AA87: No Data Available | AB87: No Data Available | AC87: No Data Available | AD87: No Data Available | AE87: No Data Available | AF87: No Data Available | AG87: Whales | AH87: No Data Available | AI87: No Data Available | AJ87: No Data Available | AK87: No Data Available | AL87: No Evidence Available | AN87: No Comments | AO87: NA
A88: 85 | B88: =IF(D88='Device Selector'!$B$6,'Master Database - amended'!A88,"") ->  | D88: All Devices | E88: 18 | F88: Loughborough University | G88: LU - 1 | H88: No Data Available | I88: No manufacturers website available | J88: No manufacturers website available | K88: Bycatch (gillnets) | L88: 145 | M88: 148 | N88: 140 | O88: 40 | P88: 120 | Q88: 40 - 120 kHz | R88: 5000 | S88: 30000 | T88: Random pulse interval between 5 and 30 s. | U88: Intermittent | V88: 300 | W88: 300 | X88: 300 ms | Y88: No Data Available | Z88: No Data Available | AA88: No Data Available | AB88: No Data Available | AC88: 3: High confidence | AD88: Y | AE88: No Data Available | AF88: No Data Available | AG88: No Evidence Available | AH88: No Data Available | AI88: No Data Available | AJ88: No Data Available | AK88: No Data Available | AL88: https://www.researchgate.net/publication/266214228_The_effect_of_acoustic_alarms_on_the_by-catch_of_harbour_porpoises_in_the_Danish_North_Sea_gill_net_fishery https://www.researchgate.net/profile/Ronald_Kastelein/publication/40188899_The_effects_of_various_sounds_on_a_harbour_porpoise_Phocoena_phocoena/links/00b7d52b47fc7f19c1000000.pdf | AN88: No Comments | AO88: NA
A89: 86 | B89: =IF(D89='Device Selector'!$B$6,'Master Database - amended'!A89,"") ->  | D89: Low Frequency Cetaceans | E89: 19 | F89: Lofitech | G89: Seal Scarer | H89: Manual | I89: https://www.lofitech.no/product | J89: https://www.lofitech.no/product | K89: Fisheries, aquaculture, offshore piling mitigation, UXO removal | L89: 189 | M89: 192 | N89: =ROUNDUP(L89+10*LOG10(W89/1000),0) -> 186 | O89: 13 | P89: 15 | Q89: 10 - 20 kHz. With measured fundamental frequency at 14.6 kHz with harmonics at 29.2 kHz, 43.6 kHz and 72.8 kHz (McGarry et al. 2017). | R89: No Data Available | S89: No Data Available | T89: Intermittent - duration between pulses is on a random cycle. | U89: Intermittent | V89: 500 | W89: 500 | X89: Manufacturer states the pulse length is 500 ms. However the measured pulse length is 752 ms. | Y89: 3: High confidence | Z89: Y | AA89: No Data Available | AB89: No Data Available | AC89: 3: High confidence | AD89: Y | AE89: 3: High confidence | AF89: Y | AG89: Seals, odonocetes and whales | AH89: >1000m | AI89: No Data Available | AJ89: >1000m | AK89: <500m | AL89: https://www.carbontrust.com/resources/reports/technology/acoustic-deterrent-devices/ http://www.int-res.com/articles/meps_oa/m580p221.pdf https://www.int-res.com/abstracts/meps/v667/p191-206/ https://www.carbontrust.com/media/675291/orjip-add-study-final-report-stage-1-phase-2.pdf https://www.ncbi.nlm.nih.gov/pmc/articles/PMC5541550/ https://corporate.vattenfall.co.uk/globalassets/uk/projects/norfolk-vanguard/consultation-peir-oct-2017/peir/volume-3-appendices/chapter-12-marine-mammals/appendix-12.2-add-mitigation.pdf https://www.researchgate.net/publication/258246312_Far-reaching_effects_of_a_seal_scarer_on_harbour_porpoises_Phocoena_phocoena https://www.researchgate.net/publication/258246447_Seal_scarers_as_a_tool_to_deter_harbour_porpoises_from_offshore_construction_sites https://www.carbontrust.com/media/675291/orjip-add-study-final-report-stage-1-phase-2.pdf https://www.researchgate.net/publication/236149619_Acoustic_harassment_devices_reduce_seal_interaction_in_the_Baltic_salmon-trap_net_fishery https://research-repository.st-andrews.ac.uk/handle/10023/848 https://www.ncbi.nlm.nih.gov/pubmed/20400639 https://link.springer.com/article/10.1007/s10750-014-2035-x https://link.springer.com/article/10.1007/s10750-014-2152-6 http://www.smru.st-andrews.ac.uk/documents/scotgov/MR8-1_ADD_mitigation_report_summary.pdf https://academic.oup.com/icesjms/article/66/5/860/664210 https://doi.org/10.1038/s41598-023-43453-8 https://www.int-res.com/abstracts/meps/v667/p191-206/ https://besjournals.onlinelibrary.wiley.com/doi/abs/10.1002/2688-8319.12034 | AN89: Recommended that duration of deployment should be tailored to each project requirements. The strong reaction to the seal scarer noted in Dahne et al. 2017 raises concern that it may surpass the reactions to the pile-driving noise itself, when operating with bubble curtains, and calls for a re-evaluation of the specifications of seal scarer sounds. ORJIP review concludes that the Lofitec provides the most consistent effective deterrence ranges for both harbour seals and harbour porpoise in environments similar to those at offshore wind farm construction sites. Recommended as is usable in current form during OWF construction but note that improvements could be made and an OWF specific model developed. The results indicate that there might be scope to reduce the ADD time below the 30 minutes applied during the construction of these OWFs. In Brandt et al. 2012 the use of seal scarers as a mitigation tool during offshore construction seems promising. Nevertheless, these results also highlight that its application will not guarantee the safety of all animals, as not all individuals will react with avoidance reactions. In Brandt et al. 2013, porpoises seem to be startled when the seal scarer is activated at close range, a soft start to this device should be considered so as not to cause panic reactions in harbour porpoises, which could potentially lead to the separation of mother−calf pairs. The use of this ADD should result in low probabilities of animals remaining within exclusion zones of ~1 km. When used for mitigation there should be no delay between the end of the mitigation broadcast and the start of pile driving. | AO89: NA
A90: 87 | B90: =IF(D90='Device Selector'!$B$6,'Master Database - amended'!A90,"") -> 87 | D90: Very High Frequency Cetaceans | E90: 19 | F90: Lofitech | G90: Seal Scarer | H90: Manual | I90: https://www.lofitech.no/product | J90: https://www.lofitech.no/product | K90: Fisheries, aquaculture, offshore piling mitigation, UXO removal | L90: 189 | M90: 192 | N90: 186 | O90: 13 | P90: 15 | Q90: 10 - 20 kHz. With measured fundamental frequency at 14.6 kHz with harmonics at 29.2 kHz, 43.6 kHz and 72.8 kHz (McGarry et al. 2017). | R90: No Data Available | S90: No Data Available | T90: Intermittent - duration between pulses is on a random cycle. | U90: Intermittent | V90: 500 | W90: 500 | X90: Manufacturer states the pulse length is 500 ms. However the measured pulse length is 752 ms. | Y90: 3: High confidence | Z90: Y | AA90: No Data Available | AB90: No Data Available | AC90: 3: High confidence | AD90: Y | AE90: 3: High confidence | AF90: Y | AG90: Seals, odonocetes and whales | AH90: 500 - 1000m | AI90: No Data Available | AJ90: >1000m | AK90: <500m | AL90: https://www.carbontrust.com/resources/reports/technology/acoustic-deterrent-devices/ http://www.int-res.com/articles/meps_oa/m580p221.pdf https://www.carbontrust.com/media/675291/orjip-add-study-final-report-stage-1-phase-2.pdf https://www.ncbi.nlm.nih.gov/pmc/articles/PMC5541550/ https://corporate.vattenfall.co.uk/globalassets/uk/projects/norfolk-vanguard/consultation-peir-oct-2017/peir/volume-3-appendices/chapter-12-marine-mammals/appendix-12.2-add-mitigation.pdf https://www.researchgate.net/publication/258246312_Far-reaching_effects_of_a_seal_scarer_on_harbour_porpoises_Phocoena_phocoena https://www.researchgate.net/publication/258246447_Seal_scarers_as_a_tool_to_deter_harbour_porpoises_from_offshore_construction_sites https://www.carbontrust.com/media/675291/orjip-add-study-final-report-stage-1-phase-2.pdf https://www.researchgate.net/publication/236149619_Acoustic_harassment_devices_reduce_seal_interaction_in_the_Baltic_salmon-trap_net_fishery https://research-repository.st-andrews.ac.uk/handle/10023/848 https://www.ncbi.nlm.nih.gov/pubmed/20400639 https://link.springer.com/article/10.1007/s10750-014-2035-x https://link.springer.com/article/10.1007/s10750-014-2152-6 http://www.smru.st-andrews.ac.uk/documents/scotgov/MR8-1_ADD_mitigation_report_summary.pdf https://academic.oup.com/icesjms/article/66/5/860/664210 https://doi.org/10.1038/s41598-023-43453-8 https://www.int-res.com/abstracts/meps/v667/p191-206/ https://besjournals.onlinelibrary.wiley.com/doi/abs/10.1002/2688-8319.12034 | AN90: Recommended that duration of deployment should be tailored to each project requirements. The strong reaction to the seal scarer noted in Dahne et al. 2017 raises concern that it may surpass the reactions to the pile-driving noise itself, when operating with bubble curtains, and calls for a re-evaluation of the specifications of seal scarer sounds. ORJIP review concludes that the Lofitec provides the most consistent effective deterrence ranges for both harbour seals and harbour porpoise in environments similar to those at offshore wind farm construction sites. Recommended as is usable in current form during OWF construction but note that improvements could be made and an OWF specific model developed. The results indicate that there might be scope to reduce the ADD time below the 30 minutes applied during the construction of these OWFs. In Brandt et al. 2012 the use of seal scarers as a mitigation tool during offshore construction seems promising. Nevertheless, these results also highlight that its application will not guarantee the safety of all animals, as not all individuals will react with avoidance reactions. In Brandt et al. 2013, porpoises seem to be startled when the seal scarer is activated at close range, a soft start to this device should be considered so as not to cause panic reactions in harbour porpoises, which could potentially lead to the separation of mother−calf pairs. The use of this ADD should result in low probabilities of animals remaining within exclusion zones of ~1 km. When used for mitigation there should be no delay between the end of the mitigation broadcast and the start of pile driving. | AO90: NA
A91: 88 | B91: =IF(D91='Device Selector'!$B$6,'Master Database - amended'!A91,"") ->  | D91: Pinnipeds | E91: 19 | F91: Lofitech | G91: Seal Scarer | H91: Manual | I91: https://www.lofitech.no/product | J91: https://www.lofitech.no/product | K91: Fisheries, aquaculture, offshore piling mitigation, UXO removal | L91: 189 | M91: 192 | N91: 186 | O91: 13 | P91: 15 | Q91: 10 - 20 kHz. With measured fundamental frequency at 14.6 kHz with harmonics at 29.2 kHz, 43.6 kHz and 72.8 kHz (McGarry et al. 2017). | R91: No Data Available | S91: No Data Available | T91: Intermittent - duration between pulses is on a random cycle. | U91: Intermittent | V91: 500 | W91: 500 | X91: Manufacturer states the pulse length is 500 ms. However the measured pulse length is 752 ms. | Y91: 3: High confidence | Z91: Y | AA91: No Data Available | AB91: No Data Available | AC91: 3: High confidence | AD91: Y | AE91: 3: High confidence | AF91: Y | AG91: Seals, odonocetes and whales | AH91: 500 - 1000m | AI91: No Data Available | AJ91: >1000m | AK91: <500m | AL91: https://www.carbontrust.com/resources/reports/technology/acoustic-deterrent-devices/ http://www.int-res.com/articles/meps_oa/m580p221.pdf https://www.carbontrust.com/media/675291/orjip-add-study-final-report-stage-1-phase-2.pdf https://www.ncbi.nlm.nih.gov/pmc/articles/PMC5541550/ https://corporate.vattenfall.co.uk/globalassets/uk/projects/norfolk-vanguard/consultation-peir-oct-2017/peir/volume-3-appendices/chapter-12-marine-mammals/appendix-12.2-add-mitigation.pdf https://www.researchgate.net/publication/258246312_Far-reaching_effects_of_a_seal_scarer_on_harbour_porpoises_Phocoena_phocoena https://www.researchgate.net/publication/258246447_Seal_scarers_as_a_tool_to_deter_harbour_porpoises_from_offshore_construction_sites https://www.carbontrust.com/media/675291/orjip-add-study-final-report-stage-1-phase-2.pdf https://www.researchgate.net/publication/236149619_Acoustic_harassment_devices_reduce_seal_interaction_in_the_Baltic_salmon-trap_net_fishery https://research-repository.st-andrews.ac.uk/handle/10023/848 https://www.ncbi.nlm.nih.gov/pubmed/20400639 https://link.springer.com/article/10.1007/s10750-014-2035-x https://link.springer.com/article/10.1007/s10750-014-2152-6 http://www.smru.st-andrews.ac.uk/documents/scotgov/MR8-1_ADD_mitigation_report_summary.pdf https://academic.oup.com/icesjms/article/66/5/860/664210 https://doi.org/10.1038/s41598-023-43453-8 https://www.int-res.com/abstracts/meps/v667/p191-206/ https://besjournals.onlinelibrary.wiley.com/doi/abs/10.1002/2688-8319.12034 | AN91: Recommended that duration of deployment should be tailored to each project requirements. The strong reaction to the seal scarer noted in Dahne et al. 2017 raises concern that it may surpass the reactions to the pile-driving noise itself, when operating with bubble curtains, and calls for a re-evaluation of the specifications of seal scarer sounds. ORJIP review concludes that the Lofitec provides the most consistent effective deterrence ranges for both harbour seals and harbour porpoise in environments similar to those at offshore wind farm construction sites. Recommended as is usable in current form during OWF construction but note that improvements could be made and an OWF specific model developed. The results indicate that there might be scope to reduce the ADD time below the 30 minutes applied during the construction of these OWFs. In Brandt et al. 2012 the use of seal scarers as a mitigation tool during offshore construction seems promising. Nevertheless, these results also highlight that its application will not guarantee the safety of all animals, as not all individuals will react with avoidance reactions. In Brandt et al. 2013, porpoises seem to be startled when the seal scarer is activated at close range, a soft start to this device should be considered so as not to cause panic reactions in harbour porpoises, which could potentially lead to the separation of mother−calf pairs. The use of this ADD should result in low probabilities of animals remaining within exclusion zones of ~1 km. When used for mitigation there should be no delay between the end of the mitigation broadcast and the start of pile driving. | AO91: NA
A92: 89 | B92: =IF(D92='Device Selector'!$B$6,'Master Database - amended'!A92,"") ->  | D92: All Devices | E92: 19 | F92: Lofitech | G92: Seal Scarer | H92: Manual | I92: https://www.lofitech.no/product | J92: https://www.lofitech.no/product | K92: Fisheries, aquaculture, offshore piling mitigation, UXO removal | L92: 189 | M92: 192 | N92: 186 | O92: 13 | P92: 15 | Q92: 10 - 20 kHz. With measured fundamental frequency at 14.6 kHz with harmonics at 29.2 kHz, 43.6 kHz and 72.8 kHz (McGarry et al. 2017). | R92: No Data Available | S92: No Data Available | T92: Intermittent - duration between pulses is on a random cycle. | U92: Intermittent | V92: 500 | W92: 500 | X92: Manufacturer states the pulse length is 500 ms. However the measured pulse length is 752 ms. | Y92: 3: High confidence | Z92: Y | AA92: No Data Available | AB92: No Data Available | AC92: 3: High confidence | AD92: Y | AE92: 3: High confidence | AF92: Y | AG92: Seals, odonocetes and whales | AH92: 500 - 1000m | AI92: No Data Available | AJ92: >1000m | AK92: <500m | AL92: https://www.carbontrust.com/resources/reports/technology/acoustic-deterrent-devices/ http://www.int-res.com/articles/meps_oa/m580p221.pdf https://www.carbontrust.com/media/675291/orjip-add-study-final-report-stage-1-phase-2.pdf https://www.ncbi.nlm.nih.gov/pmc/articles/PMC5541550/ https://corporate.vattenfall.co.uk/globalassets/uk/projects/norfolk-vanguard/consultation-peir-oct-2017/peir/volume-3-appendices/chapter-12-marine-mammals/appendix-12.2-add-mitigation.pdf https://www.researchgate.net/publication/258246312_Far-reaching_effects_of_a_seal_scarer_on_harbour_porpoises_Phocoena_phocoena https://www.researchgate.net/publication/258246447_Seal_scarers_as_a_tool_to_deter_harbour_porpoises_from_offshore_construction_sites https://www.carbontrust.com/media/675291/orjip-add-study-final-report-stage-1-phase-2.pdf https://www.researchgate.net/publication/236149619_Acoustic_harassment_devices_reduce_seal_interaction_in_the_Baltic_salmon-trap_net_fishery https://research-repository.st-andrews.ac.uk/handle/10023/848 https://www.ncbi.nlm.nih.gov/pubmed/20400639 https://link.springer.com/article/10.1007/s10750-014-2035-x https://link.springer.com/article/10.1007/s10750-014-2152-6 http://www.smru.st-andrews.ac.uk/documents/scotgov/MR8-1_ADD_mitigation_report_summary.pdf https://academic.oup.com/icesjms/article/66/5/860/664210 https://doi.org/10.1038/s41598-023-43453-8 https://www.int-res.com/abstracts/meps/v667/p191-206/ https://besjournals.onlinelibrary.wiley.com/doi/abs/10.1002/2688-8319.12034 | AN92: Recommended that duration of deployment should be tailored to each project requirements. The strong reaction to the seal scarer noted in Dahne et al. 2017 raises concern that it may surpass the reactions to the pile-driving noise itself, when operating with bubble curtains, and calls for a re-evaluation of the specifications of seal scarer sounds. ORJIP review concludes that the Lofitec provides the most consistent effective deterrence ranges for both harbour seals and harbour porpoise in environments similar to those at offshore wind farm construction sites. Recommended as is usable in current form during OWF construction but note that improvements could be made and an OWF specific model developed. The results indicate that there might be scope to reduce the ADD time below the 30 minutes applied during the construction of these OWFs. In Brandt et al. 2012 the use of seal scarers as a mitigation tool during offshore construction seems promising. Nevertheless, these results also highlight that its application will not guarantee the safety of all animals, as not all individuals will react with avoidance reactions. In Brandt et al. 2013, porpoises seem to be startled when the seal scarer is activated at close range, a soft start to this device should be considered so as not to cause panic reactions in harbour porpoises, which could potentially lead to the separation of mother−calf pairs. The use of this ADD should result in low probabilities of animals remaining within exclusion zones of ~1 km. When used for mitigation there should be no delay between the end of the mitigation broadcast and the start of pile driving. | AO92: NA
A93: 90 | B93: =IF(D93='Device Selector'!$B$6,'Master Database - amended'!A93,"") ->  | D93: High Frequency Cetaceans | E93: 20a | F93: Marexi Marine Technology | G93: Pinger V2.3 | H93: Automatic | I93: https://marexi.com/en/pinger/ | J93: https://marexi.com/en/pinger/ | K93: Bycatch (gillnets) | L93: 145 | M93: =L93+3 -> 148 | N93: 140 | O93: 10 | P93: 10 | Q93: 10 kHz (±2 kHz) tonal | R93: 3800 | S93: 4200 | T93: Pulse 4 s (±0.2 sec) | U93: Intermittent | V93: 300 | W93: 300 | X93: 300 ms (±1 5ms) | Y93: No Data Available | Z93: No Data Available | AA93: 2: Medium confidence | AB93: Y | AC93: 2: Medium confidence | AD93: N | AE93: No Data Available | AF93: 0 | AG93: No Evidence Available | AH93: No Data Available | AI93: No Data Available | AJ93: No Data Available | AK93: No Data Available | AN93: No Comments | AO93: NA
A94: 91 | B94: =IF(D94='Device Selector'!$B$6,'Master Database - amended'!A94,"") -> 91 | D94: Very High Frequency Cetaceans | E94: 20a | F94: Marexi Marine Technology | G94: Pinger V2.3 | H94: Automatic | I94: https://marexi.com/en/pinger/ | J94: https://marexi.com/en/pinger/ | K94: Bycatch (gillnets) | L94: 145 | M94: 148 | N94: 140 | O94: 10 | P94: 10 | Q94: 10 kHz (±2 kHz) tonal | R94: 3800 | S94: 4200 | T94: Pulse 4 s (±0.2 sec) | U94: Intermittent | V94: 300 | W94: 300 | X94: 300 ms (±1 5ms) | Y94: No Data Available | Z94: No Data Available | AA94: 2: Medium confidence | AB94: Y | AC94: 2: Medium confidence | AD94: N | AE94: No Data Available | AF94: 0 | AG94: No Evidence Available | AH94: No Data Available | AI94: No Data Available | AJ94: No Data Available | AK94: No Data Available | AN94: No Comments | AO94: NA
A95: 92 | B95: =IF(D95='Device Selector'!$B$6,'Master Database - amended'!A95,"") ->  | D95: All Devices | E95: 20a | F95: Marexi Marine Technology | G95: Pinger V2.3 | H95: Automatic | I95: https://marexi.com/en/pinger/ | J95: https://marexi.com/en/pinger/ | K95: Bycatch (gillnets) | L95: 145 | M95: 148 | N95: 140 | O95: 10 | P95: 10 | Q95: 10 kHz (±2 kHz) tonal | R95: 3800 | S95: 4200 | T95: Pulse 4 s (±0.2 sec) | U95: Intermittent | V95: 300 | W95: 300 | X95: 300 ms (±1 5ms) | Y95: No Data Available | Z95: No Data Available | AA95: 2: Medium confidence | AB95: Y | AC95: 2: Medium confidence | AD95: N | AE95: No Data Available | AF95: 0 | AG95: No Evidence Available | AH95: No Data Available | AI95: No Data Available | AJ95: No Data Available | AK95: No Data Available | AN95: No Comments | AO95: NA
A96: 93 | B96: =IF(D96='Device Selector'!$B$6,'Master Database - amended'!A96,"") ->  | D96: High Frequency Cetaceans | E96: 20b | F96: Marexi Marine Technology | G96: Pinger M2.1 | H96: Automatic | I96: https://marexi.com/en/pinger/ | J96: https://marexi.com/en/pinger/ | K96: Bycatch (gillnets) | L96: 165 | M96: 168 | N96: 160 | O96: 70 | P96: 70 | Q96: 70 kHz (±2 kHz) tonal | R96: 2000 | S96: 10000 | T96: Pulse 2 - 10 seconds (±0.2 sec) | U96: Intermittent | V96: 100 | W96: 300 | X96: 300 ms (±1 5ms) | Y96: No Data Available | Z96: No Data Available | AA96: 2: Medium confidence | AB96: Y | AC96: 2: Medium confidence | AD96: N | AE96: No Data Available | AF96: 0 | AG96: No Evidence Available | AH96: No Data Available | AI96: No Data Available | AJ96: No Data Available
A97: 94 | B97: =IF(D97='Device Selector'!$B$6,'Master Database - amended'!A97,"") -> 94 | D97: Very High Frequency Cetaceans | E97: 20b | F97: Marexi Marine Technology | G97: Pinger M2.1 | H97: Automatic | I97: https://marexi.com/en/pinger/ | J97: https://marexi.com/en/pinger/ | K97: Bycatch (gillnets) | L97: 165 | M97: 168 | N97: 160 | O97: 70 | P97: 70 | Q97: 70 kHz (±2 kHz) tonal | R97: 2000 | S97: 10000 | T97: Pulse 2 - 10 seconds (±0.2 sec) | U97: Intermittent | V97: 100 | W97: 300 | X97: 300 ms (±1 5ms) | Y97: No Data Available | Z97: No Data Available | AA97: 2: Medium confidence | AB97: Y | AC97: 2: Medium confidence | AD97: N | AE97: No Data Available | AF97: 0 | AG97: No Evidence Available | AH97: No Data Available | AI97: No Data Available | AJ97: No Data Available
A98: 95 | B98: =IF(D98='Device Selector'!$B$6,'Master Database - amended'!A98,"") ->  | D98: All Devices | E98: 20b | F98: Marexi Marine Technology | G98: Pinger M2.1 | H98: Automatic | I98: https://marexi.com/en/pinger/ | J98: https://marexi.com/en/pinger/ | K98: Bycatch (gillnets) | L98: 165 | M98: 168 | N98: 160 | O98: 70 | P98: 70 | Q98: 70 kHz (±2 kHz) tonal | R98: 2000 | S98: 10000 | T98: Pulse 2 - 10 seconds (±0.2 sec) | U98: Intermittent | V98: 100 | W98: 300 | X98: 300 ms (±1 5ms) | Y98: No Data Available | Z98: No Data Available | AA98: 2: Medium confidence | AB98: Y | AC98: 2: Medium confidence | AD98: N | AE98: No Data Available | AF98: 0 | AG98: No Evidence Available | AH98: No Data Available | AI98: No Data Available | AJ98: No Data Available
A99: 96 | B99: =IF(D99='Device Selector'!$B$6,'Master Database - amended'!A99,"") ->  | D99: High Frequency Cetaceans | E99: 20c | F99: Marexi Marine Technology | G99: H1.0 | H99: Automatic | I99: https://marexi.com/en/pinger/ | J99: https://marexi.com/en/pinger/ | K99: Bycatch (gillnets) | L99: 145 - 165 | M99: 148 - 168 | N99: 142 - 162 | O99: 3 | P99: 600 | Q99: 3 – 600 kHz (sequence controlled by algorithms) | R99: 2000 | S99: 10000 | T99: Pulse 2 - 10 seconds (±0.2 sec) | U99: Intermittent | V99: 10 | W99: 500 | X99: 10-500 ms (±1 5ms) | Y99: No Data Available | Z99: No Data Available | AA99: 2: Medium confidence | AB99: Y | AC99: 2: Medium confidence | AD99: N | AE99: No Data Available | AF99: 0 | AG99: No Evidence Available | AH99: No Data Available | AI99: No Data Available | AJ99: No Data Available
A100: 97 | B100: =IF(D100='Device Selector'!$B$6,'Master Database - amended'!A100,"") -> 97 | D100: Very High Frequency Cetaceans | E100: 20c | F100: Marexi Marine Technology | G100: H1.0 | H100: Automatic | I100: https://marexi.com/en/pinger/ | J100: https://marexi.com/en/pinger/ | K100: Bycatch (gillnets) | L100: 145 - 165 | M100: 148 - 168 | N100: 142 - 162 | O100: 3 | P100: 600 | Q100: 3 – 600 kHz (sequence controlled by algorithms) | R100: 2000 | S100: 10000 | T100: Pulse 2 - 10 seconds (±0.2 sec) | U100: Intermittent | V100: 10 | W100: 500 | X100: 10-500 ms (±1 5ms) | Y100: No Data Available | Z100: No Data Available | AA100: 2: Medium confidence | AB100: Y | AC100: 2: Medium confidence | AD100: N | AE100: No Data Available | AF100: 0 | AG100: No Evidence Available | AH100: No Data Available | AI100: No Data Available | AJ100: No Data Available
A101: 98 | B101: =IF(D101='Device Selector'!$B$6,'Master Database - amended'!A101,"") ->  | D101: All Devices | E101: 20c | F101: Marexi Marine Technology | G101: H1.0 | H101: Automatic | I101: https://marexi.com/en/pinger/ | J101: https://marexi.com/en/pinger/ | K101: Bycatch (gillnets) | L101: 145 - 165 | M101: 148 - 168 | N101: 142 - 162 | O101: 3 | P101: 600 | Q101: 3 – 600 kHz (sequence controlled by algorithms) | R101: 2000 | S101: 10000 | T101: Pulse 2 - 10 seconds (±0.2 sec) | U101: Intermittent | V101: 10 | W101: 500 | X101: 10-500 ms (±1 5ms) | Y101: No Data Available | Z101: No Data Available | AA101: 2: Medium confidence | AB101: Y | AC101: 2: Medium confidence | AD101: N | AE101: No Data Available | AF101: 0 | AG101: No Evidence Available | AH101: No Data Available | AI101: No Data Available | AJ101: No Data Available
A102: 99 | B102: =IF(D102='Device Selector'!$B$6,'Master Database - amended'!A102,"") ->  | D102: High Frequency Cetaceans | E102: 21a | F102: GenusWave Ltd | G102: SalmonSafe (for pinnipeds) | H102: No Data Available | I102: http://www.genuswave.com/ | J102: http://www.genuswave.com/ | K102: Aquaculture | L102: 180 | M102: 175 | N102: 173 | O102: 0.7 | P102: 1.5 | Q102: Frequency range: 0.7kHz to 1.5kHz (-10dB bandwidth) Frequency range: 0.6 -1.8kHz (~-20dB in TOB bands). Band-limited signals. Source levels are fully adjustable to comply with any regulatory requirements. | R102: No Data Available | S102: No Data Available | T102: Isolated short non-impulsive (steady state) signals. | U102: Intermittent | V102: 200 | W102: 200 | X102: 200 ms long, 2–3 octave-band noise pulses. | Y102: 3: High confidence | Z102: No Data Available | AA102: 3: High confidence | AB102: Y | AC102: 3: High confidence | AD102: N | AE102: 3: High confidence | AF102: Y | AG102: Seals and odonocetes | AH102: No Data Available | AI102: <500m | AJ102: No Data Available | AK102: <500m | AL102: http://www.gov.scot/Resource/0043/00438860.pdf http://onlinelibrary.wiley.com/doi/10.1111/acv.12141/abstract https://www.carbontrust.com/media/675291/orjip-add-study-final-report-stage-1-phase-2.pdf https://doi.org/10.1038/s41598-024-54175-w https://www.sciencedirect.com/science/article/pii/S0025326X21002058 | AN102: Startle method can selectively deter seals without affecting porpoise. ORJIP review concludes that this device has promising potential deterrence ranges although remains to be demonstrated. Needs commercial development but one to watch. McKeegan et al. (2024) demonstrate efficacy to deter harbour seals from preying on fall runs at salmon hatchery (WA, USA), call for future studies to investigate individual variability Todd et al. (2021) predicted onset of TTS at 11 km in LF cetaceans, 5 km in VHF cetaceans and pinnipeds and 0.7 km in HF cetaceans | AO102: NA
A103: 100 | B103: =IF(D103='Device Selector'!$B$6,'Master Database - amended'!A103,"") ->  | D103: Pinnipeds | E103: 21a | F103: GenusWave Ltd | G103: SalmonSafe (for pinnipeds) | H103: No Data Available | I103: http://www.genuswave.com/ | J103: http://www.genuswave.com/ | K103: Aquaculture | L103: 180 | M103: 175 | N103: 173 | O103: 0.7 | P103: 1.5 | Q103: Frequency range: 0.7kHz to 1.5kHz (-10dB bandwidth) Frequency range: 0.6 -1.8kHz (~-20dB in TOB bands). Band-limited signals. Source levels are fully adjustable to comply with any regulatory requirements. | R103: No Data Available | S103: No Data Available | T103: Isolated short non-impulsive (steady state) signals. | U103: Intermittent | V103: 200 | W103: 200 | X103: 200 ms long, 2–3 octave-band noise pulses. | Y103: 3: High confidence | Z103: No Data Available | AA103: 3: High confidence | AB103: Y | AC103: 3: High confidence | AD103: N | AE103: 3: High confidence | AF103: Y | AG103: Seals and odonocetes | AH103: No Data Available | AI103: <500m | AJ103: No Data Available | AK103: <500m | AL103: http://www.gov.scot/Resource/0043/00438860.pdf http://onlinelibrary.wiley.com/doi/10.1111/acv.12141/abstract https://www.carbontrust.com/media/675291/orjip-add-study-final-report-stage-1-phase-2.pdf https://doi.org/10.1038/s41598-024-54175-w https://www.sciencedirect.com/science/article/pii/S0025326X21002058 https://www.nature.com/articles/s41598-024-54175-w | AN103: Startle method can selectively deter seals without affecting porpoise. ORJIP review concludes that this device has promising potential deterrence ranges although remains to be demonstrated. Needs commercial development but one to watch. McKeegan et al. (2024) demonstrate efficacy to deter harbour seals from preying on fall runs at salmon hatchery (WA, USA), call for future studies to investigate individual variability Todd et al. (2021) predicted onset of TTS at 11 km in LF cetaceans, 5 km in VHF cetaceans and pinnipeds and 0.7 km in HF cetaceans | AO103: NA
A104: 101 | B104: =IF(D104='Device Selector'!$B$6,'Master Database - amended'!A104,"") ->  | D104: All Devices | E104: 21a | F104: GenusWave Ltd | G104: SalmonSafe (for pinnipeds) | H104: No Data Available | I104: http://www.salmonsafe.co.uk/ | J104: http://www.salmonsafe.co.uk/ | K104: Aquaculture | L104: 180 | M104: 175 | N104: 173 | O104: 0.7 | P104: 1.5 | Q104: Frequency range: 0.7kHz to 1.5kHz (-10dB bandwidth) Frequency range: 0.6 -1.8kHz (~-20dB in TOB bands). Band-limited signals. Source levels are fully adjustable to comply with any regulatory requirements. | R104: No Data Available | S104: No Data Available | T104: Isolated short non-impulsive (steady state) signals. | U104: Intermittent | V104: 200 | W104: 200 | X104: 200 ms long, 2–3 octave-band noise pulses. | Y104: 3: High confidence | Z104: No Data Available | AA104: 3: High confidence | AB104: Y | AC104: 3: High confidence | AD104: N | AE104: 3: High confidence | AF104: Y | AG104: Seals and odonocetes | AH104: No Data Available | AI104: <500m | AJ104: No Data Available | AK104: <500m | AL104: http://www.gov.scot/Resource/0043/00438860.pdf http://onlinelibrary.wiley.com/doi/10.1111/acv.12141/abstract https://www.carbontrust.com/media/675291/orjip-add-study-final-report-stage-1-phase-2.pdf https://doi.org/10.1038/s41598-024-54175-w https://www.sciencedirect.com/science/article/pii/S0025326X21002058 | AN104: Startle method can selectively deter seals without affecting porpoise. ORJIP review concludes that this device has promising potential deterrence ranges although remains to be demonstrated. Needs commercial development but one to watch. McKeegan et al. (2024) demonstrate efficacy to deter harbour seals from preying on fall runs at salmon hatchery (WA, USA), call for future studies to investigate individual variability Todd et al. (2021) predicted onset of TTS at 11 km in LF cetaceans, 5 km in VHF cetaceans and pinnipeds and 0.7 km in HF cetaceans | AO104: NA
A105: 102 | B105: =IF(D105='Device Selector'!$B$6,'Master Database - amended'!A105,"") ->  | D105: Pinnipeds | E105: 21b | F105: GenusWave Ltd | G105: FisherySafe | H105: No Data Available | I105: http://www.genuswave.com/ | J105: http://www.genuswave.com/ | K105: Aquaculture | L105: 182 | M105: 185 | N105: 175 | O105: 1.5 | P105: 2.5 | Q105: Seal signal: 0.7kHz - 1.5 kHz; Odontocete signal: 1.5kHz to 2.4 kHz | R105: No Data Available | S105: No Data Available | T105: Intermittent. Isolated short non-impulsive (steady state) signals. | U105: Intermittent | V105: No Data Available | W105: No Data Available | X105: No Data Available | Y105: 3: High confidence | Z105: N | AA105: No Data Available | AB105: N | AC105: 3: High confidence | AD105: Y | AE105: 3: High confidence | AF105: N | AG105: Seals and odonocetes | AH105: No Data Available | AI105: <500m | AJ105: No Data Available | AK105: <500m | AL105: http://www.gov.scot/Resource/0043/00438860.pdf http://onlinelibrary.wiley.com/doi/10.1111/acv.12141/abstract
A106: 103 | C106: =IFERROR(SMALL($B$4:$B$200,A106),"") ->  | D106: High Frequency Cetaceans | E106: 21b | F106: GenusWave Ltd | G106: FisherySafe | H106: No Data Available | I106: http://www.genuswave.com/ | J106: http://www.genuswave.com/ | K106: Aquaculture | L106: 182 | M106: 185 | N106: 175 | O106: 1.5 | P106: 2.5 | Q106: Seal signal: 0.7kHz - 1.5 kHz; Odontocete signal: 1.5kHz to 2.4 kHz | R106: No Data Available | S106: No Data Available | T106: Intermittent. Isolated short non-impulsive (steady state) signals. | U106: Intermittent | V106: No Data Available | W106: No Data Available | X106: No Data Available | Y106: 3: High confidence | Z106: N | AA106: No Data Available | AB106: N | AC106: 3: High confidence | AD106: Y | AE106: 3: High confidence | AF106: N | AG106: Seals and odonocetes | AH106: No Data Available | AI106: <500m | AJ106: No Data Available | AK106: <500m | AL106: http://www.gov.scot/Resource/0043/00438860.pdf http://onlinelibrary.wiley.com/doi/10.1111/acv.12141/abstract
A107: 104 | B107: =IF(D107='Device Selector'!$B$6,'Master Database - amended'!A107,"") ->  | C107: =IFERROR(SMALL($B$4:$B$200,A107),"") ->  | D107: All Devices | E107: 21b | F107: GenusWave Ltd | G107: FisherySafe | H107: No Data Available | I107: http://www.genuswave.com/ | J107: http://www.genuswave.com/ | K107: Aquaculture | L107: 182 | M107: 185 | N107: 175 | O107: 1.5 | P107: 2.5 | Q107: Seal signal: 0.7kHz - 1.5 kHz; Odontocete signal: 1.5kHz to 2.4 kHz | R107: No Data Available | S107: No Data Available | T107: Intermittent. Isolated short non-impulsive (steady state) signals. | U107: Intermittent | V107: No Data Available | W107: No Data Available | X107: No Data Available | Y107: 3: High confidence | Z107: N | AA107: No Data Available | AB107: N | AC107: 3: High confidence | AD107: Y | AE107: 3: High confidence | AF107: N | AG107: Seals and odonocetes | AH107: No Data Available | AI107: <500m | AJ107: No Data Available | AK107: <500m | AL107: http://www.gov.scot/Resource/0043/00438860.pdf http://onlinelibrary.wiley.com/doi/10.1111/acv.12141/abstract
A108: 105 | B108: =IF(D108='Device Selector'!$B$6,'Master Database - amended'!A108,"") ->  | D108: Pinnipeds | E108: 21c | F108: GenusWave Ltd | G108: Mitigation device, TurbineSafe, ConstructionSafe | H108: No Data Available | I108: http://www.genuswave.com/ | J108: http://www.genuswave.com/ | K108: Aquaculture | L108: 180 | M108: 183 | N108: 173 | O108: 0.7 | P108: 20 | Q108: Seal signal: 0.7khz to 1.5kHz. Odontocete signal: 5-20kHz Combined marine mammal signal: 0.8kHz to 20kHz | R108: No Data Available | S108: No Data Available | T108: Intermittent. Isolated short non-impulsive (steady state) signals. | U108: Intermittent | V108: No Data Available | W108: No Data Available | X108: No Data Available | Y108: 1: Low confidence | Z108: N | AA108: 2: Medium confidence | AB108: Y | AC108: 3: High confidence | AD108: Y | AE108: 1: Low confidence | AF108: N | AG108: Seals and odonocetes | AH108: No Data Available | AI108: <500m | AJ108: >1000m | AK108: <500m | AL108: http://www.gov.scot/Resource/0043/00438860.pdf http://onlinelibrary.wiley.com/doi/10.1111/acv.12141/abstract Hiley et al. (2021). Götz et al. (2020) | AM108: http://onlinelibrary.wiley.com/doi/10.1111/acv.12141/abstract
A109: 106 | B109: =IF(D109='Device Selector'!$B$6,'Master Database - amended'!A109,"") ->  | D109: All Devices | E109: 21c | F109: GenusWave Ltd | G109: Mitigation device, TurbineSafe, ConstructionSafe | H109: No Data Available | I109: http://www.genuswave.com/ | J109: http://www.genuswave.com/ | K109: Aquaculture | L109: 180 | M109: 183 | N109: 173 | O109: 0.7 | P109: 20 | Q109: Seal signal: 0.7khz to 1.5kHz. Odontocete signal: 5-20kHz Combined marine mammal signal: 0.8kHz to 20kHz | R109: No Data Available | S109: No Data Available | T109: Intermittent. Isolated short non-impulsive (steady state) signals. | U109: Intermittent | V109: No Data Available | W109: No Data Available | X109: No Data Available | Y109: 1: Low confidence | Z109: N | AA109: 2: Medium confidence | AB109: Y | AC109: 3: High confidence | AD109: Y | AE109: 1: Low confidence | AF109: N | AG109: Seals and odonocetes | AH109: No Data Available | AI109: <500m | AJ109: >1000m | AK109: <500m | AL109: http://www.gov.scot/Resource/0043/00438860.pdf http://onlinelibrary.wiley.com/doi/10.1111/acv.12141/abstract Hiley et al. (2021). Götz et al. (2020) | AM109: http://onlinelibrary.wiley.com/doi/10.1111/acv.12141/abstract
A110: 107 | B110: =IF(D110='Device Selector'!$B$6,'Master Database - amended'!A110,"") ->  | D110: High Frequency Cetaceans | E110: 21c | F110: GenusWave Ltd | G110: Mitigation device, TurbineSafe, ConstructionSafe | H110: No Data Available | I110: http://www.genuswave.com/ | J110: http://www.genuswave.com/ | K110: Aquaculture | L110: 180 | M110: 183 | N110: 173 | O110: 0.7 | P110: 20 | Q110: Seal signal: 0.7khz to 1.5kHz. Odontocete signal: 5-20kHz Combined marine mammal signal: 0.8kHz to 20kHz | R110: No Data Available | S110: No Data Available | T110: Intermittent. Isolated short non-impulsive (steady state) signals. | U110: Intermittent | V110: No Data Available | W110: No Data Available | X110: No Data Available | Y110: 1: Low confidence | Z110: N | AA110: 2: Medium confidence | AB110: Y | AC110: 3: High confidence | AD110: Y | AE110: 1: Low confidence | AF110: N | AG110: Seals and odonocetes | AH110: No Data Available | AI110: <500m | AJ110: >1000m | AK110: <500m | AL110: http://www.gov.scot/Resource/0043/00438860.pdf http://onlinelibrary.wiley.com/doi/10.1111/acv.12141/abstract Hiley et al. (2021). Götz et al. (2020) | AM110: http://onlinelibrary.wiley.com/doi/10.1111/acv.12141/abstract
A111: 108 | B111: =IF(D111='Device Selector'!$B$6,'Master Database - amended'!A111,"") -> 108 | D111: Very High Frequency Cetaceans | E111: 21c | F111: GenusWave Ltd | G111: Mitigation device, TurbineSafe, ConstructionSafe | H111: No Data Available | I111: http://www.genuswave.com/ | J111: http://www.genuswave.com/ | K111: Aquaculture | L111: 180 | M111: 183 | N111: 173 | O111: 0.7 | P111: 20 | Q111: Seal signal: 0.7khz to 1.5kHz. Odontocete signal: 5-20kHz Combined marine mammal signal: 0.8kHz to 20kHz | R111: No Data Available | S111: No Data Available | T111: Intermittent. Isolated short non-impulsive (steady state) signals. | U111: Intermittent | V111: No Data Available | W111: No Data Available | X111: No Data Available | Y111: 1: Low confidence | Z111: N | AA111: 2: Medium confidence | AB111: N | AC111: 3: High confidence | AD111: Y | AE111: 1: Low confidence | AF111: N | AG111: Seals and odonocetes | AH111: No Data Available | AI111: <500m | AJ111: >1000m | AK111: <500m | AL111: http://www.gov.scot/Resource/0043/00438860.pdf http://onlinelibrary.wiley.com/doi/10.1111/acv.12141/abstract Hiley et al. (2021). Götz et al. (2020) | AM111: http://onlinelibrary.wiley.com/doi/10.1111/acv.12141/abstract
A112: 109 | B112: =IF(D112='Device Selector'!$B$6,'Master Database - amended'!A112,"") ->  | D112: All Devices | E112: 21d | F112: GenusWave Ltd | G112: 'OdontoceteSafe', 'FisherySafe' 'OrcaSafe' | H112: No Data Available | I112: https://genuswave.com/ | J112: https://genuswave.com/ | K112: Aquaculture | L112: 180 | M112: =L112+3 -> 183 | N112: 173 | O112: 5 | P112: 20 | Q112: 5 to 20kHz Band-limited signals | R112: No Data Available | S112: No Data Available | T112: Intermittent. Isolated short non-impulsive (steady state) signals. | U112: Intermittent | V112: No Data Available | W112: No Data Available | X112: No Data Available | Y112: No Data Available | Z112: No Data Available | AA112: 3: High confidence | AB112: Y | AC112: 3: High confidence | AD112: Y | AE112: 1: Low confidence | AF112: N | AG112: Odontocetes | AH112: No Data Available | AI112: <500m | AJ112: >1000m | AK112: No Data Available | AL112: Langstein (2023) https://munin.uit.no/handle/10037/29479 Hiley et al. (2021) https://tethys.pnnl.gov/publications/behavioural-reactions-harbour-porpoises-phocoena-phocoena-startle-eliciting-stimuli | AM112: =AL112 -> Langstein (2023) https://munin.uit.no/handle/10037/29479 Hiley et al. (2021) https://tethys.pnnl.gov/publications/behavioural-reactions-harbour-porpoises-phocoena-phocoena-startle-eliciting-stimuli | AO112: N/A
A113: 110 | B113: =IF(D113='Device Selector'!$B$6,'Master Database - amended'!A113,"") ->  | D113: High Frequency Cetaceans | E113: 21d | F113: GenusWave Ltd | G113: 'OdontoceteSafe', 'FisherySafe' 'OrcaSafe' | H113: No Data Available | I113: https://genuswave.com/ | J113: https://genuswave.com/ | K113: Aquaculture | L113: 180 | M113: 183 | N113: 173 | O113: 5 | P113: 20 | Q113: 5 to 20kHz Band-limited signals | R113: No Data Available | S113: No Data Available | T113: Intermittent. Isolated short non-impulsive (steady state) signals. | U113: Intermittent | V113: No Data Available | W113: No Data Available | X113: No Data Available | Y113: No Data Available | Z113: No Data Available | AA113: 3: High confidence | AB113: Y | AC113: 3: High confidence | AD113: Y | AE113: 1: Low confidence | AF113: N | AG113: Odontocetes | AH113: No Data Available | AI113: <500m | AJ113: >1000m | AK113: No Data Available | AL113: Langstein (2023) https://munin.uit.no/handle/10037/29479 Hiley et al. (2021) https://tethys.pnnl.gov/publications/behavioural-reactions-harbour-porpoises-phocoena-phocoena-startle-eliciting-stimuli | AM113: =AL113 -> Langstein (2023) https://munin.uit.no/handle/10037/29479 Hiley et al. (2021) https://tethys.pnnl.gov/publications/behavioural-reactions-harbour-porpoises-phocoena-phocoena-startle-eliciting-stimuli | AO113: N/A
A114: 111 | B114: =IF(D114='Device Selector'!$B$6,'Master Database - amended'!A114,"") -> 111 | D114: Very High Frequency Cetaceans | E114: 21d | F114: GenusWave Ltd | G114: 'OdontoceteSafe', 'FisherySafe' 'OrcaSafe' | H114: No Data Available | I114: https://genuswave.com/ | J114: https://genuswave.com/ | K114: Aquaculture | L114: 180 | M114: 183 | N114: 173 | O114: 5 | P114: 20 | Q114: 5 to 20kHz Band-limited signals | R114: No Data Available | S114: No Data Available | T114: Intermittent. Isolated short non-impulsive (steady state) signals. | U114: Intermittent | V114: No Data Available | W114: No Data Available | X114: No Data Available | Y114: No Data Available | Z114: No Data Available | AA114: 3: High confidence | AB114: Y | AC114: 3: High confidence | AD114: Y | AE114: 1: Low confidence | AF114: N | AG114: Odontocetes | AH114: No Data Available | AI114: <500m | AJ114: >1000m | AK114: No Data Available | AL114: Langstein (2023) https://munin.uit.no/handle/10037/29479 Hiley et al. (2021) https://tethys.pnnl.gov/publications/behavioural-reactions-harbour-porpoises-phocoena-phocoena-startle-eliciting-stimuli | AM114: =AL114 -> Langstein (2023) https://munin.uit.no/handle/10037/29479 Hiley et al. (2021) https://tethys.pnnl.gov/publications/behavioural-reactions-harbour-porpoises-phocoena-phocoena-startle-eliciting-stimuli | AO114: N/A
A115: 112 | B115: =IF(D115='Device Selector'!$B$6,'Master Database - amended'!A115,"") ->  | D115: Low Frequency Cetaceans | E115: 21e | F115: GenusWave Ltd | G115: WhaleSafe | H115: No Data Available | I115: https://genuswave.com/ | J115: https://genuswave.com/ | K115: Aquaculture | L115: 180 | M115: 183 | N115: 173 | O115: 0.4 | P115: 1.8 | Q115: 0.4 kHz to 1.8kHz (centred at 0.7kHz). Band-limited signals | R115: No Data Available | S115: No Data Available | T115: Intermittent. Isolated short non-impulsive (steady state) signals. | U115: Intermittent | V115: No Data Available | W115: No Data Available | X115: No Data Available | Y115: 3: High confidence | Z115: Y | AA115: No Data Available | AB115: N | AC115: No Data Available | AD115: N | AE115: No Data Available | AF115: N | AG115: Baleen whales | AH115: <500m | AI115: No Data Available | AJ115: No Data Available | AK115: No Data Available | AL115: Langstein (2023) https://munin.uit.no/handle/10037/29479 | AM115: Langstein (2023) https://munin.uit.no/handle/10037/29479 | AN115: Humpback whales: ~50-100m.
A116: 113 | B116: =IF(D116='Device Selector'!$B$6,'Master Database - amended'!A116,"") ->  | D116: All Devices | E116: 21e | F116: GenusWave Ltd | G116: WhaleSafe | H116: No Data Available | I116: https://genuswave.com/ | J116: https://genuswave.com/ | K116: Aquaculture | L116: 180 | M116: 183 | N116: 173 | O116: 0.4 | P116: 1.8 | Q116: 0.4 kHz to 1.8kHz (centred at 0.7kHz). Band-limited signals | R116: No Data Available | S116: No Data Available | T116: Intermittent. Isolated short non-impulsive (steady state) signals. | U116: Intermittent | V116: No Data Available | W116: No Data Available | X116: No Data Available | Y116: 3: High confidence | Z116: Y | AA116: No Data Available | AB116: N | AC116: No Data Available | AD116: N | AE116: No Data Available | AF116: N | AG116: Baleen whales | AH116: <500m | AI116: No Data Available | AJ116: No Data Available | AK116: No Data Available | AL116: Langstein (2023) https://munin.uit.no/handle/10037/29479 | AM116: Langstein (2023) https://munin.uit.no/handle/10037/29479 | AN116: Humpback whales: ~50-100m.
A117: 114 | B117: =IF(D117='Device Selector'!$B$6,'Master Database - amended'!A117,"") ->  | D117: High Frequency Cetaceans | E117: 22a | F117: Savewave | G117: Seal Salmon Saver (High impact) | H117: No Data Available | I117: https://www.savewave.net/ | J117: https://www.savewave.net/ | K117: Bycatch (gillnets) | L117: 155 | M117: 158 | N117: 155 | O117: 5 | P117: 160 | Q117: 5 - 30 kHz and 30 - 160 kHz wide band sweeps. | R117: 4000 | S117: 16000 | T117: Pulse interval of 4 - 16 s randomised. | U117: Intermittent | V117: 200 | W117: 900 | X117: Pulse duration 200 - 900 ms. | Y117: No Data Available | Z117: No Data Available | AA117: 3: High confidence | AB117: Y | AC117: 3: High confidence | AD117: Y | AE117: No Data Available | AF117: No Data Available | AG117: Dolphins and Seals | AH117: No Data Available | AI117: No Data Available | AJ117: No Data Available | AK117: No Data Available | AL117: No Evidence Available | AN117: While this is good for avoiding entanglement no change in dolphin swimming direction or movement of the dolphins away from the area was detected and so it is unlikely to be of use for the mitigation of impacts from wind farm piling for bottlenose dolphins. | AO117: NA
A118: 115 | B118: =IF(D118='Device Selector'!$B$6,'Master Database - amended'!A118,"") -> 115 | D118: Very High Frequency Cetaceans | E118: 22a | F118: Savewave | G118: Seal Salmon Saver (High impact) | H118: No Data Available | I118: https://www.savewave.net/ | J118: https://www.savewave.net/ | K118: Bycatch (gillnets) | L118: 155 | M118: 158 | N118: 155 | O118: 5 | P118: 160 | Q118: 5 - 30 kHz and 30 - 160 kHz wide band sweeps. | R118: 4000 | S118: 16000 | T118: Pulse interval of 4 - 16 s randomised. | U118: Intermittent | V118: 200 | W118: 900 | X118: Pulse duration 200 - 900 ms. | Y118: No Data Available | Z118: No Data Available | AA118: 3: High confidence | AB118: Y | AC118: 3: High confidence | AD118: Y | AE118: No Data Available | AF118: No Data Available | AG118: Dolphins and Seals | AH118: No Data Available | AI118: No Data Available | AJ118: No Data Available | AK118: No Data Available | AL118: No Evidence Available | AN118: While this is good for avoiding entanglement no change in dolphin swimming direction or movement of the dolphins away from the area was detected and so it is unlikely to be of use for the mitigation of impacts from wind farm piling for bottlenose dolphins. | AO118: NA
A119: 116 | B119: =IF(D119='Device Selector'!$B$6,'Master Database - amended'!A119,"") ->  | D119: All Devices | E119: 22a | F119: Savewave | G119: Seal Salmon Saver (High impact) | H119: No Data Available | I119: https://www.savewave.net/ | J119: https://www.savewave.net/ | K119: Bycatch (gillnets) | L119: 155 | M119: 158 | N119: 155 | O119: 5 | P119: 160 | Q119: 5 - 30 kHz and 30 - 160 kHz wide band sweeps. | R119: 4000 | S119: 16000 | T119: Pulse interval of 4 - 16 s randomised. | U119: Intermittent | V119: 200 | W119: 900 | X119: Pulse duration 200 - 900 ms. | Y119: No Data Available | Z119: No Data Available | AA119: 3: High confidence | AB119: Y | AC119: 3: High confidence | AD119: Y | AE119: No Data Available | AF119: No Data Available | AG119: Dolphins and Seals | AH119: No Data Available | AI119: No Data Available | AJ119: No Data Available | AK119: No Data Available | AL119: No Evidence Available | AN119: While this is good for avoiding entanglement no change in dolphin swimming direction or movement of the dolphins away from the area was detected and so it is unlikely to be of use for the mitigation of impacts from wind farm piling for bottlenose dolphins. | AO119: NA
A120: 117 | B120: =IF(D120='Device Selector'!$B$6,'Master Database - amended'!A120,"") ->  | D120: All Devices | E120: 22d | F120: SaveWave | G120: OrcaSaver | H120: No Data Available | I120: https://www.savewave.net/ | J120: https://www.savewave.net/ | K120: Bycatch (gillnets) | L120: 196 | M120: 199 | N120: 196 | O120: 6.5 | P120: 6.5 | Q120: 6.5 kHz | R120: No Data Available | S120: No Data Available | T120: Intermittent | U120: Intermittent | V120: 200 | W120: 1000 | X120: 200ms - 1 s | Y120: No Data Available | Z120: No Data Available | AA120: No Data Available | AB120: No Data Available | AC120: No Data Available | AD120: No Data Available | AE120: No Data Available | AF120: No Data Available | AG120: Orcas | AH120: No Data Available | AI120: No Data Available | AJ120: No Data Available | AK120: No Data Available | AL120: No Evidence Available | AN120: No Comments | AO120: NA
A121: 118 | B121: =IF(D121='Device Selector'!$B$6,'Master Database - amended'!A121,"") ->  | D121: High Frequency Cetaceans | E121: 22d | F121: SaveWave | G121: OrcaSaver | H121: No Data Available | I121: https://www.savewave.net/ | J121: https://www.savewave.net/ | K121: Bycatch (gillnets) | L121: 196 | M121: 199 | N121: 196 | O121: 6.5 | P121: 6.5 | Q121: 6.5 kHz | R121: No Data Available | S121: No Data Available | T121: Intermittent | U121: Intermittent | V121: 200 | W121: 1000 | X121: 200ms - 1 s | Y121: No Data Available | Z121: No Data Available | AA121: No Data Available | AB121: No Data Available | AC121: No Data Available | AD121: No Data Available | AE121: No Data Available | AF121: No Data Available | AG121: Orcas | AH121: No Data Available | AI121: No Data Available | AJ121: No Data Available | AK121: No Data Available | AL121: No Evidence Available | AN121: No Comments | AO121: NA
A122: 119 | B122: =IF(D122='Device Selector'!$B$6,'Master Database - amended'!A122,"") ->  | D122: All Devices | E122: 22b | F122: Savewave | G122: Long Live Saver | H122: No Data Available | I122: https://www.savewave.net/ | J122: https://www.savewave.net/ | K122: Bycatch (gillnets) | L122: 155 | M122: 158 | N122: 151 | O122: 5 | P122: 60 | Q122: 5 - 60 kHz wide band sweeps. | R122: 4000 | S122: 16000 | T122: Pulse interval of 4 - 16 s randomised. | U122: Intermittent | V122: 200 | W122: 400 | X122: Pulse duration 200 - 400 ms. | Y122: No Data Available | Z122: No Data Available | AA122: No Data Available | AB122: No Data Available | AC122: No Data Available | AD122: No Data Available | AE122: No Data Available | AF122: No Data Available | AG122: No Evidence Available | AH122: No Data Available | AI122: No Data Available | AJ122: No Data Available | AK122: No Data Available | AL122: No Evidence Available | AN122: No Comments | AO122: NA
A123: 120 | B123: =IF(D123='Device Selector'!$B$6,'Master Database - amended'!A123,"") ->  | D123: All Devices | E123: 22c | F123: SaveWave | G123: Endurance Saver | H123: No Data Available | I123: https://www.savewave.net/ | J123: https://www.savewave.net/ | K123: Bycatch (gillnets) | L123: 140 | M123: 143 | N123: 136 | O123: 5 | P123: 90 | Q123: 5 - 90 kHz wide band sweeps. | R123: 4000 | S123: 16000 | T123: Pulse interval of 4 - 30 s randomised. | U123: Intermittent | V123: 200 | W123: 400 | X123: Pulse duration 200 - 400 ms. | Y123: No Data Available | Z123: No Data Available | AA123: No Data Available | AB123: No Data Available | AC123: No Data Available | AD123: No Data Available | AE123: No Data Available | AF123: No Data Available | AG123: No Evidence Available | AH123: No Data Available | AI123: No Data Available | AJ123: No Data Available | AK123: No Data Available | AL123: No Evidence Available | AN123: No Comments | AO123: NA
A124: 121 | B124: =IF(D124='Device Selector'!$B$6,'Master Database - amended'!A124,"") ->  | D124: All Devices | E124: 22e | F124: SaveWave | G124: OrcaSaver 2 | H124: No Data Available | I124: https://www.savewave.net/ | J124: https://www.savewave.net/ | K124: Bycatch (gillnets) | L124: 200 | M124: =L124+3 -> 203 | N124: =ROUNDUP(L124+10*LOG10(W124/1000),0) -> 200 | O124: 10 | P124: 100 | Q124: 10 kHz to 100kHz | R124: No Data Available | S124: No Data Available | T124: Continuous | U124: Continuous | V124: 200 | W124: 1000 | X124: 200ms - 1 s | Y124: No Data Available | Z124: No Data Available | AA124: No Data Available | AB124: No Data Available | AC124: No Data Available | AD124: No Data Available | AE124: No Data Available | AF124: No Data Available | AG124: Orcas | AH124: No Data Available | AI124: No Data Available | AJ124: No Data Available | AK124: No Data Available | AL124: No Evidence Available | AN124: No Comments | AO124: NA
A125: 122 | B125: =IF(D125='Device Selector'!$B$6,'Master Database - amended'!A125,"") ->  | D125: High Frequency Cetaceans | E125: 22e | F125: SaveWave | G125: OrcaSaver 2 | H125: No Data Available | I125: https://www.savewave.net/ | J125: https://www.savewave.net/ | K125: Bycatch (gillnets) | L125: 200 | M125: =L125+3 -> 203 | N125: =ROUNDUP(L125+10*LOG10(W125/1000),0) -> 200 | O125: 10 | P125: 100 | Q125: 10 kHz to 100kHz | R125: No Data Available | S125: No Data Available | T125: Continuous | U125: Continuous | V125: 200 | W125: 1000 | X125: 200ms - 1 s | Y125: No Data Available | Z125: No Data Available | AA125: No Data Available | AB125: No Data Available | AC125: No Data Available | AD125: No Data Available | AE125: No Data Available | AF125: No Data Available | AG125: Orcas | AH125: No Data Available | AI125: No Data Available | AJ125: No Data Available | AK125: No Data Available | AL125: No Evidence Available | AN125: No Comments | AO125: NA
A126: 123 | B126: =IF(D126='Device Selector'!$B$6,'Master Database - amended'!A126,"") ->  | D126: Pinnipeds | E126: 23 | F126: Gael Force | G126: SeaGuard Seal deterrent | H126: Manual | I126: http://www.gaelforcemarinetechnology.com/Aquaculture-Sea/Seal-Deterrents/SeaGuard-Seal-Deterrent.aspx?lang=nb-no | J126: http://www.gaelforcemarinetechnology.com/Aquaculture-Sea/Seal-Deterrents/SeaGuard-Seal-Deterrent.aspx?lang=nb-no | K126: Aquaculture | L126: 198 | M126: 201 | N126: No Data Available | O126: 1.5 | P126: 50 | Q126: A broadband spectral response at the beginning of each pulse, with detectable energy levels between 1.5 kHz to 50 kHz (Lepper et al. 2014). | R126: No Data Available | S126: No Data Available | T126: Multiple and random firing patterns, where lentgh and breaks of the siring pulses can be varied. | U126: Intermittent | V126: No Data Available | W126: No Data Available | X126: Varied length and breaks of firing pulses can be varied. | Y126: 3: High confidence | Z126: No Data Available | AA126: 3: High confidence | AB126: No Data Available | AC126: 3: High confidence | AD126: No Data Available | AE126: 3: High confidence | AF126: No Data Available | AG126: Harbour porpoise, Minke whale, Bottlenose dolphin, Grey seal, Harbour seal (modelling only, in context of Southall et al., 2019 criteria) | AH126: No Data Available | AI126: No Data Available | AJ126: No Data Available | AK126: <500m | AL126: https://besjournals.onlinelibrary.wiley.com/doi/abs/10.1111/1365-2664.13910 https://www.sciencedirect.com/science/article/pii/S0025326X21002058 https://iiav.org/ijav/content/volumes/24_2019_1848881553860721/vol_4/1528_fullpaper_317161577706017.pdf | AN126: Note: The literature review was based on the dB Plus II as provided by Mohn Aqua. This was then superceeded by the Gael Force SeaGuard Seal Deterrent which we understand to be the same device. In the St Andrews report, the unit measured was a 24v model which had twice the voltage of that tested by Lepper et al., (2004), which would explain the 3dB higher source level (Lepper et al., (2004) measured a sourced level of 192dB RMS for a standard 12v Airmar.). The responses observed did not suggest panic leading to a straightforward flight response; rather the seals’ behaviour appeared to represent controlled responses which often seemed to be adapted to location and circumstances allowing seals to avoid sound sources while continuing with their existing behaviour with minimal disruption. ORJIP review concludes that this device is not suitable in current configuration for use during OWF construction due to limited stated range by manufacturer (40m) and therefore practicalities of deploying a suitable system to achieve adequate deterrence - however recommendation is to take forward further discussion and provide the opportunity for Mohn Aqua to provide potential alternative solutions. | AO126: NA
A127: 124 | B127: =IF(D127='Device Selector'!$B$6,'Master Database - amended'!A127,"") ->  | D127: Low Frequency Cetaceans | E127: 23 | F127: Gael Force | G127: SeaGuard Seal deterrent | H127: Manual | I127: http://www.gaelforcemarinetechnology.com/Aquaculture-Sea/Seal-Deterrents/SeaGuard-Seal-Deterrent.aspx?lang=nb-no | J127: http://www.gaelforcemarinetechnology.com/Aquaculture-Sea/Seal-Deterrents/SeaGuard-Seal-Deterrent.aspx?lang=nb-no | K127: Aquaculture | L127: 198 | M127: 201 | N127: No Data Available | O127: 1.5 | P127: 50 | Q127: A broadband spectral response at the beginning of each pulse, with detectable energy levels between 1.5 kHz to 50 kHz (Lepper et al. 2014). | R127: No Data Available | S127: No Data Available | T127: Multiple and random firing patterns, where lentgh and breaks of the siring pulses can be varied. | U127: Intermittent | V127: No Data Available | W127: No Data Available | X127: Varied length and breaks of firing pulses can be varied. | Y127: 3: High confidence | Z127: No Data Available | AA127: 3: High confidence | AB127: No Data Available | AC127: 3: High confidence | AD127: No Data Available | AE127: 3: High confidence | AF127: No Data Available | AG127: Harbour porpoise, Minke whale, Bottlenose dolphin, Grey seal, Harbour seal (modelling only, in context of Southall et al., 2019 criteria) | AH127: No Data Available | AI127: No Data Available | AJ127: No Data Available | AK127: <500m | AL127: https://besjournals.onlinelibrary.wiley.com/doi/abs/10.1111/1365-2664.13910 https://www.sciencedirect.com/science/article/pii/S0025326X21002058 https://iiav.org/ijav/content/volumes/24_2019_1848881553860721/vol_4/1528_fullpaper_317161577706017.pdf | AN127: Note: The literature review was based on the dB Plus II as provided by Mohn Aqua. This was then superceeded by the Gael Force SeaGuard Seal Deterrent which we understand to be the same device. In the St Andrews report, the unit measured was a 24v model which had twice the voltage of that tested by Lepper et al., (2004), which would explain the 3dB higher source level (Lepper et al., (2004) measured a sourced level of 192dB RMS for a standard 12v Airmar.). The responses observed did not suggest panic leading to a straightforward flight response; rather the seals’ behaviour appeared to represent controlled responses which often seemed to be adapted to location and circumstances allowing seals to avoid sound sources while continuing with their existing behaviour with minimal disruption. ORJIP review concludes that this device is not suitable in current configuration for use during OWF construction due to limited stated range by manufacturer (40m) and therefore practicalities of deploying a suitable system to achieve adequate deterrence - however recommendation is to take forward further discussion and provide the opportunity for Mohn Aqua to provide potential alternative solutions. | AO127: NA
A128: 125 | B128: =IF(D128='Device Selector'!$B$6,'Master Database - amended'!A128,"") ->  | D128: High Frequency Cetaceans | E128: 23 | F128: Gael Force | G128: SeaGuard Seal deterrent | H128: Manual | I128: http://www.gaelforcemarinetechnology.com/Aquaculture-Sea/Seal-Deterrents/SeaGuard-Seal-Deterrent.aspx?lang=nb-no | J128: http://www.gaelforcemarinetechnology.com/Aquaculture-Sea/Seal-Deterrents/SeaGuard-Seal-Deterrent.aspx?lang=nb-no | K128: Aquaculture | L128: 198 | M128: 201 | N128: No Data Available | O128: 1.5 | P128: 50 | Q128: A broadband spectral response at the beginning of each pulse, with detectable energy levels between 1.5 kHz to 50 kHz (Lepper et al. 2014). | R128: No Data Available | S128: No Data Available | T128: Multiple and random firing patterns, where lentgh and breaks of the siring pulses can be varied. | U128: Intermittent | V128: No Data Available | W128: No Data Available | X128: Varied length and breaks of firing pulses can be varied. | Y128: 3: High confidence | Z128: No Data Available | AA128: 3: High confidence | AB128: No Data Available | AC128: 3: High confidence | AD128: No Data Available | AE128: 3: High confidence | AF128: No Data Available | AG128: Harbour porpoise, Minke whale, Bottlenose dolphin, Grey seal, Harbour seal (modelling only, in context of Southall et al., 2019 criteria) | AH128: No Data Available | AI128: No Data Available | AJ128: No Data Available | AK128: <500m | AL128: https://besjournals.onlinelibrary.wiley.com/doi/abs/10.1111/1365-2664.13910 https://www.sciencedirect.com/science/article/pii/S0025326X21002058 https://iiav.org/ijav/content/volumes/24_2019_1848881553860721/vol_4/1528_fullpaper_317161577706017.pdf | AN128: Note: The literature review was based on the dB Plus II as provided by Mohn Aqua. This was then superceeded by the Gael Force SeaGuard Seal Deterrent which we understand to be the same device. In the St Andrews report, the unit measured was a 24v model which had twice the voltage of that tested by Lepper et al., (2004), which would explain the 3dB higher source level (Lepper et al., (2004) measured a sourced level of 192dB RMS for a standard 12v Airmar.). The responses observed did not suggest panic leading to a straightforward flight response; rather the seals’ behaviour appeared to represent controlled responses which often seemed to be adapted to location and circumstances allowing seals to avoid sound sources while continuing with their existing behaviour with minimal disruption. ORJIP review concludes that this device is not suitable in current configuration for use during OWF construction due to limited stated range by manufacturer (40m) and therefore practicalities of deploying a suitable system to achieve adequate deterrence - however recommendation is to take forward further discussion and provide the opportunity for Mohn Aqua to provide potential alternative solutions. | AO128: NA
A129: 126 | B129: =IF(D129='Device Selector'!$B$6,'Master Database - amended'!A129,"") -> 126 | D129: Very High Frequency Cetaceans | E129: 23 | F129: Gael Force | G129: SeaGuard Seal deterrent | H129: Manual | I129: http://www.gaelforcemarinetechnology.com/Aquaculture-Sea/Seal-Deterrents/SeaGuard-Seal-Deterrent.aspx?lang=nb-no | J129: http://www.gaelforcemarinetechnology.com/Aquaculture-Sea/Seal-Deterrents/SeaGuard-Seal-Deterrent.aspx?lang=nb-no | K129: Aquaculture | L129: 198 | M129: 201 | N129: No Data Available | O129: 1.5 | P129: 50 | Q129: A broadband spectral response at the beginning of each pulse, with detectable energy levels between 1.5 kHz to 50 kHz (Lepper et al. 2014). | R129: No Data Available | S129: No Data Available | T129: Multiple and random firing patterns, where lentgh and breaks of the siring pulses can be varied. | U129: Intermittent | V129: No Data Available | W129: No Data Available | X129: Varied length and breaks of firing pulses can be varied. | Y129: 3: High confidence | Z129: No Data Available | AA129: 3: High confidence | AB129: No Data Available | AC129: 3: High confidence | AD129: No Data Available | AE129: 3: High confidence | AF129: No Data Available | AG129: Harbour porpoise, Minke whale, Bottlenose dolphin, Grey seal, Harbour seal (modelling only, in context of Southall et al., 2019 criteria) | AH129: No Data Available | AI129: No Data Available | AJ129: No Data Available | AK129: <500m | AL129: https://besjournals.onlinelibrary.wiley.com/doi/abs/10.1111/1365-2664.13910 https://www.sciencedirect.com/science/article/pii/S0025326X21002058 https://iiav.org/ijav/content/volumes/24_2019_1848881553860721/vol_4/1528_fullpaper_317161577706017.pdf | AN129: Note: The literature review was based on the dB Plus II as provided by Mohn Aqua. This was then superceeded by the Gael Force SeaGuard Seal Deterrent which we understand to be the same device. In the St Andrews report, the unit measured was a 24v model which had twice the voltage of that tested by Lepper et al., (2004), which would explain the 3dB higher source level (Lepper et al., (2004) measured a sourced level of 192dB RMS for a standard 12v Airmar.). The responses observed did not suggest panic leading to a straightforward flight response; rather the seals’ behaviour appeared to represent controlled responses which often seemed to be adapted to location and circumstances allowing seals to avoid sound sources while continuing with their existing behaviour with minimal disruption. ORJIP review concludes that this device is not suitable in current configuration for use during OWF construction due to limited stated range by manufacturer (40m) and therefore practicalities of deploying a suitable system to achieve adequate deterrence - however recommendation is to take forward further discussion and provide the opportunity for Mohn Aqua to provide potential alternative solutions. | AO129: NA
A130: 127 | B130: =IF(D130='Device Selector'!$B$6,'Master Database - amended'!A130,"") ->  | D130: All Species | E130: 23 | F130: Gael Force | G130: SeaGuard Seal deterrent | H130: Manual | I130: http://www.gaelforcemarinetechnology.com/Aquaculture-Sea/Seal-Deterrents/SeaGuard-Seal-Deterrent.aspx?lang=nb-no | J130: http://www.gaelforcemarinetechnology.com/Aquaculture-Sea/Seal-Deterrents/SeaGuard-Seal-Deterrent.aspx?lang=nb-no | K130: Aquaculture | L130: 198 | M130: 201 | N130: No Data Available | O130: 1.5 | P130: 50 | Q130: A broadband spectral response at the beginning of each pulse, with detectable energy levels between 1.5 kHz to 50 kHz (Lepper et al. 2014). | R130: No Data Available | S130: No Data Available | T130: Multiple and random firing patterns, where lentgh and breaks of the siring pulses can be varied. | U130: Intermittent | V130: No Data Available | W130: No Data Available | X130: Varied length and breaks of firing pulses can be varied. | Y130: 3: High confidence | Z130: No Data Available | AA130: 3: High confidence | AB130: No Data Available | AC130: 3: High confidence | AD130: No Data Available | AE130: 3: High confidence | AF130: No Data Available | AG130: Harbour porpoise, Minke whale, Bottlenose dolphin, Grey seal, Harbour seal (modelling only, in context of Southall et al., 2019 criteria) | AH130: No Data Available | AI130: No Data Available | AJ130: No Data Available | AK130: <500m | AL130: https://besjournals.onlinelibrary.wiley.com/doi/abs/10.1111/1365-2664.13910 https://www.sciencedirect.com/science/article/pii/S0025326X21002058 https://iiav.org/ijav/content/volumes/24_2019_1848881553860721/vol_4/1528_fullpaper_317161577706017.pdf | AN130: Note: The literature review was based on the dB Plus II as provided by Mohn Aqua. This was then superceeded by the Gael Force SeaGuard Seal Deterrent which we understand to be the same device. In the St Andrews report, the unit measured was a 24v model which had twice the voltage of that tested by Lepper et al., (2004), which would explain the 3dB higher source level (Lepper et al., (2004) measured a sourced level of 192dB RMS for a standard 12v Airmar.). The responses observed did not suggest panic leading to a straightforward flight response; rather the seals’ behaviour appeared to represent controlled responses which often seemed to be adapted to location and circumstances allowing seals to avoid sound sources while continuing with their existing behaviour with minimal disruption. ORJIP review concludes that this device is not suitable in current configuration for use during OWF construction due to limited stated range by manufacturer (40m) and therefore practicalities of deploying a suitable system to achieve adequate deterrence - however recommendation is to take forward further discussion and provide the opportunity for Mohn Aqua to provide potential alternative solutions. | AO130: NA
A131: 128 | B131: =IF(D131='Device Selector'!$B$6,'Master Database - amended'!A131,"") ->  | D131: All Devices | E131: 23 | F131: Gael Force | G131: SeaGuard Seal deterrent | H131: Manual | I131: http://www.gaelforcemarinetechnology.com/Aquaculture-Sea/Seal-Deterrents/SeaGuard-Seal-Deterrent.aspx?lang=nb-no | J131: http://www.gaelforcemarinetechnology.com/Aquaculture-Sea/Seal-Deterrents/SeaGuard-Seal-Deterrent.aspx?lang=nb-no | K131: Aquaculture | L131: 198 | M131: 201 | N131: No Data Available | O131: 1.5 | P131: 50 | Q131: A broadband spectral response at the beginning of each pulse, with detectable energy levels between 1.5 kHz to 50 kHz (Lepper et al. 2014). | R131: No Data Available | S131: No Data Available | T131: Multiple and random firing patterns, where lentgh and breaks of the siring pulses can be varied. | U131: Intermittent | V131: No Data Available | W131: No Data Available | X131: Varied length and breaks of firing pulses can be varied. | Y131: 3: High confidence | Z131: No Data Available | AA131: 3: High confidence | AB131: No Data Available | AC131: 3: High confidence | AD131: No Data Available | AE131: 3: High confidence | AF131: No Data Available | AG131: Harbour porpoise, Minke whale, Bottlenose dolphin, Grey seal, Harbour seal (modelling only, in context of Southall et al., 2019 criteria) | AH131: No Data Available | AI131: No Data Available | AJ131: No Data Available | AK131: <500m | AL131: https://besjournals.onlinelibrary.wiley.com/doi/abs/10.1111/1365-2664.13910 https://www.sciencedirect.com/science/article/pii/S0025326X21002058 https://iiav.org/ijav/content/volumes/24_2019_1848881553860721/vol_4/1528_fullpaper_317161577706017.pdf | AN131: Note: The literature review was based on the dB Plus II as provided by Mohn Aqua. This was then superceeded by the Gael Force SeaGuard Seal Deterrent which we understand to be the same device. In the St Andrews report, the unit measured was a 24v model which had twice the voltage of that tested by Lepper et al., (2004), which would explain the 3dB higher source level (Lepper et al., (2004) measured a sourced level of 192dB RMS for a standard 12v Airmar.). The responses observed did not suggest panic leading to a straightforward flight response; rather the seals’ behaviour appeared to represent controlled responses which often seemed to be adapted to location and circumstances allowing seals to avoid sound sources while continuing with their existing behaviour with minimal disruption. ORJIP review concludes that this device is not suitable in current configuration for use during OWF construction due to limited stated range by manufacturer (40m) and therefore practicalities of deploying a suitable system to achieve adequate deterrence - however recommendation is to take forward further discussion and provide the opportunity for Mohn Aqua to provide potential alternative solutions. | AO131: NA
A132: 129 | B132: =IF(D132='Device Selector'!$B$6,'Master Database - amended'!A132,"") -> 129 | D132: Very High Frequency Cetaceans | E132: 24 | F132: Van Oord / SEAMARCO and Ace Aquatec | G132: Faunaguard - Porpoise Module | H132: Manual | I132: https://aceaquatec.com/marine-protection-solutions/faunaguard | J132: https://aceaquatec.com/marine-protection-solutions/faunaguard | K132: Offshore piling mitigation | L132: 160 | M132: 165 | N132: No Data Available | O132: 60 | P132: 150 | Q132: 60 - 150 kHz | R132: 3000 | S132: 10000 | T132: Intermittent - randomised intervals varying between 3 and 10 seconds. | U132: Intermittent | V132: 9000 | W132: 18000 | X132: The signals vary in duration between 9 and 18 s and sound at random intervals, varying between 3 and 10 s. The average duty cycle of the device is 65% (Kastelein et al. 2017). | Y132: No Data Available | Z132: No Data Available | AA132: No Data Available | AB132: No Data Available | AC132: 3: High confidence | AD132: Y | AE132: No Data Available | AF132: No Data Available | AG132: Porpoise species | AH132: No Data Available | AI132: No Data Available | AJ132: >1000m | AK132: No Data Available | AL132: https://www.iadc-dredging.com/ul/cms/terraetaqua/document/4/3/5/435/435/1/article-faunaguard-a-scientific-method-for-deterring-marine-fauna-terra-et-aqua-138-2.pdf https://www.researchgate.net/publication/316937682_Behavioral_Responses_of_a_Harbor_Porpoise_Phocoena_phocoena_to_Sounds_from_an_Acoustic_Porpoise_Deterrent https://www.itap.de/media/faunaguard_studie_bsh_part2_bc_v3.pdf https://www.itap.de/media/bsh-faunaguard_study-part1.pdf https://www.frontiersin.org/articles/10.3389/fmars.2023.1128322 https://www.aquaticmammalsjournal.org/article/vol-43-iss-3-kastelein/ | AN132: ORJIP review concludes that the Faunaguard is suitable and is recommended for use during OWF construction. | AO132: NA
A133: 130 | B133: =IF(D133='Device Selector'!$B$6,'Master Database - amended'!A133,"") ->  | D133: All Devices | E133: 24 | F133: Van Oord / SEAMARCO and Ace Aquatec | G133: Faunaguard - Porpoise Module | H133: Manual | I133: https://aceaquatec.com/marine-protection-solutions/faunaguard | J133: https://aceaquatec.com/marine-protection-solutions/faunaguard | K133: Offshore piling mitigation | L133: 160 | M133: 165 | N133: No Data Available | O133: 60 | P133: 150 | Q133: 60 - 150 kHz | R133: 3000 | S133: 10000 | T133: Intermittent - randomised intervals varying between 3 and 10 seconds. | U133: Intermittent | V133: 9000 | W133: 18000 | X133: The signals vary in duration between 9 and 18 s and sound at random intervals, varying between 3 and 10 s. The average duty cycle of the device is 65% (Kastelein et al. 2017). | Y133: No Data Available | Z133: No Data Available | AA133: No Data Available | AB133: No Data Available | AC133: 3: High confidence | AD133: Y | AE133: No Data Available | AF133: No Data Available | AG133: Porpoise species | AH133: No Data Available | AI133: No Data Available | AJ133: >1000m | AK133: No Data Available | AL133: https://www.iadc-dredging.com/ul/cms/terraetaqua/document/4/3/5/435/435/1/article-faunaguard-a-scientific-method-for-deterring-marine-fauna-terra-et-aqua-138-2.pdf https://www.researchgate.net/publication/316937682_Behavioral_Responses_of_a_Harbor_Porpoise_Phocoena_phocoena_to_Sounds_from_an_Acoustic_Porpoise_Deterrent https://www.itap.de/media/faunaguard_studie_bsh_part2_bc_v3.pdf https://www.itap.de/media/bsh-faunaguard_study-part1.pdf https://www.frontiersin.org/articles/10.3389/fmars.2023.1128322 https://www.aquaticmammalsjournal.org/article/vol-43-iss-3-kastelein/ | AN133: ORJIP review concludes that the Faunaguard is suitable and is recommended for use during OWF construction. | AO133: NA
A134: 131 | B134: =IF(D134='Device Selector'!$B$6,'Master Database - amended'!A134,"") ->  | D134: Pinnipeds | E134: 25 | F134: Van Oord / SEAMARCO and Ace Aquatec | G134: Faunaguard - Seal Module | H134: Automatic | I134: https://aceaquatec.com/marine-protection-solutions/faunaguard | J134: https://aceaquatec.com/marine-protection-solutions/faunaguard | K134: Offshore piling mitigation | L134: 163 | M134: 174 | N134: No Data Available | O134: 1 | P134: 20 | Q134: 1 - 20 kHz | R134: 3000 | S134: 10000 | T134: Intermittent - randomised intervals varying between 3 and 10 seconds. | U134: Intermittent | V134: 10000 | W134: 10000 | X134: Sequence of 16 selected signals (square, triangle, saw tooth, sweep) at 10 seconds per signal. The average duty cycle of the device is ~60% (Kastelein et al. 2017). | Y134: No Data Available | Z134: No Data Available | AA134: No Data Available | AB134: No Data Available | AC134: No Data Available | AD134: No Data Available | AE134: 3: High confidence | AF134: Y | AG134: Seals | AH134: No Data Available | AI134: No Data Available | AJ134: No Data Available | AK134: <500m | AL134: http://www.smru.st-andrews.ac.uk/documents/scotgov/MR8-1_ADD_mitigation_report_summary.pdf https://search.proquest.com/openview/c35771a2b798d0e65e04546f9680480d/1 https://www.carbontrust.com/our-work-and-impact/impact-stories/offshore-renewables-joint-industry-programme-orjip-for-offshore-wind/orjip-offshore-wind-stage-1 | AN134: In most cases in the shallow North Sea, PTS in harbour seals would be prevented if they moved 100 to 200 m away from the source of pile driving sounds, and, thus, the FG-SM is considered a good mitigation device. | AO134: NA
A135: 132 | B135: =IF(D135='Device Selector'!$B$6,'Master Database - amended'!A135,"") ->  | D135: All Devices | E135: 25 | F135: Van Oord / SEAMARCO and Ace Aquatec | G135: Faunaguard - Seal Module | H135: Automatic | I135: https://aceaquatec.com/marine-protection-solutions/faunaguard | J135: https://aceaquatec.com/marine-protection-solutions/faunaguard | K135: Offshore piling mitigation | L135: 163 | M135: 174 | N135: No Data Available | O135: 1 | P135: 20 | Q135: 1 - 20 kHz | R135: 3000 | S135: 10000 | T135: Intermittent - randomised intervals varying between 3 and 10 seconds. | U135: Intermittent | V135: 10000 | W135: 10000 | X135: Sequence of 16 selected signals (square, triangle, saw tooth, sweep) at 10 seconds per signal. The average duty cycle of the device is ~60% (Kastelein et al. 2017). | Y135: No Data Available | Z135: No Data Available | AA135: No Data Available | AB135: No Data Available | AC135: No Data Available | AD135: No Data Available | AE135: 3: High confidence | AF135: Y | AG135: Seals | AH135: No Data Available | AI135: No Data Available | AJ135: No Data Available | AK135: <500m | AL135: http://www.smru.st-andrews.ac.uk/documents/scotgov/MR8-1_ADD_mitigation_report_summary.pdf https://search.proquest.com/openview/c35771a2b798d0e65e04546f9680480d/1 https://www.carbontrust.com/our-work-and-impact/impact-stories/offshore-renewables-joint-industry-programme-orjip-for-offshore-wind/orjip-offshore-wind-stage-1 | AN135: In most cases in the shallow North Sea, PTS in harbour seals would be prevented if they moved 100 to 200 m away from the source of pile driving sounds, and, thus, the FG-SM is considered a good mitigation device. | AO135: NA
A136: 133 | B136: =IF(D136='Device Selector'!$B$6,'Master Database - amended'!A136,"") ->  | D136: All Devices | E136: 26 | F136: Van Oord / SEAMARCO and Ace Aquatec | G136: Faunaguard - Turtle Module | H136: Automatic | I136: https://aceaquatec.com/marine-protection-solutions/faunaguard | J136: https://aceaquatec.com/marine-protection-solutions/faunaguard | K136: Offshore piling mitigation | L136: Setting 1 – 172.2 dB re1μPa @1m Setting 2 – 181.7 dB re1μPa @1m | M136: Setting 1 – peak output 177.7 dB re1μPa @1m Setting 2 – peak output 186.5 dB re1μPa @1m | N136: 180 - 194 | O136: 0.1 | P136: 1 | Q136: 100 Hz - 1 kHz | R136: 3000 | S136: 10000 | T136: Intermittent - randomised intervals varying between 3 and 10 seconds. | U136: Intermittent | V136: 10000 | W136: 10000 | X136: Sequence of 7 selected signals (square, triangle, saw tooth, sweep) at 10 seconds per signal. The average duty cycle of the device is ~60% (Kastelein et al. 2017). | Y136: No Data Available | Z136: No Data Available | AA136: No Data Available | AB136: No Data Available | AC136: No Data Available | AD136: No Data Available | AE136: No Data Available | AF136: No Data Available | AG136: Turtles | AH136: No Data Available | AI136: No Data Available | AJ136: No Data Available | AK136: No Data Available | AL136: No Evidence Available | AN136: No Comments | AO136: NA
A137: 134 | B137: =IF(D137='Device Selector'!$B$6,'Master Database - amended'!A137,"") ->  | D137: All Devices | E137: 27 | F137: Van Oord / SEAMARCO and Ace Aquatec | G137: Faunaguard - Fish Module | H137: Automatic | I137: https://aceaquatec.com/marine-protection-solutions/faunaguard | J137: =I137 -> https://aceaquatec.com/marine-protection-solutions/faunaguard | K137: Offshore piling mitigation | L137: 181 | M137: 186.5 | N137: 197 | O137: 0.2 | P137: 1.5 | Q137: 200 Hz - 1.5 kHz | R137: 3000 | S137: 10000 | T137: Intermittent - randomised intervals varying between 3 and 10 seconds. | U137: Intermittent | V137: 10000 | W137: 10000 | X137: Sequence of 20 selected signals (square, triangle, saw tooth, sweep) at 10 seconds per signal. The average duty cycle of the device is ~60% (Kastelein et al. 2017). | Y137: No Data Available | Z137: No Data Available | AA137: No Data Available | AB137: No Data Available | AC137: No Data Available | AD137: No Data Available | AE137: No Data Available | AF137: No Data Available | AG137: Fish | AH137: No Data Available | AI137: No Data Available | AJ137: No Data Available | AK137: No Data Available | AL137: https://doi.org/10.1121/10.0024720 | AN137: No Comments | AO137: NA
A138: 135 | B138: =IF(D138='Device Selector'!$B$6,'Master Database - amended'!A138,"") ->  | D138: High Frequency Cetaceans | E138: 28 | F138: Seamaster | G138: Seamaster Fish Protector | H138: No Data Available | I138: http://www.seamaster.com.tw/sea-master-protector.htm | J138: http://www.seamaster.com.tw/sea-master-protector.htm | K138: Bycatch (gillnets) | L138: 165 | M138: 168 | N138: 165 | O138: 10 | P138: 90 | Q138: Frequency sweep tones and harmonics 10 - 90 kHz. | R138: 15000 | S138: 15000 | T138: 15 s | U138: Intermittent | V138: 1900 | W138: 1900 | X138: 1.9 s | Y138: No Data Available | Z138: No Data Available | AA138: 1: Low confidence | AB138: Y | AC138: No Data Available | AD138: No Data Available | AE138: No Data Available | AF138: No Data Available | AG138: Dolphins | AH138: No Data Available | AI138: 500 - 1000m | AJ138: No Data Available | AK138: No Data Available | AL138: No Evidence Available | AN138: No Comments | AO138: NA
A139: 136 | B139: =IF(D139='Device Selector'!$B$6,'Master Database - amended'!A139,"") ->  | D139: All Devices | E139: 2/ | F139: Seamaster | G139: Seamaster Fish Protector | H139: No Data Available | I139: http://www.seamaster.com.tw/sea-master-protector.htm | J139: http://www.seamaster.com.tw/sea-master-protector.htm | K139: Bycatch (gillnets) | L139: 165 | M139: 168 | N139: 165 | O139: 10 | P139: 90 | Q139: Frequency sweep tones and harmonics 10 - 90 kHz. | R139: 15000 | S139: 15000 | T139: 15 s | U139: Intermittent | V139: 1900 | W139: 1900 | X139: 1.9 s | Y139: No Data Available | Z139: No Data Available | AA139: 1: Low confidence | AB139: Y | AC139: No Data Available | AD139: No Data Available | AE139: No Data Available | AF139: No Data Available | AG139: Dolphins | AH139: No Data Available | AI139: 500 - 1000m | AJ139: No Data Available | AK139: No Data Available | AL139: No Evidence Available | AN139: No Comments | AO139: NA
A140: 137 | B140: =IF(D140='Device Selector'!$B$6,'Master Database - amended'!A140,"") ->  | D140: Pinnipeds | E140: 29 | F140: OTAQ | G140: SealFENCE 3/4 | H140: Automatic | I140: https://offshore.otaq.com/products/sealfence-portable/ | J140: https://offshore.otaq.com/products/sealfence-portable/ | K140: Aquaculture | L140: 165 (Patrol Mode) / 189 (Protect Mode) | M140: No Data Available | N140: No Data Available | O140: 10 | P140: 10 | Q140: 10 kHz | R140: 10000 (patrol mode) / 3000 (protect mode) | S140: 10000 (patrol mode) / 9000 (protect mode) | T140: Patrol mode: 2s transmission with a fixed 10s gap between pulses. Protect mode: 3s transmission with random pulse gaps of between 3s to 9s | U140: Intermittent | V140: No Data Available | W140: No Data Available | X140: Transmission period form from a sequence of tone bursts, so overall duty cycle is 0.7% (patrol mode) / 1.3% (protect mode) | Y140: 3: High confidence | Z140: No Data Available | AA140: 3: High confidence | AB140: No Data Available | AC140: 3: High confidence | AD140: Y | AE140: 3: High confidence | AF140: No Data Available | AG140: Harbour porpoise, Minke whale, Bottlenose dolphin, Grey seal, Harbour seal (modelling only, in context of Southall et al., 2019 criteria) | AH140: Not known | AI140: Not known | AJ140: Not known | AK140: Not known | AL140: http://www.snh.org.uk/pdfs/publications/commissioned_reports/517.pdf https://research-repository.st-andrews.ac.uk/handle/10023/848 https://www.ncbi.nlm.nih.gov/pubmed/20400639 https://www.sciencedirect.com/science/article/pii/S0025326X21002058 https://besjournals.onlinelibrary.wiley.com/doi/abs/10.1111/1365-2664.13910 | AN140: Todd et al. (2021) predicted onset of TTS at a range of 20 km in VHF cetaceans and 6 km in all other species (standard mode), and 4 km in VHF cetaceans and 0.7 km in all other species
A141: 138 | B141: =IF(D141='Device Selector'!$B$6,'Master Database - amended'!A141,"") ->  | D141: All Devices | E141: 29 | F141: OTAQ | G141: SealFENCE 3/4 | H141: Automatic | I141: https://offshore.otaq.com/products/sealfence-portable/ | J141: https://offshore.otaq.com/products/sealfence-portable/ | K141: Aquaculture | L141: 165 (Patrol Mode) / 189 (Protect Mode) | M141: No Data Available | N141: No Data Available | O141: 10 | P141: 10 | Q141: 10 kHz | R141: 10000 (patrol mode) / 3000 (protect mode) | S141: 10000 (patrol mode) / 9000 (protect mode) | T141: Patrol mode: 2s transmission with a fixed 10s gap between pulses. Protect mode: 3s transmission with random pulse gaps of between 3s to 9s | U141: Intermittent | V141: No Data Available | W141: No Data Available | X141: Transmission period form from a sequence of tone bursts, so overall duty cycle is 0.7% (patrol mode) / 1.3% (protect mode) | Y141: 3: High confidence | Z141: No Data Available | AA141: 3: High confidence | AB141: No Data Available | AC141: 3: High confidence | AD141: Y | AE141: 3: High confidence | AF141: No Data Available | AG141: Harbour porpoise, Minke whale, Bottlenose dolphin, Grey seal, Harbour seal (modelling only, in context of Southall et al., 2019 criteria) | AH141: Not known | AI141: Not known | AJ141: Not known | AK141: Not known | AL141: http://www.snh.org.uk/pdfs/publications/commissioned_reports/517.pdf https://research-repository.st-andrews.ac.uk/handle/10023/848 https://www.ncbi.nlm.nih.gov/pubmed/20400639 https://www.sciencedirect.com/science/article/pii/S0025326X21002058 https://besjournals.onlinelibrary.wiley.com/doi/abs/10.1111/1365-2664.13910 | AN141: Todd et al. (2021) predicted onset of TTS at a range of 20 km in VHF cetaceans and 6 km in all other species (standard mode), and 4 km in VHF cetaceans and 0.7 km in all other species
A142: 139 | B142: =IF(D142='Device Selector'!$B$6,'Master Database - amended'!A142,"") -> 139 | D142: Very High Frequency Cetaceans | E142: 30a | F142: Terecos Ltd | G142: DSMS-4 - Programme 1 (Sequence 1) | H142: No Data Available | I142: No manufacturers website available | J142: No manufacturers website available | K142: Aquaculture | L142: 177 | M142: 180 | N142: 177 | O142: 6.6 | P142: 27 | Q142: Measured sound pressure level output = 177 dB re 1µPa at 1m (RMS) (± 1 dB) at 6.6 kHz (Lepper et al. 2004). No equivalent source levels of greater than 146 dB re 1µPa at 1m (RMS) at frequencies above 27 kHz (Lepper et al. 2014). | R142: No Interval | S142: No Interval | T142: Repetitive five segment (16 ms duration) continuous tonal blocks forming an up and down frequency sweep (Lepper et al. 2004). | U142: Continuous | V142: Continuous | W142: Continuous | X142: Repetitive five segment (16 ms duration) continuous tonal blocks forming an up and down frequency sweep (Lepper et al. 2004). | Y142: No Data Available | Z142: No Data Available | AA142: No Data Available | AB142: No Data Available | AC142: 2: Medium confidence | AD142: Y | AE142: 3: High confidence | AF142: N | AG142: All species | AH142: >1000m | AI142: >1000m | AJ142: >1000m | AK142: >1000m | AL142: http://www.snh.org.uk/pdfs/publications/commissioned_reports/517.pdf https://research-repository.st-andrews.ac.uk/handle/10023/848 https://www.ncbi.nlm.nih.gov/pubmed/20400639 | AN142: Calibrated hydrophone recordings of active ADD systems suggested that there was considerable variability in the acoustic output of the transducers, and it is suggested that regular measurements should be made at farm sites to ensure that transducers are all operating as intended. | AO142: NA
A143: 140 | B143: =IF(D143='Device Selector'!$B$6,'Master Database - amended'!A143,"") ->  | D143: Pinnipeds | E143: 30a | F143: Terecos Ltd | G143: DSMS-4 - Programme 1 (Sequence 1) | H143: No Data Available | I143: No manufacturers website available | J143: No manufacturers website available | K143: Aquaculture | L143: 177 | M143: 180 | N143: 177 | O143: 6.6 | P143: 27 | Q143: Measured sound pressure level output = 177 dB re 1µPa at 1m (RMS) (± 1 dB) at 6.6 kHz (Lepper et al. 2004). No equivalent source levels of greater than 146 dB re 1µPa at 1m (RMS) at frequencies above 27 kHz (Lepper et al. 2014). | R143: No Interval | S143: No Interval | T143: Repetitive five segment (16 ms duration) continuous tonal blocks forming an up and down frequency sweep (Lepper et al. 2004). | U143: Continuous | V143: Continuous | W143: Continuous | X143: Repetitive five segment (16 ms duration) continuous tonal blocks forming an up and down frequency sweep (Lepper et al. 2004). | Y143: No Data Available | Z143: No Data Available | AA143: No Data Available | AB143: No Data Available | AC143: 2: Medium confidence | AD143: Y | AE143: 3: High confidence | AF143: N | AG143: All species | AH143: >1000m | AI143: >1000m | AJ143: >1000m | AK143: >1000m | AL143: http://www.snh.org.uk/pdfs/publications/commissioned_reports/517.pdf https://research-repository.st-andrews.ac.uk/handle/10023/848 https://www.ncbi.nlm.nih.gov/pubmed/20400639 | AN143: Calibrated hydrophone recordings of active ADD systems suggested that there was considerable variability in the acoustic output of the transducers, and it is suggested that regular measurements should be made at farm sites to ensure that transducers are all operating as intended. | AO143: NA
A144: 141 | B144: =IF(D144='Device Selector'!$B$6,'Master Database - amended'!A144,"") ->  | D144: All Devices | E144: 30a | F144: Terecos Ltd | G144: DSMS-4 - Programme 1 (Sequence 1) | H144: No Data Available | I144: No manufacturers website available | J144: No manufacturers website available | K144: Aquaculture | L144: 177 | M144: 180 | N144: 177 | O144: 6.6 | P144: 27 | Q144: Measured sound pressure level output = 177 dB re 1µPa at 1m (RMS) (± 1 dB) at 6.6 kHz (Lepper et al. 2004). No equivalent source levels of greater than 146 dB re 1µPa at 1m (RMS) at frequencies above 27 kHz (Lepper et al. 2014). | R144: No Interval | S144: No Interval | T144: Repetitive five segment (16 ms duration) continuous tonal blocks forming an up and down frequency sweep (Lepper et al. 2004). | U144: Continuous | V144: Continuous | W144: Continuous | X144: Repetitive five segment (16 ms duration) continuous tonal blocks forming an up and down frequency sweep (Lepper et al. 2004). | Y144: No Data Available | Z144: No Data Available | AA144: No Data Available | AB144: No Data Available | AC144: 2: Medium confidence | AD144: Y | AE144: 3: High confidence | AF144: N | AG144: All species | AH144: >1000m | AI144: >1000m | AJ144: >1000m | AK144: >1000m | AL144: http://www.snh.org.uk/pdfs/publications/commissioned_reports/517.pdf https://research-repository.st-andrews.ac.uk/handle/10023/848 https://www.ncbi.nlm.nih.gov/pubmed/20400639 | AN144: Calibrated hydrophone recordings of active ADD systems suggested that there was considerable variability in the acoustic output of the transducers, and it is suggested that regular measurements should be made at farm sites to ensure that transducers are all operating as intended. | AO144: NA
A145: 142 | B145: =IF(D145='Device Selector'!$B$6,'Master Database - amended'!A145,"") -> 142 | D145: Very High Frequency Cetaceans | E145: 30b | F145: Terecos Ltd | G145: DSMS-4 - Programme 2 | H145: No Data Available | I145: No manufacturers website available | J145: No manufacturers website available | K145: Aquaculture | L145: 179 | M145: 182 | N145: 179 | O145: 4.7 | P145: 27 | Q145: Measured sound pressure level output = 179 dB re 1µPa at 1m (RMS) (± 1 dB) and 178 dB re 1µPa at 1m (RMS) (± 1 dB) at 4.7 kHz and 6.8 kHz respectively (Lepper et al. 2014). No equivalent source levels of greater than 145 dB re 1µPa at 1m (RMS) at frequencies above 27 kHz (Lepper et al. 2014). | R145: No Interval | S145: No Interval | T145: Multi-component continuous tones with observed peak level frequencies of 4.7 kHz and 6.8 kHz. Both contain complex multiple frequency components with a broad energy distribution away from the peak level tonal component. | U145: Continuous | V145: Continuous | W145: Continuous | X145: Randomly timed sequence of continuous and time variant multi-component tonal blocks (Lepper et al. 2004). | Y145: No Data Available | Z145: No Data Available | AA145: No Data Available | AB145: No Data Available | AC145: 2: Medium confidence | AD145: Y | AE145: 3: High confidence | AF145: N | AG145: All species | AH145: >1000m | AI145: >1000m | AJ145: >1000m | AK145: >1000m | AL145: http://www.snh.org.uk/pdfs/publications/commissioned_reports/517.pdf https://research-repository.st-andrews.ac.uk/handle/10023/848 https://www.ncbi.nlm.nih.gov/pubmed/20400639 | AN145: Calibrated hydrophone recordings of active ADD systems suggested that there was considerable variability in the acoustic output of the transducers, and it is suggested that regular measurements should be made at farm sites to ensure that transducers are all operating as intended. | AO145: NA
A146: 143 | B146: =IF(D146='Device Selector'!$B$6,'Master Database - amended'!A146,"") ->  | D146: Pinnipeds | E146: 30b | F146: Terecos Ltd | G146: DSMS-4 - Programme 2 | H146: No Data Available | I146: No manufacturers website available | J146: No manufacturers website available | K146: Aquaculture | L146: 179 | M146: 182 | N146: 179 | O146: 4.7 | P146: 27 | Q146: Measured sound pressure level output = 179 dB re 1µPa at 1m (RMS) (± 1 dB) and 178 dB re 1µPa at 1m (RMS) (± 1 dB) at 4.7 kHz and 6.8 kHz respectively (Lepper et al. 2014). No equivalent source levels of greater than 145 dB re 1µPa at 1m (RMS) at frequencies above 27 kHz (Lepper et al. 2014). | R146: No Interval | S146: No Interval | T146: Multi-component continuous tones with observed peak level frequencies of 4.7 kHz and 6.8 kHz. Both contain complex multiple frequency components with a broad energy distribution away from the peak level tonal component. | U146: Continuous | V146: Continuous | W146: Continuous | X146: Randomly timed sequence of continuous and time variant multi-component tonal blocks (Lepper et al. 2004). | Y146: No Data Available | Z146: No Data Available | AA146: No Data Available | AB146: No Data Available | AC146: 2: Medium confidence | AD146: Y | AE146: 3: High confidence | AF146: N | AG146: All species | AH146: >1000m | AI146: >1000m | AJ146: >1000m | AK146: >1000m | AL146: http://www.snh.org.uk/pdfs/publications/commissioned_reports/517.pdf https://research-repository.st-andrews.ac.uk/handle/10023/848 https://www.ncbi.nlm.nih.gov/pubmed/20400639 | AN146: Calibrated hydrophone recordings of active ADD systems suggested that there was considerable variability in the acoustic output of the transducers, and it is suggested that regular measurements should be made at farm sites to ensure that transducers are all operating as intended. | AO146: NA
A147: 144 | B147: =IF(D147='Device Selector'!$B$6,'Master Database - amended'!A147,"") ->  | D147: All Devices | E147: 30b | F147: Terecos Ltd | G147: DSMS-4 - Programme 2 | H147: No Data Available | I147: No manufacturers website available | J147: No manufacturers website available | K147: Aquaculture | L147: 179 | M147: 182 | N147: 179 | O147: 4.7 | P147: 27 | Q147: Measured sound pressure level output = 179 dB re 1µPa at 1m (RMS) (± 1 dB) and 178 dB re 1µPa at 1m (RMS) (± 1 dB) at 4.7 kHz and 6.8 kHz respectively (Lepper et al. 2014). No equivalent source levels of greater than 145 dB re 1µPa at 1m (RMS) at frequencies above 27 kHz (Lepper et al. 2014). | R147: No Interval | S147: No Interval | T147: Multi-component continuous tones with observed peak level frequencies of 4.7 kHz and 6.8 kHz. Both contain complex multiple frequency components with a broad energy distribution away from the peak level tonal component. | U147: Continuous | V147: Continuous | W147: Continuous | X147: Randomly timed sequence of continuous and time variant multi-component tonal blocks (Lepper et al. 2004). | Y147: No Data Available | Z147: No Data Available | AA147: No Data Available | AB147: No Data Available | AC147: 2: Medium confidence | AD147: Y | AE147: 3: High confidence | AF147: N | AG147: All species | AH147: >1000m | AI147: >1000m | AJ147: >1000m | AK147: >1000m | AL147: http://www.snh.org.uk/pdfs/publications/commissioned_reports/517.pdf https://research-repository.st-andrews.ac.uk/handle/10023/848 https://www.ncbi.nlm.nih.gov/pubmed/20400639 | AN147: Calibrated hydrophone recordings of active ADD systems suggested that there was considerable variability in the acoustic output of the transducers, and it is suggested that regular measurements should be made at farm sites to ensure that transducers are all operating as intended. | AO147: NA
A148: 145 | B148: =IF(D148='Device Selector'!$B$6,'Master Database - amended'!A148,"") -> 145 | D148: Very High Frequency Cetaceans | E148: 30c | F148: Terecos Ltd | G148: DSMS-4 - Programme 3 (Sequence 2) | H148: No Data Available | I148: No manufacturers website available | J148: No manufacturers website available | K148: Aquaculture | L148: 178 | M148: 181 | N148: 178 | O148: No Data Available | P148: No Data Available | Q148: Measured sound pressure level output = 178 dB re 1µPa at 1m (RMS) (± 1 dB) at 4.9 kHz (Lepper et al. 2004). | R148: No Interval | S148: No Interval | T148: Sequence of eight segments (8 ms duration) continuous tonal blocks forming an up and down frequency sweep combined with variable continuous multi-component tonal blocks (Lepper et al. 2004). | U148: Continuous | V148: Continuous | W148: Continuous | X148: Sequence of eight segments (8 ms duration) continuous tonal blocks forming an up and down frequency sweep combined with variable continuous multi-component tonal blocks (Lepper et al. 2004). | Y148: No Data Available | Z148: No Data Available | AA148: No Data Available | AB148: No Data Available | AC148: 2: Medium confidence | AD148: Y | AE148: 3: High confidence | AF148: N | AG148: All species | AH148: >1000m | AI148: >1000m | AJ148: >1000m | AK148: >1000m | AL148: http://www.snh.org.uk/pdfs/publications/commissioned_reports/517.pdf https://research-repository.st-andrews.ac.uk/handle/10023/848 https://www.ncbi.nlm.nih.gov/pubmed/20400639 | AN148: Calibrated hydrophone recordings of active ADD systems suggested that there was considerable variability in the acoustic output of the transducers, and it is suggested that regular measurements should be made at farm sites to ensure that transducers are all operating as intended. | AO148: NA
A149: 146 | B149: =IF(D149='Device Selector'!$B$6,'Master Database - amended'!A149,"") ->  | D149: Pinnipeds | E149: 30c | F149: Terecos Ltd | G149: DSMS-4 - Programme 3 (Sequence 2) | H149: No Data Available | I149: No manufacturers website available | J149: No manufacturers website available | K149: Aquaculture | L149: 178 | M149: 181 | N149: 178 | O149: No Data Available | P149: No Data Available | Q149: Measured sound pressure level output = 178 dB re 1µPa at 1m (RMS) (± 1 dB) at 4.9 kHz (Lepper et al. 2004). | R149: No Interval | S149: No Interval | T149: Sequence of eight segments (8 ms duration) continuous tonal blocks forming an up and down frequency sweep combined with variable continuous multi-component tonal blocks (Lepper et al. 2004). | U149: Continuous | V149: Continuous | W149: Continuous | X149: Sequence of eight segments (8 ms duration) continuous tonal blocks forming an up and down frequency sweep combined with variable continuous multi-component tonal blocks (Lepper et al. 2004). | Y149: No Data Available | Z149: No Data Available | AA149: No Data Available | AB149: No Data Available | AC149: 2: Medium confidence | AD149: Y | AE149: 3: High confidence | AF149: N | AG149: All species | AH149: >1000m | AI149: >1000m | AJ149: >1000m | AK149: >1000m | AL149: http://www.snh.org.uk/pdfs/publications/commissioned_reports/517.pdf https://research-repository.st-andrews.ac.uk/handle/10023/848 https://www.ncbi.nlm.nih.gov/pubmed/20400639 | AN149: Calibrated hydrophone recordings of active ADD systems suggested that there was considerable variability in the acoustic output of the transducers, and it is suggested that regular measurements should be made at farm sites to ensure that transducers are all operating as intended. | AO149: NA
A150: 147 | B150: =IF(D150='Device Selector'!$B$6,'Master Database - amended'!A150,"") ->  | D150: All Devices | E150: 30c | F150: Terecos Ltd | G150: DSMS-4 - Programme 3 (Sequence 2) | H150: No Data Available | I150: No manufacturers website available | J150: No manufacturers website available | K150: Aquaculture | L150: 178 | M150: 181 | N150: 178 | O150: No Data Available | P150: No Data Available | Q150: Measured sound pressure level output = 178 dB re 1µPa at 1m (RMS) (± 1 dB) at 4.9 kHz (Lepper et al. 2004). | R150: No Interval | S150: No Interval | T150: Sequence of eight segments (8 ms duration) continuous tonal blocks forming an up and down frequency sweep combined with variable continuous multi-component tonal blocks (Lepper et al. 2004). | U150: Continuous | V150: Continuous | W150: Continuous | X150: Sequence of eight segments (8 ms duration) continuous tonal blocks forming an up and down frequency sweep combined with variable continuous multi-component tonal blocks (Lepper et al. 2004). | Y150: No Data Available | Z150: No Data Available | AA150: No Data Available | AB150: No Data Available | AC150: 2: Medium confidence | AD150: Y | AE150: 3: High confidence | AF150: N | AG150: All species | AH150: >1000m | AI150: >1000m | AJ150: >1000m | AK150: >1000m | AL150: http://www.snh.org.uk/pdfs/publications/commissioned_reports/517.pdf https://research-repository.st-andrews.ac.uk/handle/10023/848 https://www.ncbi.nlm.nih.gov/pubmed/20400639 | AN150: Calibrated hydrophone recordings of active ADD systems suggested that there was considerable variability in the acoustic output of the transducers, and it is suggested that regular measurements should be made at farm sites to ensure that transducers are all operating as intended. | AO150: NA
A151: 148 | B151: =IF(D151='Device Selector'!$B$6,'Master Database - amended'!A151,"") -> 148 | D151: Very High Frequency Cetaceans | E151: 30d | F151: Terecos Ltd | G151: DSMS-4 - Programme 4 (Combined Sequence 1 and Sequence 2) | H151: No Data Available | I151: No manufacturers website available | J151: No manufacturers website available | K151: Aquaculture | L151: 179 | M151: 182 | N151: 179 | O151: No Data Available | P151: No Data Available | Q151: Combined Sequence 1 and Sequence 2 (See programme 1 and 3). | R151: No Interval | S151: No Interval | T151: Randomly timed combined sequence of Seq. 1, Seq. 2 tonal blocks, continuous multi-component tonal blocks and time variant multi-component tonal blocks (Lepper et al. 2004). | U151: Continuous | V151: Continuous | W151: Continuous | X151: Randomly timed combined sequence of Seq. 1, Seq. 2 tonal blocks, continuous multi-component tonal blocks and time variant multi-component tonal blocks (Lepper et al. 2004). | Y151: No Data Available | Z151: No Data Available | AA151: No Data Available | AB151: No Data Available | AC151: 2: Medium confidence | AD151: Y | AE151: 3: High confidence | AF151: N | AG151: All species | AH151: >1000m | AI151: >1000m | AJ151: >1000m | AK151: >1000m | AL151: http://www.snh.org.uk/pdfs/publications/commissioned_reports/517.pdf https://research-repository.st-andrews.ac.uk/handle/10023/848 https://www.ncbi.nlm.nih.gov/pubmed/20400639 | AN151: Calibrated hydrophone recordings of active ADD systems suggested that there was considerable variability in the acoustic output of the transducers, and it is suggested that regular measurements should be made at farm sites to ensure that transducers are all operating as intended. | AO151: NA
A152: 149 | B152: =IF(D152='Device Selector'!$B$6,'Master Database - amended'!A152,"") ->  | D152: Pinnipeds | E152: 30d | F152: Terecos Ltd | G152: DSMS-4 - Programme 4 (Combined Sequence 1 and Sequence 2) | H152: No Data Available | I152: No manufacturers website available | J152: =I152 -> No manufacturers website available | K152: Aquaculture | L152: 179 | M152: 182 | N152: 179 | O152: No Data Available | P152: No Data Available | Q152: Combined Sequence 1 and Sequence 2 (See programme 1 and 3). | R152: No Interval | S152: No Interval | T152: Randomly timed combined sequence of Seq. 1, Seq. 2 tonal blocks, continuous multi-component tonal blocks and time variant multi-component tonal blocks (Lepper et al. 2004). | U152: Continuous | V152: Continuous | W152: Continuous | X152: Randomly timed combined sequence of Seq. 1, Seq. 2 tonal blocks, continuous multi-component tonal blocks and time variant multi-component tonal blocks (Lepper et al. 2004). | Y152: No Data Available | Z152: No Data Available | AA152: No Data Available | AB152: No Data Available | AC152: 2: Medium confidence | AD152: Y | AE152: 3: High confidence | AF152: N | AG152: All species | AH152: >1000m | AI152: >1000m | AJ152: >1000m | AK152: >1000m | AL152: http://www.snh.org.uk/pdfs/publications/commissioned_reports/517.pdf https://research-repository.st-andrews.ac.uk/handle/10023/848 https://www.ncbi.nlm.nih.gov/pubmed/20400639 | AN152: Calibrated hydrophone recordings of active ADD systems suggested that there was considerable variability in the acoustic output of the transducers, and it is suggested that regular measurements should be made at farm sites to ensure that transducers are all operating as intended. | AO152: NA
A153: 150 | B153: =IF(D153='Device Selector'!$B$6,'Master Database - amended'!A153,"") ->  | D153: All Devices | E153: 30d | F153: Terecos Ltd | G153: DSMS-4 - Programme 4 (Combined Sequence 1 and Sequence 2) | H153: No Data Available | I153: No manufacturers website available | J153: =I153 -> No manufacturers website available | K153: Aquaculture | L153: 179 | M153: 182 | N153: 179 | O153: No Data Available | P153: No Data Available | Q153: Combined Sequence 1 and Sequence 2 (See programme 1 and 3). | R153: No Interval | S153: No Interval | T153: Randomly timed combined sequence of Seq. 1, Seq. 2 tonal blocks, continuous multi-component tonal blocks and time variant multi-component tonal blocks (Lepper et al. 2004). | U153: Continuous | V153: Continuous | W153: Continuous | X153: Randomly timed combined sequence of Seq. 1, Seq. 2 tonal blocks, continuous multi-component tonal blocks and time variant multi-component tonal blocks (Lepper et al. 2004). | Y153: No Data Available | Z153: No Data Available | AA153: No Data Available | AB153: No Data Available | AC153: 2: Medium confidence | AD153: Y | AE153: 3: High confidence | AF153: N | AG153: All species | AH153: >1000m | AI153: >1000m | AJ153: >1000m | AK153: >1000m | AL153: http://www.snh.org.uk/pdfs/publications/commissioned_reports/517.pdf https://research-repository.st-andrews.ac.uk/handle/10023/848 https://www.ncbi.nlm.nih.gov/pubmed/20400639 | AN153: Calibrated hydrophone recordings of active ADD systems suggested that there was considerable variability in the acoustic output of the transducers, and it is suggested that regular measurements should be made at farm sites to ensure that transducers are all operating as intended. | AO153: NA
A154: 151 | B154: =IF(D154='Device Selector'!$B$6,'Master Database - amended'!A154,"") ->  | D154: All Devices | E154: 31 | F154: Lien | G154: L2/L3 | H154: No Data Available | I154: No Data Available | J154: No Data Available | K154: No Data Available | L154: No Data Available | M154: No Data Available | N154: No Data Available | O154: No Data Available | P154: No Data Available | Q154: No Data Available | R154: No Data Available | S154: No Data Available | T154: No Data Available | U154: No Data Available | V154: No Data Available | W154: No Data Available | X154: Intermittent with diffewrent pulse rates according to mode selected. | Y154: No Data Available | Z154: No Data Available | AA154: No Data Available | AB154: No Data Available | AC154: No Data Available | AD154: No Data Available | AE154: 1: Low confidence | AF154: No Data Available | AG154: No Evidence Available | AH154: Not known | AI154: Not known | AJ154: Not known | AK154: <500m | AL154: No Evidence Available | AN154: No Comments | AO154: N/A
A155: 152 | B155: =IF(D155='Device Selector'!$B$6,'Master Database - amended'!A155,"") ->  | D155: Low Frequency Cetaceans | E155: 32a | F155: Future Oceans | G155: 3kHz -12kHz Netshield Whale, Seal and Dolphin Anti-predation Pinger | H155: Automatic | I155: https://www.futureoceans.com/our-pingers/ | J155: https://www.futureoceans.com/our-pingers/ | K155: Fisheries depradation | L155: 150 | M155: 153 | N155: No Data Available | O155: 3 | P155: 12 | Q155: 3kHz-12kHz | R155: 4000 | S155: 4000 | T155: Pulse interval 4 s. | U155: Intermittent | V155: No Data Available | W155: No Data Available | X155: No Data Available | Y155: No Data Available | Z155: No Data Available | AA155: No Data Available | AB155: No Data Available | AC155: No Data Available | AD155: No Data Available | AE155: No Data Available | AF155: No Data Available | AG155: No Evidence Available | AH155: Not known | AI155: Not known | AJ155: Not known | AK155: Not known | AL155: No Evidence Available | AN155: Deployment one every 100 metres | AO155: N/A
A156: 153 | B156: =IF(D156='Device Selector'!$B$6,'Master Database - amended'!A156,"") ->  | D156: High Frequency Cetaceans | E156: 32a | F156: Future Oceans | G156: 3kHz -12kHz Netshield Whale, Seal and Dolphin Anti-predation Pinger | H156: Automatic | I156: https://www.futureoceans.com/our-pingers/ | J156: https://www.futureoceans.com/our-pingers/ | K156: Fisheries depradation | L156: 150 | M156: 153 | N156: No Data Available | O156: 3 | P156: 12 | Q156: 3kHz-12kHz | R156: 4000 | S156: 4000 | T156: Pulse interval 4 s. | U156: Intermittent | V156: No Data Available | W156: No Data Available | X156: No Data Available | Y156: No Data Available | Z156: No Data Available | AA156: No Data Available | AB156: No Data Available | AC156: No Data Available | AD156: No Data Available | AE156: No Data Available | AF156: No Data Available | AG156: No Evidence Available | AH156: Not known | AI156: Not known | AJ156: Not known | AK156: Not known | AL156: No Evidence Available | AN156: Deployment one every 100 metres | AO156: N/A
A157: 154 | B157: =IF(D157='Device Selector'!$B$6,'Master Database - amended'!A157,"") ->  | D157: Pinnipeds | E157: 32a | F157: Future Oceans | G157: 3kHz -12kHz Netshield Whale, Seal and Dolphin Anti-predation Pinger | H157: Automatic | I157: https://www.futureoceans.com/our-pingers/ | J157: https://www.futureoceans.com/our-pingers/ | K157: Fisheries depradation | L157: 150 | M157: 153 | N157: No Data Available | O157: 3 | P157: 12 | Q157: 3kHz-12kHz | R157: 4000 | S157: 4000 | T157: Pulse interval 4 s. | U157: Intermittent | V157: No Data Available | W157: No Data Available | X157: No Data Available | Y157: No Data Available | Z157: No Data Available | AA157: No Data Available | AB157: No Data Available | AC157: No Data Available | AD157: No Data Available | AE157: No Data Available | AF157: No Data Available | AG157: No Evidence Available | AH157: Not known | AI157: Not known | AJ157: Not known | AK157: Not known | AL157: No Evidence Available | AN157: Deployment one every 100 metres | AO157: N/A
A158: 155 | B158: =IF(D158='Device Selector'!$B$6,'Master Database - amended'!A158,"") ->  | D158: All Devices | E158: 32a | F158: Future Oceans | G158: 3kHz -12kHz Netshield Whale, Seal and Dolphin Anti-predation Pinger | H158: Automatic | I158: https://www.futureoceans.com/our-pingers/ | J158: https://www.futureoceans.com/our-pingers/ | K158: Fisheries depradation | L158: 150 | M158: 153 | N158: No Data Available | O158: 3 | P158: 12 | Q158: 3kHz-12kHz | R158: 4000 | S158: 4000 | T158: Pulse interval 4 s. | U158: Intermittent | V158: No Data Available | W158: No Data Available | X158: No Data Available | Y158: No Data Available | Z158: No Data Available | AA158: No Data Available | AB158: No Data Available | AC158: No Data Available | AD158: No Data Available | AE158: No Data Available | AF158: No Data Available | AG158: No Evidence Available | AH158: Not known | AI158: Not known | AJ158: Not known | AK158: Not known | AL158: No Evidence Available | AN158: Deployment one every 100 metres | AO158: N/A
A159: 156 | B159: =IF(D159='Device Selector'!$B$6,'Master Database - amended'!A159,"") ->  | D159: High Frequency Cetaceans | E159: 32b | F159: Future Oceans | G159: 60kHz -120kHz Netshield Dolphin Anti Depredation Pinger | H159: Automatic | I159: https://www.futureoceans.com/our-pingers/ | J159: https://www.futureoceans.com/our-pingers/ | K159: Fisheries depradation | L159: 175 | M159: 178 | N159: No Data Available | O159: 60 | P159: 120 | Q159: 60-120kHz | R159: 4000 | S159: 4000 | T159: Pulse interval 4 s. | U159: Intermittent | V159: No Data Available | W159: No Data Available | X159: No Data Available | Y159: No Data Available | Z159: No Data Available | AA159: No Data Available | AB159: No Data Available | AC159: No Data Available | AD159: No Data Available | AE159: No Data Available | AF159: No Data Available | AG159: No Evidence Available | AH159: Not known | AI159: Not known | AJ159: Not known | AK159: Not known | AL159: No Evidence Available | AN159: Deployment one every 200 metres | AO159: N/A
A160: 157 | B160: =IF(D160='Device Selector'!$B$6,'Master Database - amended'!A160,"") ->  | D160: All Devices | E160: 32b | F160: Future Oceans | G160: 60kHz -120kHz Netshield Dolphin Anti Depredation Pinger | H160: Automatic | I160: https://www.futureoceans.com/our-pingers/ | J160: https://www.futureoceans.com/our-pingers/ | K160: Fisheries depradation | L160: 175 | M160: 178 | N160: No Data Available | O160: 60 | P160: 120 | Q160: 60-120kHz | R160: 4000 | S160: 4000 | T160: Pulse interval 4 s. | U160: Intermittent | V160: No Data Available | W160: No Data Available | X160: No Data Available | Y160: No Data Available | Z160: No Data Available | AA160: No Data Available | AB160: No Data Available | AC160: No Data Available | AD160: No Data Available | AE160: No Data Available | AF160: No Data Available | AG160: No Evidence Available | AH160: Not known | AI160: Not known | AJ160: Not known | AK160: Not known | AL160: No Evidence Available | AN160: Deployment one every 200 metres | AO160: N/A
A161: 158 | B161: =IF(D161='Device Selector'!$B$6,'Master Database - amended'!A161,"") ->  | D161: Low Frequency Cetaceans | E161: 33 | F161: Van Oord / SEAMARCO and Ace Aquatec | G161: FaunaGuard Minke Whale Module | H161: Automatic | I161: https://aceaquatec.com/marine-protection-solutions/faunaguard | J161: https://aceaquatec.com/marine-protection-solutions/faunaguard | K161: Fisheries depradation | L161: 181.7 | M161: 186.5 | N161: No Data Available | O161: 0.2 | P161: 1.5 | Q161: 200 Hz - 1.5 kHz | R161: No Data Available | S161: No Data Available | T161: No Data Available | U161: No Data Available | V161: 7200 | W161: 7200 | X161: No Data Available | Y161: No Data Available | Z161: No Data Available | AA161: No Data Available | AB161: No Data Available | AC161: No Data Available | AD161: No Data Available | AE161: No Data Available | AF161: No Data Available | AG161: No Evidence Available | AH161: Not known | AI161: Not known | AJ161: Not known | AK161: Not known | AL161: No Evidence Available | AN161: No Comments | AO161: N/A
A162: 159 | B162: =IF(D162='Device Selector'!$B$6,'Master Database - amended'!A162,"") ->  | D162: All Devices | E162: 33 | F162: Van Oord / SEAMARCO and Ace Aquatec | G162: FaunaGuard Minke Whale Module | H162: Automatic | I162: https://aceaquatec.com/marine-protection-solutions/faunaguard | J162: https://aceaquatec.com/marine-protection-solutions/faunaguard | K162: Fisheries depradation | L162: 181.7 | M162: 186.5 | N162: No Data Available | O162: 0.2 | P162: 1.5 | Q162: 200 Hz - 1.5 kHz | R162: No Data Available | S162: No Data Available | T162: No Data Available | U162: No Data Available | V162: 7200 | W162: 7200 | X162: No Data Available | Y162: No Data Available | Z162: No Data Available | AA162: No Data Available | AB162: No Data Available | AC162: No Data Available | AD162: No Data Available | AE162: No Data Available | AF162: No Data Available | AG162: No Evidence Available | AH162: Not known | AI162: Not known | AJ162: Not known | AK162: Not known | AL162: No Evidence Available | AN162: No Comments | AO162: N/A
L163: - | M163: - | N163: -
L164: - | M164: - | N164: -
L165: - | M165: - | N165: -
L166: - | M166: - | N166: -
L167: - | M167: - | N167: -
L168: - | M168: - | N168: -
L169: - | M169: - | N169: -
L170: - | M170: - | N170: -
C171: =IFERROR(SMALL($B$4:$B$200,A171),"") ->  | L171: - | M171: - | N171: -
L172: - | M172: - | N172: -
L173: - | M173: - | N173: -
L174: - | M174: - | N174: -
L175: - | M175: - | N175: -
L176: - | M176: - | N176: -
L177: - | M177: - | N177: -
L178: - | M178: - | N178: -
L179: - | M179: - | N179: -
L180: - | M180: - | N180: -
L181: - | M181: - | N181: -
L182: - | M182: - | N182: -
L183: - | M183: - | N183: -
L184: - | M184: - | N184: -
L185: - | M185: - | N185: -
L186: - | M186: - | N186: -
L187: - | M187: - | N187: -
L188: - | M188: - | N188: -
L189: - | M189: - | N189: -
L190: - | M190: - | N190: -
L191: - | M191: - | N191: -
L192: - | M192: - | N192: -
L193: - | M193: - | N193: -
L194: - | M194: - | N194: -
L195: - | M195: - | N195: -
L196: - | M196: - | N196: -
L197: - | M197: - | N197: -
L198: - | M198: - | N198: -
L199: - | M199: - | N199: -
L200: - | M200: - | N200: -
... 37 more rows

Sheet READ ME
A1: JNCC Report No. 615: Evidence base for application of Acoustic Deterrent Devices (ADDs) as marine mammal mitigation (Version 5)
A3: Acoustic Deterrent Device Selection Database - Useful Information
A5: This spreadsheet is a 'live' database and the intent it for it to be updated periodically in line with additional information on the acoustic deterrents described herein, and on the basis of new technologies that become available.
A6: Whilst every effort was made to ensure that the information in this database is complete, accurate and up-to-date, no guarantee is provided and JNCC shall have neither liabiloty nor responsibility to any person or entity with
A7: respect to any loss or damage arising from the use of this database. We will act on any inaccuracies that are brought to our attention and will do our best to correct them in subsequent versions of the database.
A9: Database Development:
A11: The information gathered through the literature review and search of ADD technical specifications for the accompanying JNCC Report No:615 (2024) was used to populate the database. Below is a summary of the information within the database:
A13: Field | B13: Description
A14: Device ID | B14: Numerical identifier for each device
A15: Manufacturer | B15: Manufacturer
A16: Model | B16: Mose recent name that the device is known under
A17: Control | B17: Manual or automatic
A18: Link to website | B18: Hyperlink to manufacturer's website or to the specific device if available
A19: Current known uses | B19: Industry application, e.g. offshore piling mitigation, aquaculture, bycatch mitigation
A20: Acoustic characteristics | B20: Source level, frequency, intermittency, continuous/pulsed, pulse width
A21: Evidence score | B21: Score given to each of the ADDs based on the available literature
A22: Mitigation range | B22: Approximate range of effectiveness broadly grouped into three categories: <500m; 500 – 1,000m; and >1,000m. Exact ranges are not given as it is important not to place too much emphasis on effect ranges in other studies due to difference in propagation between sites.
A27: How to use the Device Selector:
A29: Hearing Groups
A30: - Select a hearing group via the drop down selection in cell B6. Hearing groups are based on the proposed marine mammal hearing groups as provided in Southall et al. 2019.
A31: - The database will populate based on which devices are effective in deterring the selected hearing group.
A33: Column Filters
A34: - Once a hearing group is selected and the database has been populated, each column can be further refined via the filtered drop down selection across Row 13.
A35: - When a filter selection has been made, the database will repopulate based on the chosen selection.
A36: - NOTE: In the column filter selection, the option "(Blanks)" is not pertinent to any device and can be ignored.
A39: Glossary of Useful Terms and Abbreviations
A41: dB | B41: Decibels
A42: Duty Cycle | B42: The cycle of operation of a device which operates intermittently rather than continuously.
A43: Frequency | B43: The number of times that a periodic function occurs or repeats itself in a specified time.
A44: Harmonics | B44: A wave with a frequency that is a positibe integer multiple of the frequency of the original wave, known as the fundamental frequency
A45: HF | B45: High frequency hearing group cetacean
A46: LF | B46: Low frequency hearing group cetacean
A47: MF | B47: Mid frequency hearing group cetacean
A48: Pa | B48: Pascals
A49: Pk | B49: Peak Sound Pressure - the maximum instantaneous sound pressure during a measurement period or noise event.
A50: PW | B50: Phocid pinniped hearing group (in water)
A51: RMS | B51: Root Mean Square - The square root of the mean value of the square of the quantity taken over a given time interval.
A52: SEL | B52: Sound Exposure Level - a measure of the total sound energy of an event normalised to one second. This allows the total acoustic energy contained in events lasting a different amount of time to be compared on a like for like basis.
A54: Evidence scores
A55: For each device reviewed, an evidence score is assigned to provide a level of confidence in the information available on the effects of the ADD on a certain species or species group. For example, for some devices peer-reviewed studies are available which provided a high level of confidence in the conclusions. The conclusions themselves might or might not support the effectiveness of the ADD but because the study has been published and peer-reviewed, then the supporting evidence can be assigned the highest evidence score of 3

Sheet Device Selector
A2: Acoustic Deterrent Device Selection Database
A4: (Select the desired hearing group from the drop down menu below)
A6: Hearing Group: | B6: Very High Frequency Cetaceans | D6: Generalised Hearing Range*: | F6: =VLOOKUP(B6,'HIDDEN LISTS'!A4:B8,2,FALSE) -> 275 Hz to 160 kHz
C8: *Represents the generalised hearing range for the entire group as a composite (i.e. all species within the group), where individual species' hearing ranges are typically not as broad. Generalised hearing range chosen based on ~65 dB threshold from normalised composite audiogram, with the expection for lower limits for LF cetaceans (Southall et al. 2007) and PW pinniped (approximation).
A11: Device Details | H11: Device Acoustic Characteristics | U11: Device Efficacy
H12: Source Level | K12: Source Frequency(s) | N12: Source Signal Duration & Intermittency | U12: Evidence Scores | AD12: Mitigation Ranges | AI12: Links to evidence | AJ12: General comments
U13: LF Species | W13: HF Species | Y13: VHF Species | AA13: Pinnipeds | AC13: List of all species for which evidence is available | AD13: LF Species | AE13: HF Species | AF13: VHF Species | AG13: Pinnipeds | AH13: Links to evidence
A14: ID No. | B14: Manufacturer | C14: Model | D14: Control (Manual / Automatic) | E14: Manufacturers Wesbite | F14: Manufacturers Wesbite | G14: Current known use | H14: rms, dB re 1 μPa re 1 m | I14: pk, dB re 1 μPa re 1 m | J14: SEL, dB re 1 μPa2s re 1 m (per pulse) | K14: Lowest Frequency (kHz) | L14: Highest Frequency (kHz) | M14: Notes | N14: Shortest Pulse Interval, ms | O14: Longest Pulse Interval, ms | P14: Notes | Q14: Continuous / Intermittent | R14: Shortest Pulse Width, ms | S14: Longest Pulse Width, ms | T14: Notes | U14: Evidence Score | V14: Effective on Species (Y/N) | W14: Evidence Score | X14: Effective on Species (Y/N) | Y14: Evidence Score | Z14: Effective on species (Y/N) | AA14: Evidence Score | AB14: Effective on Species (Y/N) | AD14: Range | AE14: Range | AF14: Range | AG14: Range
A15: =IFERROR(INDEX('Master Database - amended'!$E$4:$AN$171,'Master Database - amended'!$C4,COLUMNS($A$15:$A$145)),"") -> 4 | B15: =IFERROR(INDEX('Master Database - amended'!$E$4:$AN$171,'Master Database - amended'!$C4,COLUMNS($A$15:B$145)),"") -> Ace Aquatec | C15: =IFERROR(INDEX('Master Database - amended'!$E$4:$AN$171,'Master Database - amended'!$C4,COLUMNS($A$15:C$145)),"") -> Marine Mammal Mitigation (MMM) Device (HF) | D15: =IFERROR(INDEX('Master Database - amended'!$E$4:$AN$171,'Master Database - amended'!$C4,COLUMNS($A$15:D$145)),"") -> Automatic | E15: =IFERROR(INDEX('Master Database - amended'!$E$4:$AN$171,'Master Database - amended'!$C4,COLUMNS($A$15:E$145)),"") -> http://aceaquatec.com/ | F15: =HYPERLINK(E15,E15) -> http://aceaquatec.com/ | G15: =IFERROR(INDEX('Master Database - amended'!$E$4:$AN$171,'Master Database - amended'!$C4,COLUMNS($A$15:G$145)),"") -> Offshore piling mitigation | H15: =IFERROR(INDEX('Master Database - amended'!$E$4:$AN$171,'Master Database - amended'!$C4,COLUMNS($A$15:H$145)),"") -> 180 | I15: =IFERROR(INDEX('Master Database - amended'!$E$4:$AN$171,'Master Database - amended'!$C4,COLUMNS($A$15:I$145)),"") -> 183 | J15: =IFERROR(INDEX('Master Database - amended'!$E$4:$AN$171,'Master Database - amended'!$C4,COLUMNS($A$15:J$145)),"") -> 162 | K15: =IFERROR(INDEX('Master Database - amended'!$E$4:$AN$171,'Master Database - amended'!$C4,COLUMNS($A$15:K$145)),"") -> 20 | L15: =IFERROR(INDEX('Master Database - amended'!$E$4:$AN$171,'Master Database - amended'!$C4,COLUMNS($A$15:L$145)),"") -> 70 | M15: =IFERROR(INDEX('Master Database - amended'!$E$4:$AN$171,'Master Database - amended'!$C4,COLUMNS($A$15:M$145)),"") -> 20 - 70 kHz | N15: =IFERROR(INDEX('Master Database - amended'!$E$4:$AN$171,'Master Database - amended'!$C4,COLUMNS($A$15:N$145)),"") -> No Data Available | O15: =IFERROR(INDEX('Master Database - amended'!$E$4:$AN$171,'Master Database - amended'!$C4,COLUMNS($A$15:O$145)),"") -> No Data Available | P15: =IFERROR(INDEX('Master Database - amended'!$E$4:$AN$171,'Master Database - amended'!$C4,COLUMNS($A$15:P$145)),"") -> Intermittent - duration between pulses is on a random cycle. | Q15: =IFERROR(INDEX('Master Database - amended'!$E$4:$AN$171,'Master Database - amended'!$C4,COLUMNS($A$15:Q$145)),"") -> Intermittent | R15: =IFERROR(INDEX('Master Database - amended'!$E$4:$AN$171,'Master Database - amended'!$C4,COLUMNS($A$15:R$145)),"") -> 3.3 | S15: =IFERROR(INDEX('Master Database - amended'!$E$4:$AN$171,'Master Database - amended'!$C4,COLUMNS($A$15:S$145)),"") -> 14 | T15: =IFERROR(INDEX('Master Database - amended'!$E$4:$AN$171,'Master Database - amended'!$C4,COLUMNS($A$15:T$145)),"") -> Pulse uniformly shorten from 14 ms to 3.3 ms followed by an upshift in the frequency of the tonal components and their equivalent distribution (Lepper et al. 2004) | U15: =IFERROR(INDEX('Master Database - amended'!$E$4:$AN$171,'Master Database - amended'!$C4,COLUMNS($A$15:U$145)),"") -> No Data Available | V15: =IFERROR(INDEX('Master Database - amended'!$E$4:$AN$153,'Master Database - amended'!$C4,COLUMNS($A$15:V15)),"") -> No Data Available | W15: =IFERROR(INDEX('Master Database - amended'!$E$4:$AN$171,'Master Database - amended'!$C4,COLUMNS($A$15:W$145)),"") -> No Data Available | X15: =IFERROR(INDEX('Master Database - amended'!$E$4:$AN$153,'Master Database - amended'!$C4,COLUMNS($A$15:X15)),"") -> No Data Available | Y15: =IFERROR(INDEX('Master Database - amended'!$E$4:$AN$171,'Master Database - amended'!$C4,COLUMNS($A$15:Y$145)),"") -> 2: Medium confidence | Z15: =IFERROR(INDEX('Master Database - amended'!$E$4:$AN$153,'Master Database - amended'!$C4,COLUMNS($A$15:Z15)),"") -> Y | AA15: =IFERROR(INDEX('Master Database - amended'!$E$4:$AN$171,'Master Database - amended'!$C4,COLUMNS($A$15:AA$145)),"") -> 2: Medium confidence | AB15: =IFERROR(INDEX('Master Database - amended'!$E$4:$AN$153,'Master Database - amended'!$C4,COLUMNS($A$15:AB15)),"") -> Y | AC15: =IFERROR(INDEX('Master Database - amended'!$E$4:$AN$171,'Master Database - amended'!$C4,COLUMNS($A$15:AC$145)),"") -> Pinnipeds and high-frequency odontoces | AD15: =IFERROR(INDEX('Master Database - amended'!$E$4:$AN$171,'Master Database - amended'!$C4,COLUMNS($A$15:AD$145)),"") -> No Data Available | AE15: =IFERROR(INDEX('Master Database - amended'!$E$4:$AN$171,'Master Database - amended'!$C4,COLUMNS($A$15:AE$145)),"") -> No Data Available | AF15: =IFERROR(INDEX('Master Database - amended'!$E$4:$AN$171,'Master Database - amended'!$C4,COLUMNS($A$15:AF$145)),"") -> >1000m | AG15: =IFERROR(INDEX('Master Database - amended'!$E$4:$AN$171,'Master Database - amended'!$C4,COLUMNS($A$15:AG$128)),"") -> >1000m | AH15: =IFERROR(INDEX('Master Database - amended'!$E$4:$AN$153,'Master Database - amended'!$C4,COLUMNS($A$15:AH15)),"") -> https://infrastructure.planninginspectorate.gov.uk/wp-content/ipc/uploads/projects/EN010049/EN010049-001947-Tidal%20lagoon%20(Swansea%20Bay)%20Plc%201.pdf | AI15: =AH15 -> https://infrastructure.planninginspectorate.gov.uk/wp-content/ipc/uploads/projects/EN010049/EN010049-001947-Tidal%20lagoon%20(Swansea%20Bay)%20Plc%201.pdf | AJ15: =IFERROR(INDEX('Master Database - amended'!$E$4:$AN$171,'Master Database - amended'!$C4,COLUMNS($A$15:AJ$145)),"") -> ABPmer conclude that the AceAquatec MMD is recommended as an option should increased mitigation be needed at the tidal lagoon (see conclusions for use of Aquamark 100). Given the potential for wide-scale exclusion impacts on harbour porpoise, this should only be used for short periods of time when a marine mammal is recorded in a defined area in the vicinity of turbines. The use of an automated sonar system to trigger the device is a potentially useful (albeit more costly) tool. Manufacturer update: average source level within a transmission 180dB re 1uPa rms@1m; Frequency = 20-70kHz
A16: =IFERROR(INDEX('Master Database - amended'!$E$4:$AN$171,'Master Database - amended'!$C5,COLUMNS($A$15:$A$145)),"") -> 6 | B16: =IFERROR(INDEX('Master Database - amended'!$E$4:$AN$171,'Master Database - amended'!$C5,COLUMNS($A$15:B$145)),"") -> Ace Aquatec | C16: =IFERROR(INDEX('Master Database - amended'!$E$4:$AN$171,'Master Database - amended'!$C5,COLUMNS($A$15:C$145)),"") -> Mid-frequency Acoustic Startle Response Device (US3) | D16: =IFERROR(INDEX('Master Database - amended'!$E$4:$AN$171,'Master Database - amended'!$C5,COLUMNS($A$15:D$145)),"") -> Automatic | E16: =IFERROR(INDEX('Master Database - amended'!$E$4:$AN$171,'Master Database - amended'!$C5,COLUMNS($A$15:E$145)),"") -> https://aceaquatec.com/aquaculture-products/protect/asr-us3 | F16: =HYPERLINK(E16,E16) -> https://aceaquatec.com/aquaculture-products/protect/asr-us3 | G16: =IFERROR(INDEX('Master Database - amended'!$E$4:$AN$171,'Master Database - amended'!$C5,COLUMNS($A$15:G$145)),"") -> Aquaculture | H16: =IFERROR(INDEX('Master Database - amended'!$E$4:$AN$171,'Master Database - amended'!$C5,COLUMNS($A$15:H$145)),"") -> 181 | I16: =IFERROR(INDEX('Master Database - amended'!$E$4:$AN$171,'Master Database - amended'!$C5,COLUMNS($A$15:I$145)),"") -> 184 | J16: =IFERROR(INDEX('Master Database - amended'!$E$4:$AN$171,'Master Database - amended'!$C5,COLUMNS($A$15:J$145)),"") -> No Data Available | K16: =IFERROR(INDEX('Master Database - amended'!$E$4:$AN$171,'Master Database - amended'!$C5,COLUMNS($A$15:K$145)),"") -> 8 | L16: =IFERROR(INDEX('Master Database - amended'!$E$4:$AN$171,'Master Database - amended'!$C5,COLUMNS($A$15:L$145)),"") -> 20 | M16: =IFERROR(INDEX('Master Database - amended'!$E$4:$AN$171,'Master Database - amended'!$C5,COLUMNS($A$15:M$145)),"") -> 8 - 20 kHz | N16: =IFERROR(INDEX('Master Database - amended'!$E$4:$AN$171,'Master Database - amended'!$C5,COLUMNS($A$15:N$145)),"") -> 3 | O16: =IFERROR(INDEX('Master Database - amended'!$E$4:$AN$171,'Master Database - amended'!$C5,COLUMNS($A$15:O$145)),"") -> 11 | P16: =IFERROR(INDEX('Master Database - amended'!$E$4:$AN$171,'Master Database - amended'!$C5,COLUMNS($A$15:P$145)),"") -> Intermittent | Q16: =IFERROR(INDEX('Master Database - amended'!$E$4:$AN$171,'Master Database - amended'!$C5,COLUMNS($A$15:Q$145)),"") -> Intermittent | R16: =IFERROR(INDEX('Master Database - amended'!$E$4:$AN$171,'Master Database - amended'!$C5,COLUMNS($A$15:R$145)),"") -> No Data Available | S16: =IFERROR(INDEX('Master Database - amended'!$E$4:$AN$171,'Master Database - amended'!$C5,COLUMNS($A$15:S$145)),"") -> No Data Available | T16: =IFERROR(INDEX('Master Database - amended'!$E$4:$AN$171,'Master Database - amended'!$C5,COLUMNS($A$15:T$145)),"") -> Randomised pulse train, with 3 - 11 ms rise time pulses, of 2.6 sec duration to create a startle response. Goetz & Janik (2011; 2015) | U16: =IFERROR(INDEX('Master Database - amended'!$E$4:$AN$171,'Master Database - amended'!$C5,COLUMNS($A$15:U$145)),"") -> No Data Available | V16: =IFERROR(INDEX('Master Database - amended'!$E$4:$AN$153,'Master Database - amended'!$C5,COLUMNS($A$15:V16)),"") -> No Data Available | W16: =IFERROR(INDEX('Master Database - amended'!$E$4:$AN$171,'Master Database - amended'!$C5,COLUMNS($A$15:W$145)),"") -> No Data Available | X16: =IFERROR(INDEX('Master Database - amended'!$E$4:$AN$153,'Master Database - amended'!$C5,COLUMNS($A$15:X16)),"") -> No Data Available | Y16: =IFERROR(INDEX('Master Database - amended'!$E$4:$AN$171,'Master Database - amended'!$C5,COLUMNS($A$15:Y$145)),"") -> 3: High confidence | Z16: =IFERROR(INDEX('Master Database - amended'!$E$4:$AN$153,'Master Database - amended'!$C5,COLUMNS($A$15:Z16)),"") -> Y | AA16: =IFERROR(INDEX('Master Database - amended'!$E$4:$AN$171,'Master Database - amended'!$C5,COLUMNS($A$15:AA$145)),"") -> 3: High confidence | AB16: =IFERROR(INDEX('Master Database - amended'!$E$4:$AN$153,'Master Database - amended'!$C5,COLUMNS($A$15:AB16)),"") -> Y | AC16: =IFERROR(INDEX('Master Database - amended'!$E$4:$AN$171,'Master Database - amended'!$C5,COLUMNS($A$15:AC$145)),"") -> Seals, Harbour porpoise | AD16: =IFERROR(INDEX('Master Database - amended'!$E$4:$AN$171,'Master Database - amended'!$C5,COLUMNS($A$15:AD$145)),"") -> No Data Available | AE16: =IFERROR(INDEX('Master Database - amended'!$E$4:$AN$171,'Master Database - amended'!$C5,COLUMNS($A$15:AE$145)),"") -> No Data Available | AF16: =IFERROR(INDEX('Master Database - amended'!$E$4:$AN$171,'Master Database - amended'!$C5,COLUMNS($A$15:AF$145)),"") -> >1000m | AG16: =IFERROR(INDEX('Master Database - amended'!$E$4:$AN$171,'Master Database - amended'!$C5,COLUMNS($A$15:AG$128)),"") -> >1000m | AH16: =IFERROR(INDEX('Master Database - amended'!$E$4:$AN$153,'Master Database - amended'!$C5,COLUMNS($A$15:AH16)),"") -> https://infrastructure.planninginspectorate.gov.uk/wp-content/ipc/uploads/projects/EN010049/EN010049-001947-Tidal%20lagoon%20(Swansea%20Bay)%20Plc%201.pdf https://dx.doi.org/10.1111/fme.12680 https://www.sciencedirect.com/science/article/pii/S0165783622001059 | AI16: =AH16 -> https://infrastructure.planninginspectorate.gov.uk/wp-content/ipc/uploads/projects/EN010049/EN010049-001947-Tidal%20lagoon%20(Swansea%20Bay)%20Plc%201.pdf https://dx.doi.org/10.1111/fme.12680 https://www.sciencedirect.com/science/article/pii/S0165783622001059 | AJ16: =IFERROR(INDEX('Master Database - amended'!$E$4:$AN$171,'Master Database - amended'!$C5,COLUMNS($A$15:AJ$145)),"") -> Manufacturer update: average source level within a transmission 181dB re 1uPa rms@1m; Frequency 8-11kHz. Note: Propagation papers referenced prior to this update used the maximum output in modelling not the average energy level of the signal. This has been addresses in a SAIC funded project with the University of St Andrews Veneranta et al. (2024) and Lehtonen et al. (2023) applied multiple US3s to establish an acoustic barrier to prevent upstream movement of seals in areas of aquaculture Findlay et al. (2021) and Todd et al. (2021) observed that ADD noise from a single device could be sufficient to induce TTS in harbour porpoise. Todd et al. (2021) predicted this at distances of up to 18 km. Source levels, propagation and transmission loss measurements were highly variable and should be considered as site specific, meaning new estimates should be made for each situation (Todd et al., 2019)
A17: =IFERROR(INDEX('Master Database - amended'!$E$4:$AN$171,'Master Database - amended'!$C6,COLUMNS($A$15:$A$145)),"") -> 8 | B17: =IFERROR(INDEX('Master Database - amended'!$E$4:$AN$171,'Master Database - amended'!$C6,COLUMNS($A$15:B$145)),"") -> Airmar | C17: =IFERROR(INDEX('Master Database - amended'!$E$4:$AN$171,'Master Database - amended'!$C6,COLUMNS($A$15:C$145)),"") -> dB plus II (became Mohn Aqua MAG seal deterrent, then aquired by Gael Force) (discontinued by Airmar) | D17: =IFERROR(INDEX('Master Database - amended'!$E$4:$AN$171,'Master Database - amended'!$C6,COLUMNS($A$15:D$145)),"") -> Manual | E17: =IFERROR(INDEX('Master Database - amended'!$E$4:$AN$171,'Master Database - amended'!$C6,COLUMNS($A$15:E$145)),"") -> http://www.airmar.com/ | F17: http://www.airmar.com/ | G17: =IFERROR(INDEX('Master Database - amended'!$E$4:$AN$171,'Master Database - amended'!$C6,COLUMNS($A$15:G$145)),"") -> Aquaculture | H17: =IFERROR(INDEX('Master Database - amended'!$E$4:$AN$171,'Master Database - amended'!$C6,COLUMNS($A$15:H$145)),"") -> 198 | I17: =IFERROR(INDEX('Master Database - amended'!$E$4:$AN$171,'Master Database - amended'!$C6,COLUMNS($A$15:I$145)),"") -> 201 | J17: =IFERROR(INDEX('Master Database - amended'!$E$4:$AN$171,'Master Database - amended'!$C6,COLUMNS($A$15:J$145)),"") -> 169 | K17: =IFERROR(INDEX('Master Database - amended'!$E$4:$AN$171,'Master Database - amended'!$C6,COLUMNS($A$15:K$145)),"") -> 1.5 | L17: =IFERROR(INDEX('Master Database - amended'!$E$4:$AN$171,'Master Database - amended'!$C6,COLUMNS($A$15:L$145)),"") -> 50 | M17: =IFERROR(INDEX('Master Database - amended'!$E$4:$AN$171,'Master Database - amended'!$C6,COLUMNS($A$15:M$145)),"") -> A broadband spectral response at the beginning of each pulse, with detectable energy levels between 1.5 kHz to 50 kHz (Lepper et al. 2014). | N17: =IFERROR(INDEX('Master Database - amended'!$E$4:$AN$171,'Master Database - amended'!$C6,COLUMNS($A$15:N$145)),"") -> 40 | O17: =IFERROR(INDEX('Master Database - amended'!$E$4:$AN$171,'Master Database - amended'!$C6,COLUMNS($A$15:O$145)),"") -> 40 | P17: =IFERROR(INDEX('Master Database - amended'!$E$4:$AN$171,'Master Database - amended'!$C6,COLUMNS($A$15:P$145)),"") -> Sequence of pulsed sinusoidal tonal bursts (Lepper et al. 2014). | Q17: =IFERROR(INDEX('Master Database - amended'!$E$4:$AN$171,'Master Database - amended'!$C6,COLUMNS($A$15:Q$145)),"") -> Intermittent | R17: =IFERROR(INDEX('Master Database - amended'!$E$4:$AN$171,'Master Database - amended'!$C6,COLUMNS($A$15:R$145)),"") -> 1.4 | S17: =IFERROR(INDEX('Master Database - amended'!$E$4:$AN$171,'Master Database - amended'!$C6,COLUMNS($A$15:S$145)),"") -> 1.4 | T17: =IFERROR(INDEX('Master Database - amended'!$E$4:$AN$171,'Master Database - amended'!$C6,COLUMNS($A$15:T$145)),"") -> Each tonal burst is ~1.4 ms in duration with 40 ms interval. A 2.25 s long sequence is then formed from 57-58 tone bursts. The sequence is then repeated with ~50% duty cycle allowing ~2 s quiet period (Lepper et al. 2014). | U17: =IFERROR(INDEX('Master Database - amended'!$E$4:$AN$171,'Master Database - amended'!$C6,COLUMNS($A$15:U$145)),"") -> No Data Available | V17: =IFERROR(INDEX('Master Database - amended'!$E$4:$AN$153,'Master Database - amended'!$C6,COLUMNS($A$15:V17)),"") -> No Data Available | W17: =IFERROR(INDEX('Master Database - amended'!$E$4:$AN$171,'Master Database - amended'!$C6,COLUMNS($A$15:W$145)),"") -> No Data Available | X17: =IFERROR(INDEX('Master Database - amended'!$E$4:$AN$153,'Master Database - amended'!$C6,COLUMNS($A$15:X17)),"") -> No Data Available | Y17: =IFERROR(INDEX('Master Database - amended'!$E$4:$AN$171,'Master Database - amended'!$C6,COLUMNS($A$15:Y$145)),"") -> 3: High confidence | Z17: =IFERROR(INDEX('Master Database - amended'!$E$4:$AN$153,'Master Database - amended'!$C6,COLUMNS($A$15:Z17)),"") -> Y | AA17: =IFERROR(INDEX('Master Database - amended'!$E$4:$AN$171,'Master Database - amended'!$C6,COLUMNS($A$15:AA$145)),"") -> 3: High confidence | AB17: =IFERROR(INDEX('Master Database - amended'!$E$4:$AN$153,'Master Database - amended'!$C6,COLUMNS($A$15:AB17)),"") -> Y | AC17: =IFERROR(INDEX('Master Database - amended'!$E$4:$AN$171,'Master Database - amended'!$C6,COLUMNS($A$15:AC$145)),"") -> Seals | AD17: =IFERROR(INDEX('Master Database - amended'!$E$4:$AN$171,'Master Database - amended'!$C6,COLUMNS($A$15:AD$145)),"") -> No Data Available | AE17: =IFERROR(INDEX('Master Database - amended'!$E$4:$AN$171,'Master Database - amended'!$C6,COLUMNS($A$15:AE$145)),"") -> No Data Available | AF17: =IFERROR(INDEX('Master Database - amended'!$E$4:$AN$171,'Master Database - amended'!$C6,COLUMNS($A$15:AF$145)),"") -> >1000m | AG17: =IFERROR(INDEX('Master Database - amended'!$E$4:$AN$171,'Master Database - amended'!$C6,COLUMNS($A$15:AG$128)),"") -> <500m | AH17: =IFERROR(INDEX('Master Database - amended'!$E$4:$AN$153,'Master Database - amended'!$C6,COLUMNS($A$15:AH17)),"") -> http://onlinelibrary.wiley.com/doi/10.1111/j.1748-7692.2002.tb01077.x/abstract https://www.sciencedirect.com/science/article/pii/S000632070200099X http://islandora.mlml.calstate.edu/islandora/object/ir%3A1920 https://research-repository.st-andrews.ac.uk/handle/10023/848 https://www.ncbi.nlm.nih.gov/pubmed/20400639 https://www.researchgate.net/publication/273094995_Pingers_cause_temporary_habitat_displacement_of_harbour_porpoises_Phocoena_phocoena_L https://www.carbontrust.com/media/675291/orjip-add-study-final-report-stage-1-phase-2.pdf http://www.snh.org.uk/pdfs/publications/commissioned_reports/517.pdf http://www.gov.scot/Publications/2013/10/7618/4 | AI17: =AH17 -> http://onlinelibrary.wiley.com/doi/10.1111/j.1748-7692.2002.tb01077.x/abstract https://www.sciencedirect.com/science/article/pii/S000632070200099X http://islandora.mlml.calstate.edu/islandora/object/ir%3A1920 https://research-repository.st-andrews.ac.uk/handle/10023/848 https://www.ncbi.nlm.nih.gov/pubmed/20400639 https://www.researchgate.net/publication/273094995_Pingers_cause_temporary_habitat_displacement_of_harbour_porpoises_Phocoena_phocoena_L https://www.carbontrust.com/media/675291/orjip-add-study-final-report-stage-1-phase-2.pdf http://www.snh.org.uk/pdfs/publications/commissioned_reports/517.pdf http://www.gov.scot/Publications/2013/10/7618/4 | AJ17: =IFERROR(INDEX('Master Database - amended'!$E$4:$AN$171,'Master Database - amended'!$C6,COLUMNS($A$15:AJ$145)),"") -> The Olesiuk et al. (2002) study involved substantially greater observation effort over a much-extended period and was thus able to investigate long-term effects. In comparison the Johnston (2002) study was able to measure ranges more accurately and track movements and could scan within a smaller observation range more effectively. Summary taken from ORJIP report show the results indicate that there might be scope to reduce the ADD time below the 30 minutes applied during the construction of these OWFs.
A18: =IFERROR(INDEX('Master Database - amended'!$E$4:$AN$171,'Master Database - amended'!$C7,COLUMNS($A$15:$A$145)),"") -> 10 | B18: =IFERROR(INDEX('Master Database - amended'!$E$4:$AN$171,'Master Database - amended'!$C7,COLUMNS($A$15:B$145)),"") -> Aquatec Group | C18: =IFERROR(INDEX('Master Database - amended'!$E$4:$AN$171,'Master Database - amended'!$C7,COLUMNS($A$15:C$145)),"") -> Aquamark 848 | D18: =IFERROR(INDEX('Master Database - amended'!$E$4:$AN$171,'Master Database - amended'!$C7,COLUMNS($A$15:D$145)),"") -> Automatic | E18: =IFERROR(INDEX('Master Database - amended'!$E$4:$AN$171,'Master Database - amended'!$C7,COLUMNS($A$15:E$145)),"") -> http://www.aquatecgroup.com/11-products/25-aquamark-840 | F18: http://www.aquatecgroup.com/11-products/25-aquamark-840 | G18: =IFERROR(INDEX('Master Database - amended'!$E$4:$AN$171,'Master Database - amended'!$C7,COLUMNS($A$15:G$145)),"") -> Bycatch (gillnets) | H18: =IFERROR(INDEX('Master Database - amended'!$E$4:$AN$171,'Master Database - amended'!$C7,COLUMNS($A$15:H$145)),"") -> 165 | I18: =IFERROR(INDEX('Master Database - amended'!$E$4:$AN$171,'Master Database - amended'!$C7,COLUMNS($A$15:I$145)),"") -> 168 | J18: =IFERROR(INDEX('Master Database - amended'!$E$4:$AN$171,'Master Database - amended'!$C7,COLUMNS($A$15:J$145)),"") -> No Data Available | K18: =IFERROR(INDEX('Master Database - amended'!$E$4:$AN$171,'Master Database - amended'!$C7,COLUMNS($A$15:K$145)),"") -> 5 | L18: =IFERROR(INDEX('Master Database - amended'!$E$4:$AN$171,'Master Database - amended'!$C7,COLUMNS($A$15:L$145)),"") -> 30 | M18: =IFERROR(INDEX('Master Database - amended'!$E$4:$AN$171,'Master Database - amended'!$C7,COLUMNS($A$15:M$145)),"") -> 5 - 30 kHz (with harmonic energy up to 120 kHz). | N18: =IFERROR(INDEX('Master Database - amended'!$E$4:$AN$171,'Master Database - amended'!$C7,COLUMNS($A$15:N$145)),"") -> No Data Available | O18: =IFERROR(INDEX('Master Database - amended'!$E$4:$AN$171,'Master Database - amended'!$C7,COLUMNS($A$15:O$145)),"") -> No Data Available | P18: =IFERROR(INDEX('Master Database - amended'!$E$4:$AN$171,'Master Database - amended'!$C7,COLUMNS($A$15:P$145)),"") -> Four alternative signals: general deterrence 'Aquamark' chirp repertoire; pseudo-clicks for echo-location confusion; pseudo-noise for echo-location masking; random composite of all modes. | Q18: =IFERROR(INDEX('Master Database - amended'!$E$4:$AN$171,'Master Database - amended'!$C7,COLUMNS($A$15:Q$145)),"") -> Intermittent | R18: =IFERROR(INDEX('Master Database - amended'!$E$4:$AN$171,'Master Database - amended'!$C7,COLUMNS($A$15:R$145)),"") -> No Data Available | S18: =IFERROR(INDEX('Master Database - amended'!$E$4:$AN$171,'Master Database - amended'!$C7,COLUMNS($A$15:S$145)),"") -> No Data Available | T18: =IFERROR(INDEX('Master Database - amended'!$E$4:$AN$171,'Master Database - amended'!$C7,COLUMNS($A$15:T$145)),"") -> No Data Available | U18: =IFERROR(INDEX('Master Database - amended'!$E$4:$AN$171,'Master Database - amended'!$C7,COLUMNS($A$15:U$145)),"") -> 1: Low confidence | V18: =IFERROR(INDEX('Master Database - amended'!$E$4:$AN$153,'Master Database - amended'!$C7,COLUMNS($A$15:V18)),"") -> Y | W18: =IFERROR(INDEX('Master Database - amended'!$E$4:$AN$171,'Master Database - amended'!$C7,COLUMNS($A$15:W$145)),"") -> 1: Low confidence | X18: =IFERROR(INDEX('Master Database - amended'!$E$4:$AN$153,'Master Database - amended'!$C7,COLUMNS($A$15:X18)),"") -> Y | Y18: =IFERROR(INDEX('Master Database - amended'!$E$4:$AN$171,'Master Database - amended'!$C7,COLUMNS($A$15:Y$145)),"") -> 2: Medium confidence | Z18: =IFERROR(INDEX('Master Database - amended'!$E$4:$AN$153,'Master Database - amended'!$C7,COLUMNS($A$15:Z18)),"") -> Y | AA18: =IFERROR(INDEX('Master Database - amended'!$E$4:$AN$171,'Master Database - amended'!$C7,COLUMNS($A$15:AA$145)),"") -> 2: Medium confidence | AB18: =IFERROR(INDEX('Master Database - amended'!$E$4:$AN$153,'Master Database - amended'!$C7,COLUMNS($A$15:AB18)),"") -> Y | AC18: =IFERROR(INDEX('Master Database - amended'!$E$4:$AN$171,'Master Database - amended'!$C7,COLUMNS($A$15:AC$145)),"") -> Marine Mammals | AD18: =IFERROR(INDEX('Master Database - amended'!$E$4:$AN$171,'Master Database - amended'!$C7,COLUMNS($A$15:AD$145)),"") -> >1000m | AE18: =IFERROR(INDEX('Master Database - amended'!$E$4:$AN$171,'Master Database - amended'!$C7,COLUMNS($A$15:AE$145)),"") -> >1000m | AF18: =IFERROR(INDEX('Master Database - amended'!$E$4:$AN$171,'Master Database - amended'!$C7,COLUMNS($A$15:AF$145)),"") -> >1000m | AG18: =IFERROR(INDEX('Master Database - amended'!$E$4:$AN$171,'Master Database - amended'!$C7,COLUMNS($A$15:AG$128)),"") -> >1000m | AH18: =IFERROR(INDEX('Master Database - amended'!$E$4:$AN$153,'Master Database - amended'!$C7,COLUMNS($A$15:AH18)),"") -> http://www.ascobans.org/sites/default/files/document/Dawson_To-ping-or-not_ESR-2013.pdf https://infrastructure.planninginspectorate.gov.uk/wp-content/ipc/uploads/projects/EN010049/EN010049-001947-Tidal%20lagoon%20(Swansea%20Bay)%20Plc%201.pdf https://www.carbontrust.com/media/675291/orjip-add-study-final-report-stage-1-phase-2.pdf | AI18: http://www.ascobans.org/sites/default/files/document/Dawson_To-ping-or-not_ESR-2013.pdf https://infrastructure.planninginspectorate.gov.uk/wp-content/ipc/uploads/projects/EN010049/EN010049-001947-Tidal%20lagoon%20(Swansea%20Bay)%20Plc%201.pdf https://www.carbontrust.com/media/675291/orjip-add-study-final-report-stage-1-phase-2.pdf | AJ18: =IFERROR(INDEX('Master Database - amended'!$E$4:$AN$171,'Master Database - amended'!$C7,COLUMNS($A$15:AJ$145)),"") -> ORJIP review concludes that, as no information available – due to lack of response this is not recommended for use during OWF construction.
A19: =IFERROR(INDEX('Master Database - amended'!$E$4:$AN$171,'Master Database - amended'!$C8,COLUMNS($A$15:$A$145)),"") -> 11a | B19: =IFERROR(INDEX('Master Database - amended'!$E$4:$AN$171,'Master Database - amended'!$C8,COLUMNS($A$15:B$145)),"") -> Aquatec Group | C19: =IFERROR(INDEX('Master Database - amended'!$E$4:$AN$171,'Master Database - amended'!$C8,COLUMNS($A$15:C$145)),"") -> Aquamark 100 | D19: =IFERROR(INDEX('Master Database - amended'!$E$4:$AN$171,'Master Database - amended'!$C8,COLUMNS($A$15:D$145)),"") -> Automatic | E19: =IFERROR(INDEX('Master Database - amended'!$E$4:$AN$171,'Master Database - amended'!$C8,COLUMNS($A$15:E$145)),"") -> No manufacturers website available | F19: No manufacturers website available | G19: =IFERROR(INDEX('Master Database - amended'!$E$4:$AN$171,'Master Database - amended'!$C8,COLUMNS($A$15:G$145)),"") -> Bycatch (gillnets) | H19: =IFERROR(INDEX('Master Database - amended'!$E$4:$AN$171,'Master Database - amended'!$C8,COLUMNS($A$15:H$145)),"") -> 145 | I19: =IFERROR(INDEX('Master Database - amended'!$E$4:$AN$171,'Master Database - amended'!$C8,COLUMNS($A$15:I$145)),"") -> 148 | J19: =IFERROR(INDEX('Master Database - amended'!$E$4:$AN$171,'Master Database - amended'!$C8,COLUMNS($A$15:J$145)),"") -> 140 | K19: =IFERROR(INDEX('Master Database - amended'!$E$4:$AN$171,'Master Database - amended'!$C8,COLUMNS($A$15:K$145)),"") -> 20 | L19: =IFERROR(INDEX('Master Database - amended'!$E$4:$AN$171,'Master Database - amended'!$C8,COLUMNS($A$15:L$145)),"") -> 160 | M19: =IFERROR(INDEX('Master Database - amended'!$E$4:$AN$171,'Master Database - amended'!$C8,COLUMNS($A$15:M$145)),"") -> 20 - 160 kHz | N19: =IFERROR(INDEX('Master Database - amended'!$E$4:$AN$171,'Master Database - amended'!$C8,COLUMNS($A$15:N$145)),"") -> 5000 | O19: =IFERROR(INDEX('Master Database - amended'!$E$4:$AN$171,'Master Database - amended'!$C8,COLUMNS($A$15:O$145)),"") -> 30000 | P19: =IFERROR(INDEX('Master Database - amended'!$E$4:$AN$171,'Master Database - amended'!$C8,COLUMNS($A$15:P$145)),"") -> Signal duration of 200 – 300 ms, with a signal interval of 5 – 30 s (Dawson et al. 2013). | Q19: =IFERROR(INDEX('Master Database - amended'!$E$4:$AN$171,'Master Database - amended'!$C8,COLUMNS($A$15:Q$145)),"") -> Intermittent | R19: =IFERROR(INDEX('Master Database - amended'!$E$4:$AN$171,'Master Database - amended'!$C8,COLUMNS($A$15:R$145)),"") -> 200 | S19: =IFERROR(INDEX('Master Database - amended'!$E$4:$AN$171,'Master Database - amended'!$C8,COLUMNS($A$15:S$145)),"") -> 300 | T19: =IFERROR(INDEX('Master Database - amended'!$E$4:$AN$171,'Master Database - amended'!$C8,COLUMNS($A$15:T$145)),"") -> Signal duration of 200 – 300 ms, with a signal interval of 5 – 30 s (Dawson et al. 2013). | U19: =IFERROR(INDEX('Master Database - amended'!$E$4:$AN$171,'Master Database - amended'!$C8,COLUMNS($A$15:U$145)),"") -> No Data Available | V19: =IFERROR(INDEX('Master Database - amended'!$E$4:$AN$153,'Master Database - amended'!$C8,COLUMNS($A$15:V19)),"") -> No Data Available | W19: =IFERROR(INDEX('Master Database - amended'!$E$4:$AN$171,'Master Database - amended'!$C8,COLUMNS($A$15:W$145)),"") -> 3: High confidence | X19: =IFERROR(INDEX('Master Database - amended'!$E$4:$AN$153,'Master Database - amended'!$C8,COLUMNS($A$15:X19)),"") -> Y | Y19: =IFERROR(INDEX('Master Database - amended'!$E$4:$AN$171,'Master Database - amended'!$C8,COLUMNS($A$15:Y$145)),"") -> 3: High confidence | Z19: =IFERROR(INDEX('Master Database - amended'!$E$4:$AN$153,'Master Database - amended'!$C8,COLUMNS($A$15:Z19)),"") -> Y | AA19: =IFERROR(INDEX('Master Database - amended'!$E$4:$AN$171,'Master Database - amended'!$C8,COLUMNS($A$15:AA$145)),"") -> 2: Medium confidence | AB19: =IFERROR(INDEX('Master Database - amended'!$E$4:$AN$153,'Master Database - amended'!$C8,COLUMNS($A$15:AB19)),"") -> Y | AC19: =IFERROR(INDEX('Master Database - amended'!$E$4:$AN$171,'Master Database - amended'!$C8,COLUMNS($A$15:AC$145)),"") -> Harbour Porpoise | AD19: =IFERROR(INDEX('Master Database - amended'!$E$4:$AN$171,'Master Database - amended'!$C8,COLUMNS($A$15:AD$145)),"") -> No Data Available | AE19: =IFERROR(INDEX('Master Database - amended'!$E$4:$AN$171,'Master Database - amended'!$C8,COLUMNS($A$15:AE$145)),"") -> No Data Available | AF19: =IFERROR(INDEX('Master Database - amended'!$E$4:$AN$171,'Master Database - amended'!$C8,COLUMNS($A$15:AF$145)),"") -> <500m | AG19: =IFERROR(INDEX('Master Database - amended'!$E$4:$AN$171,'Master Database - amended'!$C8,COLUMNS($A$15:AG$128)),"") -> <500m | AH19: =IFERROR(INDEX('Master Database - amended'!$E$4:$AN$153,'Master Database - amended'!$C8,COLUMNS($A$15:AH68)),"") -> https://stecf.jrc.ec.europa.eu/documents/43805/44956/Trials+pinger+spacing+DK+2007.pdf https://www.sciencedirect.com/science/article/pii/S0165783607003669 http://bycatch.org/articles/can-acoustic-deterrent-devices-reduce-catch-cornish-inshore-gillnet-fishery https://www.researchgate.net/publication/286890618_An_investigation_of_acoustic_deterrent_devices_to_reduce_cetacean_bycatch_in_an_inshore_set_net_fishery http://www.ascobans.org/sites/default/files/document/Dawson_To-ping-or-not_ESR-2013.pdf https://infrastructure.planninginspectorate.gov.uk/wp-content/ipc/uploads/projects/EN010049/EN010049-001947-Tidal%20lagoon%20(Swansea%20Bay)%20Plc%201.pdf | AI19: https://stecf.jrc.ec.europa.eu/documents/43805/44956/Trials+pinger+spacing+DK+2007.pdf https://www.sciencedirect.com/science/article/pii/S0165783607003669 http://bycatch.org/articles/can-acoustic-deterrent-devices-reduce-catch-cornish-inshore-gillnet-fishery https://www.researchgate.net/publication/286890618_An_investigation_of_acoustic_deterrent_devices_to_reduce_cetacean_bycatch_in_an_inshore_set_net_fishery http://www.ascobans.org/sites/default/files/document/Dawson_To-ping-or-not_ESR-2013.pdf https://infrastructure.planninginspectorate.gov.uk/wp-content/ipc/uploads/projects/EN010049/EN010049-001947-Tidal%20lagoon%20(Swansea%20Bay)%20Plc%201.pdf | AJ19: =IFERROR(INDEX('Master Database - amended'!$E$4:$AN$171,'Master Database - amended'!$C8,COLUMNS($A$15:AJ$145)),"") -> ABPmer conclude that the use of AQUAmark 100 is considered a viable mitigation option to trial during initial turbine operation at the tidal lagoon given that the device is unlikely to cause wide-scale displacement and has had proven effectiveness in harbour porpoise field trials. Given the predicted relatively small area of avoidance this could be used on a permanent basis without the need for a triggering system.
A20: =IFERROR(INDEX('Master Database - amended'!$E$4:$AN$171,'Master Database - amended'!$C10,COLUMNS($A$15:$A$145)),"") -> 13a | B20: =IFERROR(INDEX('Master Database - amended'!$E$4:$AN$171,'Master Database - amended'!$C10,COLUMNS($A$15:B$145)),"") -> STM products | C20: =IFERROR(INDEX('Master Database - amended'!$E$4:$AN$171,'Master Database - amended'!$C10,COLUMNS($A$15:C$145)),"") -> Dolphin Deterrent Device (DDD) 03L | D20: =IFERROR(INDEX('Master Database - amended'!$E$4:$AN$171,'Master Database - amended'!$C10,COLUMNS($A$15:D$145)),"") -> Automatic | E20: =IFERROR(INDEX('Master Database - amended'!$E$4:$AN$171,'Master Database - amended'!$C10,COLUMNS($A$15:E$145)),"") -> http://www.stm-products.com/en/products/fishing-technology/ | F20: http://www.stm-products.com/en/products/fishing-technology/ | G20: =IFERROR(INDEX('Master Database - amended'!$E$4:$AN$171,'Master Database - amended'!$C10,COLUMNS($A$15:G$145)),"") -> Bycatch (gillnets) | H20: =IFERROR(INDEX('Master Database - amended'!$E$4:$AN$171,'Master Database - amended'!$C10,COLUMNS($A$15:H$145)),"") -> 165 | I20: =IFERROR(INDEX('Master Database - amended'!$E$4:$AN$171,'Master Database - amended'!$C10,COLUMNS($A$15:I$145)),"") -> 168 | J20: =IFERROR(INDEX('Master Database - amended'!$E$4:$AN$171,'Master Database - amended'!$C10,COLUMNS($A$15:J$145)),"") -> 165 | K20: =IFERROR(INDEX('Master Database - amended'!$E$4:$AN$171,'Master Database - amended'!$C10,COLUMNS($A$15:K$145)),"") -> 5 | L20: =IFERROR(INDEX('Master Database - amended'!$E$4:$AN$171,'Master Database - amended'!$C10,COLUMNS($A$15:L$145)),"") -> 500 | M20: =IFERROR(INDEX('Master Database - amended'!$E$4:$AN$171,'Master Database - amended'!$C10,COLUMNS($A$15:M$145)),"") -> 5 - 500 kHz (random). | N20: =IFERROR(INDEX('Master Database - amended'!$E$4:$AN$171,'Master Database - amended'!$C10,COLUMNS($A$15:N$145)),"") -> 150000 | O20: =IFERROR(INDEX('Master Database - amended'!$E$4:$AN$171,'Master Database - amended'!$C10,COLUMNS($A$15:O$145)),"") -> 150000 | P20: =IFERROR(INDEX('Master Database - amended'!$E$4:$AN$171,'Master Database - amended'!$C10,COLUMNS($A$15:P$145)),"") -> Average duration between each pulse is 150 s. | Q20: =IFERROR(INDEX('Master Database - amended'!$E$4:$AN$171,'Master Database - amended'!$C10,COLUMNS($A$15:Q$145)),"") -> Intermittent | R20: =IFERROR(INDEX('Master Database - amended'!$E$4:$AN$171,'Master Database - amended'!$C10,COLUMNS($A$15:R$145)),"") -> 500 | S20: =IFERROR(INDEX('Master Database - amended'!$E$4:$AN$171,'Master Database - amended'!$C10,COLUMNS($A$15:S$145)),"") -> 9000 | T20: =IFERROR(INDEX('Master Database - amended'!$E$4:$AN$171,'Master Database - amended'!$C10,COLUMNS($A$15:T$145)),"") -> Pulse duration can be random or vary between 500 ms and 9000 ms. | U20: =IFERROR(INDEX('Master Database - amended'!$E$4:$AN$171,'Master Database - amended'!$C10,COLUMNS($A$15:U$145)),"") -> No Data Available | V20: =IFERROR(INDEX('Master Database - amended'!$E$4:$AN$153,'Master Database - amended'!$C10,COLUMNS($A$15:V20)),"") -> No Data Available | W20: =IFERROR(INDEX('Master Database - amended'!$E$4:$AN$171,'Master Database - amended'!$C10,COLUMNS($A$15:W$145)),"") -> 3: High confidence | X20: =IFERROR(INDEX('Master Database - amended'!$E$4:$AN$153,'Master Database - amended'!$C10,COLUMNS($A$15:X20)),"") -> N | Y20: =IFERROR(INDEX('Master Database - amended'!$E$4:$AN$171,'Master Database - amended'!$C10,COLUMNS($A$15:Y$145)),"") -> 2: Medium confidence | Z20: =IFERROR(INDEX('Master Database - amended'!$E$4:$AN$153,'Master Database - amended'!$C10,COLUMNS($A$15:Z20)),"") -> Y | AA20: =IFERROR(INDEX('Master Database - amended'!$E$4:$AN$171,'Master Database - amended'!$C10,COLUMNS($A$15:AA$145)),"") -> No Data Available | AB20: =IFERROR(INDEX('Master Database - amended'!$E$4:$AN$153,'Master Database - amended'!$C10,COLUMNS($A$15:AB20)),"") -> No Data Available | AC20: =IFERROR(INDEX('Master Database - amended'!$E$4:$AN$171,'Master Database - amended'!$C10,COLUMNS($A$15:AC$145)),"") -> Dolphins | AD20: =IFERROR(INDEX('Master Database - amended'!$E$4:$AN$171,'Master Database - amended'!$C10,COLUMNS($A$15:AD$145)),"") -> No Data Available | AE20: =IFERROR(INDEX('Master Database - amended'!$E$4:$AN$171,'Master Database - amended'!$C10,COLUMNS($A$15:AE$145)),"") -> >1000m | AF20: =IFERROR(INDEX('Master Database - amended'!$E$4:$AN$171,'Master Database - amended'!$C10,COLUMNS($A$15:AF$145)),"") -> >1000m | AG20: =IFERROR(INDEX('Master Database - amended'!$E$4:$AN$171,'Master Database - amended'!$C10,COLUMNS($A$15:AG$128)),"") -> No Data Available | AH20: =IFERROR(INDEX('Master Database - amended'!$E$4:$AN$153,'Master Database - amended'!$C10,COLUMNS($A$15:AH25)),"") -> https://www.carbontrust.com/media/675291/orjip-add-study-final-report-stage-1-phase-2.pdf | AI20: https://www.carbontrust.com/media/675291/orjip-add-study-final-report-stage-1-phase-2.pdf | AJ20: =IFERROR(INDEX('Master Database - amended'!$E$4:$AN$171,'Master Database - amended'!$C10,COLUMNS($A$15:AJ$145)),"") -> ORJIP review concludes that the DDD and DDD03 are not designed to have the control functions necessary for OWF applications.
